Council Name,Date,TransNo,Amount � (Excl VAT),Supplier name,Supplier Category,Expense Area,Expense Type,Expense Code
Royal Borough of Kingston,30/04/2022,70024734,"7,000.00",31TEN CONSULTING LIMITED,TEMP STAFF & CONSULTANCY,Capital Programme,External Fees and Consultants,C20000
Royal Borough of Kingston,30/04/2022,70023543,"40,000.00",31TEN CONSULTING LIMITED,TEMP STAFF & CONSULTANCY,Corporate & Communities,Consultancy Services,A56007
Royal Borough of Kingston,31/05/2022,70025038,"40,000.00",31TEN CONSULTING LIMITED,TEMP STAFF & CONSULTANCY,Corporate & Communities,Consultancy Services,A56007
Royal Borough of Kingston,01/05/2022,90129639,"3,842.10",ABBEY 14 LIMITED,SOCIAL SERVICES RESIDENTIAL,Adult Social Care & Health,Independent Placements,A56006
Royal Borough of Kingston,01/05/2022,90129363,"-3,740.40",ABBEYFIELD,SOCIAL SERVICES RESIDENTIAL,Adult Social Care & Health,Independent Placements,A56006
Royal Borough of Kingston,01/05/2022,90129362,"-3,720.00",ABBEYFIELD,SOCIAL SERVICES RESIDENTIAL,Adult Social Care & Health,Independent Placements,A56006
Royal Borough of Kingston,01/05/2022,90129361,"-3,360.00",ABBEYFIELD,SOCIAL SERVICES RESIDENTIAL,Adult Social Care & Health,Independent Placements,A56006
Royal Borough of Kingston,01/05/2022,90129360,"-2,040.00",ABBEYFIELD,SOCIAL SERVICES RESIDENTIAL,Adult Social Care & Health,Independent Placements,A56006
Royal Borough of Kingston,01/05/2022,90129526,720,ABBEYFIELD,SOCIAL SERVICES RESIDENTIAL,Adult Social Care & Health,Independent Placements,A56006
Royal Borough of Kingston,01/05/2022,90129356,"1,200.00",ABBEYFIELD,SOCIAL SERVICES RESIDENTIAL,Adult Social Care & Health,Independent Placements,A56006
Royal Borough of Kingston,01/05/2022,90129548,"1,772.25",ABBEYFIELD,SOCIAL SERVICES RESIDENTIAL,Adult Social Care & Health,Independent Placements,A56006
Royal Borough of Kingston,01/05/2022,90129539,"1,994.88",ABBEYFIELD,SOCIAL SERVICES RESIDENTIAL,Adult Social Care & Health,Independent Placements,A56006
Royal Borough of Kingston,01/05/2022,90129819,"2,618.28",ABBEYFIELD,SOCIAL SERVICES RESIDENTIAL,Adult Social Care & Health,Other Private Contractors - Third Party,A56080
Royal Borough of Kingston,01/05/2022,90129549,"2,919.00",ABBEYFIELD,SOCIAL SERVICES RESIDENTIAL,Adult Social Care & Health,Independent Placements,A56006
Royal Borough of Kingston,01/05/2022,90129551,"3,127.50",ABBEYFIELD,SOCIAL SERVICES RESIDENTIAL,Adult Social Care & Health,Independent Placements,A56006
Royal Borough of Kingston,01/05/2022,90129550,"3,231.75",ABBEYFIELD,SOCIAL SERVICES RESIDENTIAL,Adult Social Care & Health,Independent Placements,A56006
Royal Borough of Kingston,01/05/2022,90129552,"3,231.75",ABBEYFIELD,SOCIAL SERVICES RESIDENTIAL,Adult Social Care & Health,Independent Placements,A56006
Royal Borough of Kingston,01/05/2022,90129357,"3,720.00",ABBEYFIELD,SOCIAL SERVICES RESIDENTIAL,Adult Social Care & Health,Independent Placements,A56006
Royal Borough of Kingston,01/05/2022,90129527,"3,720.00",ABBEYFIELD,SOCIAL SERVICES RESIDENTIAL,Adult Social Care & Health,Independent Placements,A56006
Royal Borough of Kingston,01/05/2022,90129685,"3,720.00",ABBEYFIELD,SOCIAL SERVICES RESIDENTIAL,Adult Social Care & Health,Independent Placements,A56006
Royal Borough of Kingston,01/05/2022,90129500,"3,865.08",ABBEYFIELD,SOCIAL SERVICES RESIDENTIAL,Adult Social Care & Health,Independent Placements,A56006
Royal Borough of Kingston,01/05/2022,90129501,"3,865.08",ABBEYFIELD,SOCIAL SERVICES RESIDENTIAL,Adult Social Care & Health,Independent Placements,A56006
Royal Borough of Kingston,01/05/2022,90129502,"3,865.08",ABBEYFIELD,SOCIAL SERVICES RESIDENTIAL,Adult Social Care & Health,Independent Placements,A56006
Royal Borough of Kingston,01/05/2022,90129504,"3,865.08",ABBEYFIELD,SOCIAL SERVICES RESIDENTIAL,Adult Social Care & Health,Independent Placements,A56006
Royal Borough of Kingston,01/05/2022,90129520,"3,865.08",ABBEYFIELD,SOCIAL SERVICES RESIDENTIAL,Adult Social Care & Health,Independent Placements,A56006
Royal Borough of Kingston,01/05/2022,90129523,"3,865.08",ABBEYFIELD,SOCIAL SERVICES RESIDENTIAL,Adult Social Care & Health,Independent Placements,A56006
Royal Borough of Kingston,01/05/2022,90129525,"3,865.08",ABBEYFIELD,SOCIAL SERVICES RESIDENTIAL,Adult Social Care & Health,Independent Placements,A56006
Royal Borough of Kingston,01/05/2022,90129533,"3,865.08",ABBEYFIELD,SOCIAL SERVICES RESIDENTIAL,Adult Social Care & Health,Independent Placements,A56006
Royal Borough of Kingston,01/05/2022,90129546,"3,865.08",ABBEYFIELD,SOCIAL SERVICES RESIDENTIAL,Adult Social Care & Health,Independent Placements,A56006
Royal Borough of Kingston,01/05/2022,90129557,"3,865.08",ABBEYFIELD,SOCIAL SERVICES RESIDENTIAL,Adult Social Care & Health,Independent Placements,A56006
Royal Borough of Kingston,01/05/2022,90129559,"3,865.08",ABBEYFIELD,SOCIAL SERVICES RESIDENTIAL,Adult Social Care & Health,Independent Placements,A56006
Royal Borough of Kingston,01/05/2022,90129633,"3,865.08",ABBEYFIELD,SOCIAL SERVICES RESIDENTIAL,Adult Social Care & Health,Independent Placements,A56006
Royal Borough of Kingston,01/05/2022,90129646,"3,865.08",ABBEYFIELD,SOCIAL SERVICES RESIDENTIAL,Adult Social Care & Health,Independent Placements,A56006
Royal Borough of Kingston,01/05/2022,90129661,"3,865.08",ABBEYFIELD,SOCIAL SERVICES RESIDENTIAL,Adult Social Care & Health,Independent Placements,A56006
Royal Borough of Kingston,01/05/2022,90129666,"3,865.08",ABBEYFIELD,SOCIAL SERVICES RESIDENTIAL,Adult Social Care & Health,Independent Placements,A56006
Royal Borough of Kingston,01/05/2022,90129683,"3,865.08",ABBEYFIELD,SOCIAL SERVICES RESIDENTIAL,Adult Social Care & Health,Independent Placements,A56006
Royal Borough of Kingston,01/05/2022,90129822,"3,865.08",ABBEYFIELD,SOCIAL SERVICES RESIDENTIAL,Adult Social Care & Health,Other Private Contractors - Third Party,A56080
Royal Borough of Kingston,01/05/2022,90129625,"4,141.16",ABBEYFIELD,SOCIAL SERVICES RESIDENTIAL,Adult Social Care & Health,Independent Placements,A56006
Royal Borough of Kingston,01/05/2022,90129638,"4,141.16",ABBEYFIELD,SOCIAL SERVICES RESIDENTIAL,Adult Social Care & Health,Independent Placements,A56006
Royal Borough of Kingston,01/05/2022,90129657,"4,371.22",ABBEYFIELD,SOCIAL SERVICES RESIDENTIAL,Adult Social Care & Health,Independent Placements,A56006
Royal Borough of Kingston,01/05/2022,90129659,"4,601.29",ABBEYFIELD,SOCIAL SERVICES RESIDENTIAL,Adult Social Care & Health,Independent Placements,A56006
Royal Borough of Kingston,10/03/2022,70023586,"2,681.67",ABBOTSBURY CARPETS AND FLOORING,PREMISES - FURNISHINGS,Capital Programme,Buildings - Project Management,C14003
Royal Borough of Kingston,01/05/2022,90130269,"5,745.10",ABC HILLINGDON LTD,ACCOMMODATION - OTHER,Adult Social Care & Health,Personal Budget - Third Party,A61019
Royal Borough of Kingston,15/12/2021,70023583,540,ACCESS INDEPENDENT LIMITED,SOCIAL SERVICES - OTHER,Adult Social Care & Health,Other Private Contractors - Third Party,A56080
Royal Borough of Kingston,30/04/2022,70023605,"1,980.00",ACCESS INDEPENDENT LIMITED,SOCIAL SERVICES - OTHER,Adult Social Care & Health,Other Private Contractors - Third Party,A56080
Royal Borough of Kingston,20/05/2022,90126382,"1,047.00",Accountancy Services (New Malden) Limited,PLS LANDLORDS,Place,PSL Payments To Landlords,A22031
Royal Borough of Kingston,06/05/2022,70023753,"5,449,925.00",ACHIEVING FOR CHILDREN LIMITED,LEGAL & PROFESSIONAL SERVICES,Childrens Services,Fixed Childrens Services Contract Strategic,A51019
Royal Borough of Kingston,13/04/2022,70024516,"8,479.00",AD WIBDEN LIMITED,CONSTRUCTION INDUSTRY,Capital Programme,Grants Given For Capital Purposes,C20004
Royal Borough of Kingston,06/05/2022,70023786,"1,050.00",ADAM HOTEL MANAGEMENT LTD,ACCOMMODATION BED & BREAKFAST,Place,Bed & Breakfast,A56000
Royal Borough of Kingston,06/05/2022,70023787,"1,050.00",ADAM HOTEL MANAGEMENT LTD,ACCOMMODATION BED & BREAKFAST,Place,Bed & Breakfast,A56000
Royal Borough of Kingston,06/05/2022,70023789,"1,050.00",ADAM HOTEL MANAGEMENT LTD,ACCOMMODATION BED & BREAKFAST,Place,Bed & Breakfast,A56000
Royal Borough of Kingston,06/05/2022,70023788,"1,260.00",ADAM HOTEL MANAGEMENT LTD,ACCOMMODATION BED & BREAKFAST,Place,Bed & Breakfast,A56000
Royal Borough of Kingston,06/05/2022,70023785,"1,530.00",ADAM HOTEL MANAGEMENT LTD,ACCOMMODATION BED & BREAKFAST,Place,Bed & Breakfast,A56000
Royal Borough of Kingston,30/04/2022,70023734,"1,260.00",ADAM HOTELS UK LIMITED,ACCOMMODATION BED & BREAKFAST,Place,Bed & Breakfast,A56000
Royal Borough of Kingston,20/04/2022,70022709,"3,846.66",ADAM HTT LIMITED,TAXI AND COACH HIRE,Adult Social Care & Health,Home To School Transport Taxis,A33016
Royal Borough of Kingston,27/04/2022,70023143,"9,934.07",ADAM HTT LIMITED,TAXI AND COACH HIRE,Adult Social Care & Health,Home To School Transport Taxis,A33016
Royal Borough of Kingston,25/05/2022,70024966,"11,221.99",ADAM HTT LIMITED,TAXI AND COACH HIRE,Adult Social Care & Health,Home To School Transport Taxis,A33016
Royal Borough of Kingston,04/05/2022,70023507,"11,224.89",ADAM HTT LIMITED,TAXI AND COACH HIRE,Adult Social Care & Health,Home To School Transport Taxis,A33016
Royal Borough of Kingston,18/05/2022,70024614,"13,606.87",ADAM HTT LIMITED,TAXI AND COACH HIRE,Adult Social Care & Health,Home To School Transport Taxis,A33016
Royal Borough of Kingston,11/05/2022,70023969,"15,077.69",ADAM HTT LIMITED,TAXI AND COACH HIRE,Adult Social Care & Health,Home To School Transport Taxis,A33016
Royal Borough of Kingston,29/04/2022,70023482,60,ADVANCED TREE SERVICES LIMITED,CONSTRUCTION INDUSTRY,Housing Revenue Account,Tree Works,A56042
Royal Borough of Kingston,29/04/2022,70023482,60,ADVANCED TREE SERVICES LIMITED,CONSTRUCTION INDUSTRY,Housing Revenue Account,Tree Works,A56042
Royal Borough of Kingston,29/04/2022,70023482,120,ADVANCED TREE SERVICES LIMITED,CONSTRUCTION INDUSTRY,Housing Revenue Account,Tree Works,A56042
Royal Borough of Kingston,29/04/2022,70023482,120,ADVANCED TREE SERVICES LIMITED,CONSTRUCTION INDUSTRY,Housing Revenue Account,Tree Works,A56042
Royal Borough of Kingston,29/04/2022,70023482,180,ADVANCED TREE SERVICES LIMITED,CONSTRUCTION INDUSTRY,Housing Revenue Account,Tree Works,A56042
Royal Borough of Kingston,28/04/2022,70023275,860,ADVANCED TREE SERVICES LIMITED,CONSTRUCTION INDUSTRY,Capital Programme,Buildings - Design & Planning,C14001
Royal Borough of Kingston,29/04/2022,70023482,"4,113.00",ADVANCED TREE SERVICES LIMITED,CONSTRUCTION INDUSTRY,Corporate & Communities,Maintenance of trees,A28003
Royal Borough of Kingston,29/04/2022,70023497,"17,710.00",ADVANCED TREE SERVICES LIMITED,CONSTRUCTION INDUSTRY,Corporate & Communities,Maintenance of trees,A28003
Royal Borough of Kingston,31/03/2022,70023856,"1,030.00",AGE CONCERN KINGSTON UPON THAMES,GRANTS & EX GRATIA PAYMENTS,Adult Social Care & Health,Payments to Voluntary Organisations,A54005
Royal Borough of Kingston,25/04/2022,70023062,"22,500.00",AGE CONCERN KINGSTON UPON THAMES,GRANTS & EX GRATIA PAYMENTS,Corporate & Communities,Payments to Voluntary Organisations,A54005
Royal Borough of Kingston,07/04/2022,70023883,"2,340.00",AGENTO DIGITAL LIMITED,BUSINESS & COMPUTER SYSTEMS,Corporate & Communities,Cloud Services,A45007
Royal Borough of Kingston,01/05/2022,90129420,"-1,603.03",AIMS CARE LIMITED,SOCIAL SERVICES RESIDENTIAL,Adult Social Care & Health,Independent Placements,A56006
Royal Borough of Kingston,01/05/2022,90129419,"1,542.86",AIMS CARE LIMITED,SOCIAL SERVICES RESIDENTIAL,Adult Social Care & Health,Independent Placements,A56006
Royal Borough of Kingston,01/05/2022,90129421,"5,314.29",AIMS CARE LIMITED,SOCIAL SERVICES RESIDENTIAL,Adult Social Care & Health,Independent Placements,A56006
Royal Borough of Kingston,16/05/2022,70024731,595,ALAN GREENWOOD AND SONS,LEGAL & PROFESSIONAL SERVICES,Adult Social Care & Health,Professional Fees,A44066
Royal Borough of Kingston,01/05/2022,90129833,"-1,821.43",ALBERT RESIDENTIAL HOME,SOCIAL SERVICES RESIDENTIAL,Adult Social Care & Health,Other Private Contractors - Third Party,A56080
Royal Borough of Kingston,01/05/2022,90119274,"1,350.70",ALBERT RESIDENTIAL HOME,SOCIAL SERVICES RESIDENTIAL,Adult Social Care & Health,Other Private Contractors - Third Party,A56080
Royal Borough of Kingston,01/05/2022,90129795,"1,444.21",ALBERT RESIDENTIAL HOME,SOCIAL SERVICES RESIDENTIAL,Adult Social Care & Health,Independent Placements,A56006
Royal Borough of Kingston,01/05/2022,90129832,"1,821.43",ALBERT RESIDENTIAL HOME,SOCIAL SERVICES RESIDENTIAL,Adult Social Care & Health,Other Private Contractors - Third Party,A56080
Royal Borough of Kingston,01/05/2022,90129834,"3,321.43",ALBERT RESIDENTIAL HOME,SOCIAL SERVICES RESIDENTIAL,Adult Social Care & Health,Other Private Contractors - Third Party,A56080
Royal Borough of Kingston,04/05/2022,90120035,"158,026.51",ALEXANDRA SCHOOL ,CENTRAL & LOCAL GOVERNMENT,Schools,Miscellaneous Expenses,A49000
Royal Borough of Kingston,25/05/2022,90127715,"158,026.51",ALEXANDRA SCHOOL ,CENTRAL & LOCAL GOVERNMENT,Schools,Miscellaneous Expenses,A49000
Royal Borough of Kingston,25/04/2022,90122083,-586.5,ALPENBEST LTD,SOCIAL SERVICES DAY CARE,Adult Social Care & Health,Homecare - new framework,A56127
Royal Borough of Kingston,02/05/2022,90124842,533.75,ALPENBEST LTD,SOCIAL SERVICES DAY CARE,Adult Social Care & Health,Homecare - new framework,A56127
Royal Borough of Kingston,18/04/2022,90119277,551.25,ALPENBEST LTD,SOCIAL SERVICES DAY CARE,Adult Social Care & Health,Homecare - new framework,A56127
Royal Borough of Kingston,18/04/2022,90119290,551.25,ALPENBEST LTD,SOCIAL SERVICES DAY CARE,Adult Social Care & Health,Homecare - new framework,A56127
Royal Borough of Kingston,18/04/2022,90119410,551.25,ALPENBEST LTD,SOCIAL SERVICES DAY CARE,Adult Social Care & Health,Homecare - new framework,A56127
Royal Borough of Kingston,18/04/2022,90119413,551.25,ALPENBEST LTD,SOCIAL SERVICES DAY CARE,Adult Social Care & Health,Homecare - new framework,A56127
Royal Borough of Kingston,18/04/2022,90119468,551.25,ALPENBEST LTD,SOCIAL SERVICES DAY CARE,Adult Social Care & Health,Homecare - new framework,A56127
Royal Borough of Kingston,18/04/2022,90119478,551.25,ALPENBEST LTD,SOCIAL SERVICES DAY CARE,Adult Social Care & Health,Homecare - new framework,A56127
Royal Borough of Kingston,18/04/2022,90119560,551.25,ALPENBEST LTD,SOCIAL SERVICES DAY CARE,Adult Social Care & Health,Homecare - new framework,A56127
Royal Borough of Kingston,18/04/2022,90119566,551.25,ALPENBEST LTD,SOCIAL SERVICES DAY CARE,Adult Social Care & Health,Homecare - new framework,A56127
Royal Borough of Kingston,18/04/2022,90119568,551.25,ALPENBEST LTD,SOCIAL SERVICES DAY CARE,Adult Social Care & Health,Homecare - new framework,A56127
Royal Borough of Kingston,18/04/2022,90119626,551.25,ALPENBEST LTD,SOCIAL SERVICES DAY CARE,Adult Social Care & Health,Homecare - new framework,A56127
Royal Borough of Kingston,25/04/2022,90121899,551.25,ALPENBEST LTD,SOCIAL SERVICES DAY CARE,Adult Social Care & Health,Homecare - new framework,A56127
Royal Borough of Kingston,25/04/2022,90121914,551.25,ALPENBEST LTD,SOCIAL SERVICES DAY CARE,Adult Social Care & Health,Homecare - new framework,A56127
Royal Borough of Kingston,25/04/2022,90121986,551.25,ALPENBEST LTD,SOCIAL SERVICES DAY CARE,Adult Social Care & Health,Homecare - new framework,A56127
Royal Borough of Kingston,25/04/2022,90122050,551.25,ALPENBEST LTD,SOCIAL SERVICES DAY CARE,Adult Social Care & Health,Homecare - new framework,A56127
Royal Borough of Kingston,25/04/2022,90122055,551.25,ALPENBEST LTD,SOCIAL SERVICES DAY CARE,Adult Social Care & Health,Homecare - new framework,A56127
Royal Borough of Kingston,25/04/2022,90122117,551.25,ALPENBEST LTD,SOCIAL SERVICES DAY CARE,Adult Social Care & Health,Homecare - new framework,A56127
Royal Borough of Kingston,25/04/2022,90122211,551.25,ALPENBEST LTD,SOCIAL SERVICES DAY CARE,Adult Social Care & Health,Homecare - new framework,A56127
Royal Borough of Kingston,25/04/2022,90122218,551.25,ALPENBEST LTD,SOCIAL SERVICES DAY CARE,Adult Social Care & Health,Homecare - new framework,A56127
Royal Borough of Kingston,25/04/2022,90122220,551.25,ALPENBEST LTD,SOCIAL SERVICES DAY CARE,Adult Social Care & Health,Homecare - new framework,A56127
Royal Borough of Kingston,25/04/2022,90122283,551.25,ALPENBEST LTD,SOCIAL SERVICES DAY CARE,Adult Social Care & Health,Homecare - new framework,A56127
Royal Borough of Kingston,25/04/2022,90122323,551.25,ALPENBEST LTD,SOCIAL SERVICES DAY CARE,Adult Social Care & Health,Homecare - new framework,A56127
Royal Borough of Kingston,02/05/2022,90124563,551.25,ALPENBEST LTD,SOCIAL SERVICES DAY CARE,Adult Social Care & Health,Homecare - new framework,A56127
Royal Borough of Kingston,02/05/2022,90124578,551.25,ALPENBEST LTD,SOCIAL SERVICES DAY CARE,Adult Social Care & Health,Homecare - new framework,A56127
Royal Borough of Kingston,02/05/2022,90124643,551.25,ALPENBEST LTD,SOCIAL SERVICES DAY CARE,Adult Social Care & Health,Homecare - new framework,A56127
Royal Borough of Kingston,02/05/2022,90124695,551.25,ALPENBEST LTD,SOCIAL SERVICES DAY CARE,Adult Social Care & Health,Homecare - new framework,A56127
Royal Borough of Kingston,02/05/2022,90124750,551.25,ALPENBEST LTD,SOCIAL SERVICES DAY CARE,Adult Social Care & Health,Homecare - new framework,A56127
Royal Borough of Kingston,02/05/2022,90124835,551.25,ALPENBEST LTD,SOCIAL SERVICES DAY CARE,Adult Social Care & Health,Homecare - new framework,A56127
Royal Borough of Kingston,02/05/2022,90124846,551.25,ALPENBEST LTD,SOCIAL SERVICES DAY CARE,Adult Social Care & Health,Homecare - new framework,A56127
Royal Borough of Kingston,02/05/2022,90124908,551.25,ALPENBEST LTD,SOCIAL SERVICES DAY CARE,Adult Social Care & Health,Homecare - new framework,A56127
Royal Borough of Kingston,02/05/2022,90124945,551.25,ALPENBEST LTD,SOCIAL SERVICES DAY CARE,Adult Social Care & Health,Homecare - new framework,A56127
Royal Borough of Kingston,09/05/2022,90126876,551.25,ALPENBEST LTD,SOCIAL SERVICES DAY CARE,Adult Social Care & Health,Homecare - new framework,A56127
Royal Borough of Kingston,09/05/2022,90126892,551.25,ALPENBEST LTD,SOCIAL SERVICES DAY CARE,Adult Social Care & Health,Homecare - new framework,A56127
Royal Borough of Kingston,09/05/2022,90126953,551.25,ALPENBEST LTD,SOCIAL SERVICES DAY CARE,Adult Social Care & Health,Homecare - new framework,A56127
Royal Borough of Kingston,09/05/2022,90127009,551.25,ALPENBEST LTD,SOCIAL SERVICES DAY CARE,Adult Social Care & Health,Homecare - new framework,A56127
Royal Borough of Kingston,09/05/2022,90127069,551.25,ALPENBEST LTD,SOCIAL SERVICES DAY CARE,Adult Social Care & Health,Homecare - new framework,A56127
Royal Borough of Kingston,09/05/2022,90127156,551.25,ALPENBEST LTD,SOCIAL SERVICES DAY CARE,Adult Social Care & Health,Homecare - new framework,A56127
Royal Borough of Kingston,09/05/2022,90127162,551.25,ALPENBEST LTD,SOCIAL SERVICES DAY CARE,Adult Social Care & Health,Homecare - new framework,A56127
Royal Borough of Kingston,09/05/2022,90127166,551.25,ALPENBEST LTD,SOCIAL SERVICES DAY CARE,Adult Social Care & Health,Homecare - new framework,A56127
Royal Borough of Kingston,09/05/2022,90127231,551.25,ALPENBEST LTD,SOCIAL SERVICES DAY CARE,Adult Social Care & Health,Homecare - new framework,A56127
Royal Borough of Kingston,09/05/2022,90127266,551.25,ALPENBEST LTD,SOCIAL SERVICES DAY CARE,Adult Social Care & Health,Homecare - new framework,A56127
Royal Borough of Kingston,16/05/2022,90130645,551.25,ALPENBEST LTD,SOCIAL SERVICES DAY CARE,Adult Social Care & Health,Homecare - new framework,A56127
Royal Borough of Kingston,16/05/2022,90130648,551.25,ALPENBEST LTD,SOCIAL SERVICES DAY CARE,Adult Social Care & Health,Homecare - new framework,A56127
Royal Borough of Kingston,16/05/2022,90130708,551.25,ALPENBEST LTD,SOCIAL SERVICES DAY CARE,Adult Social Care & Health,Homecare - new framework,A56127
Royal Borough of Kingston,16/05/2022,90130723,551.25,ALPENBEST LTD,SOCIAL SERVICES DAY CARE,Adult Social Care & Health,Homecare - new framework,A56127
Royal Borough of Kingston,16/05/2022,90130784,551.25,ALPENBEST LTD,SOCIAL SERVICES DAY CARE,Adult Social Care & Health,Homecare - new framework,A56127
Royal Borough of Kingston,16/05/2022,90130791,551.25,ALPENBEST LTD,SOCIAL SERVICES DAY CARE,Adult Social Care & Health,Homecare - new framework,A56127
Royal Borough of Kingston,16/05/2022,90130794,551.25,ALPENBEST LTD,SOCIAL SERVICES DAY CARE,Adult Social Care & Health,Homecare - new framework,A56127
Royal Borough of Kingston,16/05/2022,90130847,551.25,ALPENBEST LTD,SOCIAL SERVICES DAY CARE,Adult Social Care & Health,Homecare - new framework,A56127
Royal Borough of Kingston,16/05/2022,90130905,551.25,ALPENBEST LTD,SOCIAL SERVICES DAY CARE,Adult Social Care & Health,Homecare - new framework,A56127
Royal Borough of Kingston,18/04/2022,90119357,560,ALPENBEST LTD,SOCIAL SERVICES DAY CARE,Adult Social Care & Health,Homecare - new framework,A56127
Royal Borough of Kingston,25/04/2022,90121991,560,ALPENBEST LTD,SOCIAL SERVICES DAY CARE,Adult Social Care & Health,Homecare - new framework,A56127
Royal Borough of Kingston,02/05/2022,90124647,560,ALPENBEST LTD,SOCIAL SERVICES DAY CARE,Adult Social Care & Health,Homecare - new framework,A56127
Royal Borough of Kingston,09/05/2022,90126957,560,ALPENBEST LTD,SOCIAL SERVICES DAY CARE,Adult Social Care & Health,Homecare - new framework,A56127
Royal Borough of Kingston,16/05/2022,90130587,560,ALPENBEST LTD,SOCIAL SERVICES DAY CARE,Adult Social Care & Health,Homecare - new framework,A56127
Royal Borough of Kingston,16/05/2022,90130534,568.75,ALPENBEST LTD,SOCIAL SERVICES DAY CARE,Adult Social Care & Health,Homecare - new framework,A56127
Royal Borough of Kingston,18/04/2022,90119534,577.5,ALPENBEST LTD,SOCIAL SERVICES DAY CARE,Adult Social Care & Health,Homecare - new framework,A56127
Royal Borough of Kingston,02/05/2022,90124805,577.5,ALPENBEST LTD,SOCIAL SERVICES DAY CARE,Adult Social Care & Health,Homecare - new framework,A56127
Royal Borough of Kingston,09/05/2022,90127120,577.5,ALPENBEST LTD,SOCIAL SERVICES DAY CARE,Adult Social Care & Health,Homecare - new framework,A56127
Royal Borough of Kingston,16/05/2022,90130754,577.5,ALPENBEST LTD,SOCIAL SERVICES DAY CARE,Adult Social Care & Health,Homecare - new framework,A56127
Royal Borough of Kingston,18/04/2022,90119669,577.51,ALPENBEST LTD,SOCIAL SERVICES DAY CARE,Adult Social Care & Health,Homecare - new framework,A56127
Royal Borough of Kingston,25/04/2022,90122129,595.01,ALPENBEST LTD,SOCIAL SERVICES DAY CARE,Adult Social Care & Health,Homecare - new framework,A56127
Royal Borough of Kingston,09/05/2022,90126903,595.01,ALPENBEST LTD,SOCIAL SERVICES DAY CARE,Adult Social Care & Health,Homecare - new framework,A56127
Royal Borough of Kingston,18/04/2022,90119701,603.75,ALPENBEST LTD,SOCIAL SERVICES DAY CARE,Adult Social Care & Health,Homecare - new framework,A56127
Royal Borough of Kingston,25/04/2022,90122358,603.75,ALPENBEST LTD,SOCIAL SERVICES DAY CARE,Adult Social Care & Health,Homecare - new framework,A56127
Royal Borough of Kingston,02/05/2022,90124979,603.75,ALPENBEST LTD,SOCIAL SERVICES DAY CARE,Adult Social Care & Health,Homecare - new framework,A56127
Royal Borough of Kingston,09/05/2022,90127307,603.75,ALPENBEST LTD,SOCIAL SERVICES DAY CARE,Adult Social Care & Health,Homecare - new framework,A56127
Royal Borough of Kingston,16/05/2022,90130938,603.75,ALPENBEST LTD,SOCIAL SERVICES DAY CARE,Adult Social Care & Health,Homecare - new framework,A56127
Royal Borough of Kingston,18/04/2022,90119383,612.5,ALPENBEST LTD,SOCIAL SERVICES DAY CARE,Adult Social Care & Health,Homecare - new framework,A56127
Royal Borough of Kingston,18/04/2022,90119559,612.5,ALPENBEST LTD,SOCIAL SERVICES DAY CARE,Adult Social Care & Health,Homecare - new framework,A56127
Royal Borough of Kingston,18/04/2022,90119730,612.5,ALPENBEST LTD,SOCIAL SERVICES DAY CARE,Adult Social Care & Health,Homecare - new framework,A56127
Royal Borough of Kingston,18/04/2022,90119877,612.5,ALPENBEST LTD,SOCIAL SERVICES DAY CARE,Adult Social Care & Health,Personal Budget - Third Party,A61019
Royal Borough of Kingston,25/04/2022,90122022,612.5,ALPENBEST LTD,SOCIAL SERVICES DAY CARE,Adult Social Care & Health,Homecare - new framework,A56127
Royal Borough of Kingston,25/04/2022,90122389,612.5,ALPENBEST LTD,SOCIAL SERVICES DAY CARE,Adult Social Care & Health,Homecare - new framework,A56127
Royal Borough of Kingston,25/04/2022,90122824,612.5,ALPENBEST LTD,SOCIAL SERVICES DAY CARE,Adult Social Care & Health,Personal Budget - Third Party,A61019
Royal Borough of Kingston,02/05/2022,90124671,612.5,ALPENBEST LTD,SOCIAL SERVICES DAY CARE,Adult Social Care & Health,Homecare - new framework,A56127
Royal Borough of Kingston,02/05/2022,90124834,612.5,ALPENBEST LTD,SOCIAL SERVICES DAY CARE,Adult Social Care & Health,Homecare - new framework,A56127
Royal Borough of Kingston,02/05/2022,90125007,612.5,ALPENBEST LTD,SOCIAL SERVICES DAY CARE,Adult Social Care & Health,Homecare - new framework,A56127
Royal Borough of Kingston,02/05/2022,90125183,612.5,ALPENBEST LTD,SOCIAL SERVICES DAY CARE,Adult Social Care & Health,Personal Budget - Third Party,A61019
Royal Borough of Kingston,09/05/2022,90126982,612.5,ALPENBEST LTD,SOCIAL SERVICES DAY CARE,Adult Social Care & Health,Homecare - new framework,A56127
Royal Borough of Kingston,09/05/2022,90127038,612.5,ALPENBEST LTD,SOCIAL SERVICES DAY CARE,Adult Social Care & Health,Homecare - new framework,A56127
Royal Borough of Kingston,09/05/2022,90127340,612.5,ALPENBEST LTD,SOCIAL SERVICES DAY CARE,Adult Social Care & Health,Homecare - new framework,A56127
Royal Borough of Kingston,09/05/2022,90127534,612.5,ALPENBEST LTD,SOCIAL SERVICES DAY CARE,Adult Social Care & Health,Personal Budget - Third Party,A61019
Royal Borough of Kingston,16/05/2022,90130617,612.5,ALPENBEST LTD,SOCIAL SERVICES DAY CARE,Adult Social Care & Health,Homecare - new framework,A56127
Royal Borough of Kingston,16/05/2022,90130783,612.5,ALPENBEST LTD,SOCIAL SERVICES DAY CARE,Adult Social Care & Health,Homecare - new framework,A56127
Royal Borough of Kingston,16/05/2022,90130967,612.5,ALPENBEST LTD,SOCIAL SERVICES DAY CARE,Adult Social Care & Health,Homecare - new framework,A56127
Royal Borough of Kingston,16/05/2022,90131141,612.5,ALPENBEST LTD,SOCIAL SERVICES DAY CARE,Adult Social Care & Health,Personal Budget - Third Party,A61019
Royal Borough of Kingston,18/04/2022,90119353,612.51,ALPENBEST LTD,SOCIAL SERVICES DAY CARE,Adult Social Care & Health,Homecare - new framework,A56127
Royal Borough of Kingston,18/04/2022,90119477,612.51,ALPENBEST LTD,SOCIAL SERVICES DAY CARE,Adult Social Care & Health,Homecare - new framework,A56127
Royal Borough of Kingston,02/05/2022,90124587,612.51,ALPENBEST LTD,SOCIAL SERVICES DAY CARE,Adult Social Care & Health,Homecare - new framework,A56127
Royal Borough of Kingston,02/05/2022,90124758,612.51,ALPENBEST LTD,SOCIAL SERVICES DAY CARE,Adult Social Care & Health,Homecare - new framework,A56127
Royal Borough of Kingston,16/05/2022,90130583,612.51,ALPENBEST LTD,SOCIAL SERVICES DAY CARE,Adult Social Care & Health,Homecare - new framework,A56127
Royal Borough of Kingston,25/04/2022,90122210,621.25,ALPENBEST LTD,SOCIAL SERVICES DAY CARE,Adult Social Care & Health,Homecare - new framework,A56127
Royal Borough of Kingston,02/05/2022,90124986,621.25,ALPENBEST LTD,SOCIAL SERVICES DAY CARE,Adult Social Care & Health,Homecare - new framework,A56127
Royal Borough of Kingston,09/05/2022,90127155,621.25,ALPENBEST LTD,SOCIAL SERVICES DAY CARE,Adult Social Care & Health,Homecare - new framework,A56127
Royal Borough of Kingston,09/05/2022,90127315,673.75,ALPENBEST LTD,SOCIAL SERVICES DAY CARE,Adult Social Care & Health,Homecare - new framework,A56127
Royal Borough of Kingston,16/05/2022,90130946,673.75,ALPENBEST LTD,SOCIAL SERVICES DAY CARE,Adult Social Care & Health,Homecare - new framework,A56127
Royal Borough of Kingston,18/04/2022,90119717,726.26,ALPENBEST LTD,SOCIAL SERVICES DAY CARE,Adult Social Care & Health,Homecare - new framework,A56127
Royal Borough of Kingston,25/04/2022,90122375,726.26,ALPENBEST LTD,SOCIAL SERVICES DAY CARE,Adult Social Care & Health,Homecare - new framework,A56127
Royal Borough of Kingston,02/05/2022,90124993,726.26,ALPENBEST LTD,SOCIAL SERVICES DAY CARE,Adult Social Care & Health,Homecare - new framework,A56127
Royal Borough of Kingston,09/05/2022,90127327,726.26,ALPENBEST LTD,SOCIAL SERVICES DAY CARE,Adult Social Care & Health,Homecare - new framework,A56127
Royal Borough of Kingston,16/05/2022,90130954,726.26,ALPENBEST LTD,SOCIAL SERVICES DAY CARE,Adult Social Care & Health,Homecare - new framework,A56127
Royal Borough of Kingston,18/04/2022,90119843,735.01,ALPENBEST LTD,SOCIAL SERVICES DAY CARE,Adult Social Care & Health,Personal Budget - Third Party,A61019
Royal Borough of Kingston,02/05/2022,90125147,735.01,ALPENBEST LTD,SOCIAL SERVICES DAY CARE,Adult Social Care & Health,Personal Budget - Third Party,A61019
Royal Borough of Kingston,16/05/2022,90130673,735.01,ALPENBEST LTD,SOCIAL SERVICES DAY CARE,Adult Social Care & Health,Homecare - new framework,A56127
Royal Borough of Kingston,25/04/2022,90122777,743.76,ALPENBEST LTD,SOCIAL SERVICES DAY CARE,Adult Social Care & Health,Personal Budget - Third Party,A61019
Royal Borough of Kingston,18/04/2022,90119314,796.26,ALPENBEST LTD,SOCIAL SERVICES DAY CARE,Adult Social Care & Health,Homecare - new framework,A56127
Royal Borough of Kingston,25/04/2022,90121941,796.26,ALPENBEST LTD,SOCIAL SERVICES DAY CARE,Adult Social Care & Health,Homecare - new framework,A56127
Royal Borough of Kingston,02/05/2022,90124601,796.26,ALPENBEST LTD,SOCIAL SERVICES DAY CARE,Adult Social Care & Health,Homecare - new framework,A56127
Royal Borough of Kingston,09/05/2022,90126918,796.26,ALPENBEST LTD,SOCIAL SERVICES DAY CARE,Adult Social Care & Health,Homecare - new framework,A56127
Royal Borough of Kingston,16/05/2022,90130551,796.26,ALPENBEST LTD,SOCIAL SERVICES DAY CARE,Adult Social Care & Health,Homecare - new framework,A56127
Royal Borough of Kingston,09/05/2022,90126908,"1,439.38",ALPENBEST LTD,SOCIAL SERVICES DAY CARE,Adult Social Care & Health,Homecare - new framework,A56127
Royal Borough of Kingston,18/04/2022,90119369,"1,470.01",ALPENBEST LTD,SOCIAL SERVICES DAY CARE,Adult Social Care & Health,Homecare - new framework,A56127
Royal Borough of Kingston,25/04/2022,90122005,"1,470.01",ALPENBEST LTD,SOCIAL SERVICES DAY CARE,Adult Social Care & Health,Homecare - new framework,A56127
Royal Borough of Kingston,02/05/2022,90124659,"1,470.01",ALPENBEST LTD,SOCIAL SERVICES DAY CARE,Adult Social Care & Health,Homecare - new framework,A56127
Royal Borough of Kingston,09/05/2022,90126970,"1,470.01",ALPENBEST LTD,SOCIAL SERVICES DAY CARE,Adult Social Care & Health,Homecare - new framework,A56127
Royal Borough of Kingston,16/05/2022,90130605,"1,470.01",ALPENBEST LTD,SOCIAL SERVICES DAY CARE,Adult Social Care & Health,Homecare - new framework,A56127
Royal Borough of Kingston,09/05/2022,90126907,"1,635.37",ALPENBEST LTD,SOCIAL SERVICES DAY CARE,Adult Social Care & Health,Homecare - new framework,A56127
Royal Borough of Kingston,16/05/2022,90130547,"2,453.06",ALPENBEST LTD,SOCIAL SERVICES DAY CARE,Adult Social Care & Health,Homecare - new framework,A56127
Royal Borough of Kingston,16/05/2022,90130538,"2,861.90",ALPENBEST LTD,SOCIAL SERVICES DAY CARE,Adult Social Care & Health,Homecare - new framework,A56127
Royal Borough of Kingston,30/04/2022,70023437,"12,096.00",Ambika Security Limited,LEGAL & PROFESSIONAL SERVICES,Housing Revenue Account,Consultancy Services - Other,A44065
Royal Borough of Kingston,27/04/2022,70023467,"69,178.00",Anavo Capital Ltd,FM SERVICES,Adult Social Care & Health,"Grants, Contributions & Donations",A47005
Royal Borough of Kingston,18/04/2022,70023561,6.22,ANGLIAN WATER BUSINESS NATIONAL LTD,UTILITIES,Corporate & Communities,Water Services,A24005
Royal Borough of Kingston,18/04/2022,70023561,8.42,ANGLIAN WATER BUSINESS NATIONAL LTD,UTILITIES,Corporate & Communities,Water Services,A24005
Royal Borough of Kingston,18/04/2022,70023561,8.43,ANGLIAN WATER BUSINESS NATIONAL LTD,UTILITIES,Place,Water Services,A24005
Royal Borough of Kingston,18/04/2022,70023561,11.81,ANGLIAN WATER BUSINESS NATIONAL LTD,UTILITIES,Corporate & Communities,Water Services,A24005
Royal Borough of Kingston,18/04/2022,70023561,14.31,ANGLIAN WATER BUSINESS NATIONAL LTD,UTILITIES,Corporate & Communities,Water Services,A24005
Royal Borough of Kingston,18/04/2022,70023561,23.6,ANGLIAN WATER BUSINESS NATIONAL LTD,UTILITIES,Corporate & Communities,Water Services,A24005
Royal Borough of Kingston,18/04/2022,70023561,23.88,ANGLIAN WATER BUSINESS NATIONAL LTD,UTILITIES,Corporate & Communities,Water Services,A24005
Royal Borough of Kingston,18/04/2022,70023561,39.24,ANGLIAN WATER BUSINESS NATIONAL LTD,UTILITIES,Place,Water Services,A24005
Royal Borough of Kingston,18/04/2022,70023561,91.56,ANGLIAN WATER BUSINESS NATIONAL LTD,UTILITIES,Corporate & Communities,Water Services,A24005
Royal Borough of Kingston,18/04/2022,70023561,360.84,ANGLIAN WATER BUSINESS NATIONAL LTD,UTILITIES,Corporate & Communities,Water Services,A24005
Royal Borough of Kingston,18/04/2022,70023561,360.84,ANGLIAN WATER BUSINESS NATIONAL LTD,UTILITIES,Place,Water Services,A24005
Royal Borough of Kingston,08/04/2022,70023489,"1,029.35",ANGLIAN WATER BUSINESS NATIONAL LTD,UTILITIES,Housing Revenue Account,Water Services,A24005
Royal Borough of Kingston,19/04/2022,70023488,"1,747.40",ANGLIAN WATER BUSINESS NATIONAL LTD,UTILITIES,Housing Revenue Account,Water Services,A24005
Royal Borough of Kingston,31/03/2022,70022910,"6,304.48",AON UK LTD,FINANCIAL / INSURANCE INSTNS,Corporate & Communities,General Insurance (Excl Premises & Transport),A44260
Royal Borough of Kingston,09/05/2022,70023708,"1,035.00",AP RENTAL INC LTD ,LANDLORDS,Adult Social Care & Health,Housing Benefit - Rent Allowances -Private Tenants Only,A62009
Royal Borough of Kingston,09/05/2022,70023702,"1,085.00",AP RENTAL INC LTD ,LANDLORDS,Adult Social Care & Health,Housing Benefit - Rent Allowances -Private Tenants Only,A62009
Royal Borough of Kingston,09/05/2022,70023707,"1,200.00",AP RENTAL INC LTD ,LANDLORDS,Adult Social Care & Health,Housing Benefit - Rent Allowances -Private Tenants Only,A62009
Royal Borough of Kingston,09/05/2022,70023705,"1,235.00",AP RENTAL INC LTD ,LANDLORDS,Adult Social Care & Health,Housing Benefit - Rent Allowances -Private Tenants Only,A62009
Royal Borough of Kingston,09/05/2022,70023706,"1,235.00",AP RENTAL INC LTD ,LANDLORDS,Adult Social Care & Health,Housing Benefit - Rent Allowances -Private Tenants Only,A62009
Royal Borough of Kingston,09/05/2022,70023703,"1,260.00",AP RENTAL INC LTD ,LANDLORDS,Adult Social Care & Health,Housing Benefit - Rent Allowances -Private Tenants Only,A62009
Royal Borough of Kingston,31/03/2022,70023520,594,APEX HOUSING SOLUTIONS LTD,ACCOMMODATION BED & BREAKFAST,Place,Bed & Breakfast,A56000
Royal Borough of Kingston,21/04/2022,70024838,"2,746.40",Archadia (UK) Ltd,SUNDRY SUPPLIER - HOUSING,Capital Programme,Grants Given For Capital Purposes,C20004
Royal Borough of Kingston,01/05/2022,90129788,"6,303.76",ASHCROFT CARE SERVICES LIMITED,SOCIAL SERVICES RESIDENTIAL,Adult Social Care & Health,Independent Placements,A56006
Royal Borough of Kingston,01/05/2022,90130221,952.32,ASHINGTON HOUSE LTD,SOCIAL SERVICES RESIDENTIAL,Adult Social Care & Health,Personal Budget - Third Party,A61019
Royal Borough of Kingston,01/05/2022,90130161,"1,349.25",ASHPRIME PROPERTIES LTD,SOCIAL SERVICES RESIDENTIAL,Adult Social Care & Health,Personal Budget - Third Party,A61019
Royal Borough of Kingston,01/05/2022,90130208,"2,655.50",Aspirations Care Ltd,SOCIAL SERVICES - OTHER,Adult Social Care & Health,Personal Budget - Third Party,A61019
Royal Borough of Kingston,01/05/2022,90129628,"3,950.20",ASPREY HEALTHCARE LTD,SOCIAL SERVICES RESIDENTIAL,Adult Social Care & Health,Independent Placements,A56006
Royal Borough of Kingston,01/05/2022,90129636,"4,531.14",ASPREY HEALTHCARE LTD,SOCIAL SERVICES RESIDENTIAL,Adult Social Care & Health,Independent Placements,A56006
Royal Borough of Kingston,01/05/2022,90129510,"5,245.47",ASPREY HEALTHCARE LTD,SOCIAL SERVICES RESIDENTIAL,Adult Social Care & Health,Independent Placements,A56006
Royal Borough of Kingston,01/05/2022,90129490,"4,852.08",ASTORIA HEALTHCARE LTD,SOCIAL SERVICES RESIDENTIAL,Adult Social Care & Health,Independent Placements,A56006
Royal Borough of Kingston,20/05/2022,90126634,"1,094.34",AUMKARA INVESTMENTS LTD,PLS LANDLORDS,Place,PSL Payments To Landlords,A22031
Royal Borough of Kingston,20/05/2022,90126635,"1,094.34",AUMKARA INVESTMENTS LTD,PLS LANDLORDS,Place,PSL Payments To Landlords,A22031
Royal Borough of Kingston,20/05/2022,90126636,"1,094.34",AUMKARA INVESTMENTS LTD,PLS LANDLORDS,Place,PSL Payments To Landlords,A22031
Royal Borough of Kingston,01/05/2022,90129702,"11,345.03",AUTISM CONSULTANTS LTD,SOCIAL SERVICES RESIDENTIAL,Adult Social Care & Health,Independent Placements,A56006
Royal Borough of Kingston,01/05/2022,70023428,"1,584.45",AVICENNA PSYCHIATRY,SOCIAL SERVICES - OTHER,Adult Social Care & Health,Other Private Contractors - Third Party,A56080
Royal Borough of Kingston,14/04/2022,70022391,"1,955.20",AVICENNA PSYCHIATRY,SOCIAL SERVICES - OTHER,Adult Social Care & Health,Other Private Contractors - Third Party,A56080
Royal Borough of Kingston,09/05/2022,90122906,450.03,AXIS EUROPE PLC,CONSTRUCTION INDUSTRY,Housing Revenue Account,Electrical Repairs,A20002
Royal Borough of Kingston,31/03/2022,70021525,481.27,AXIS EUROPE PLC,CONSTRUCTION INDUSTRY,Capital Programme,Council Dwellings - Capitalised Voids,C10001
Royal Borough of Kingston,31/03/2022,70021524,493.88,AXIS EUROPE PLC,CONSTRUCTION INDUSTRY,Capital Programme,Council Dwellings - Capitalised Voids,C10001
Royal Borough of Kingston,31/03/2022,70021522,537.63,AXIS EUROPE PLC,CONSTRUCTION INDUSTRY,Capital Programme,Council Dwellings - Capitalised Voids,C10001
Royal Borough of Kingston,09/05/2022,70023775,552.9,AXIS EUROPE PLC,CONSTRUCTION INDUSTRY,Capital Programme,Council Dwellings - Capitalised Voids,C10001
Royal Borough of Kingston,30/04/2022,70023367,623.21,AXIS EUROPE PLC,CONSTRUCTION INDUSTRY,Capital Programme,Council Dwellings - Capitalised Voids,C10001
Royal Borough of Kingston,09/05/2022,70023773,679.86,AXIS EUROPE PLC,CONSTRUCTION INDUSTRY,Capital Programme,Asbestos Removal,C10000
Royal Borough of Kingston,31/03/2022,70021519,747.32,AXIS EUROPE PLC,CONSTRUCTION INDUSTRY,Capital Programme,Council Dwellings - Capitalised Voids,C10001
Royal Borough of Kingston,31/03/2022,70021518,758.23,AXIS EUROPE PLC,CONSTRUCTION INDUSTRY,Capital Programme,Council Dwellings - Capitalised Voids,C10001
Royal Borough of Kingston,09/05/2022,70023815,793.89,AXIS EUROPE PLC,CONSTRUCTION INDUSTRY,Capital Programme,Council Dwellings - Fire Safety,C10004
Royal Borough of Kingston,09/05/2022,70023777,824.03,AXIS EUROPE PLC,CONSTRUCTION INDUSTRY,Capital Programme,Council Dwellings - Capitalised Voids,C10001
Royal Borough of Kingston,31/03/2022,70021517,846.35,AXIS EUROPE PLC,CONSTRUCTION INDUSTRY,Capital Programme,Council Dwellings - Capitalised Voids,C10001
Royal Borough of Kingston,09/05/2022,70023776,859.42,AXIS EUROPE PLC,CONSTRUCTION INDUSTRY,Capital Programme,Council Dwellings - Capitalised Voids,C10001
Royal Borough of Kingston,09/05/2022,70023765,879.66,AXIS EUROPE PLC,CONSTRUCTION INDUSTRY,Capital Programme,Council Dwellings - Capitalised Voids,C10001
Royal Borough of Kingston,09/05/2022,70023812,894.75,AXIS EUROPE PLC,CONSTRUCTION INDUSTRY,Capital Programme,Council Dwellings - Capitalised Voids,C10001
Royal Borough of Kingston,28/04/2022,90119249,943.37,AXIS EUROPE PLC,CONSTRUCTION INDUSTRY,Housing Revenue Account,Electrical Repairs,A20002
Royal Borough of Kingston,09/05/2022,70023809,968.8,AXIS EUROPE PLC,CONSTRUCTION INDUSTRY,Capital Programme,Council Dwellings - Capitalised Voids,C10001
Royal Borough of Kingston,09/03/2022,70023848,977.57,AXIS EUROPE PLC,CONSTRUCTION INDUSTRY,Capital Programme,Council Dwellings - Construction & Renovation,C10002
Royal Borough of Kingston,09/05/2022,70023766,"1,057.06",AXIS EUROPE PLC,CONSTRUCTION INDUSTRY,Capital Programme,Council Dwellings - Capitalised Voids,C10001
Royal Borough of Kingston,09/05/2022,70023772,"1,110.97",AXIS EUROPE PLC,CONSTRUCTION INDUSTRY,Capital Programme,Asbestos Removal,C10000
Royal Borough of Kingston,31/03/2022,70021520,"1,166.75",AXIS EUROPE PLC,CONSTRUCTION INDUSTRY,Capital Programme,Council Dwellings - Capitalised Voids,C10001
Royal Borough of Kingston,28/04/2022,90119247,"1,292.78",AXIS EUROPE PLC,CONSTRUCTION INDUSTRY,Housing Revenue Account,Electrical Repairs,A20002
Royal Borough of Kingston,09/05/2022,70023770,"1,302.88",AXIS EUROPE PLC,CONSTRUCTION INDUSTRY,Capital Programme,Council Dwellings - Capitalised Voids,C10001
Royal Borough of Kingston,31/03/2022,70021516,"1,341.51",AXIS EUROPE PLC,CONSTRUCTION INDUSTRY,Capital Programme,Council Dwellings - Capitalised Voids,C10001
Royal Borough of Kingston,30/04/2022,70023458,"1,346.51",AXIS EUROPE PLC,CONSTRUCTION INDUSTRY,Place,Void Property Repairs,A20036
Royal Borough of Kingston,30/04/2022,70023364,"1,369.36",AXIS EUROPE PLC,CONSTRUCTION INDUSTRY,Housing Revenue Account,Consultancy Services - Other,A44065
Royal Borough of Kingston,09/05/2022,70023779,"1,402.71",AXIS EUROPE PLC,CONSTRUCTION INDUSTRY,Capital Programme,Council Dwellings - Capitalised Voids,C10001
Royal Borough of Kingston,31/03/2022,70021523,"1,514.53",AXIS EUROPE PLC,CONSTRUCTION INDUSTRY,Capital Programme,Council Dwellings - Capitalised Voids,C10001
Royal Borough of Kingston,28/04/2022,90119250,"1,535.52",AXIS EUROPE PLC,CONSTRUCTION INDUSTRY,Housing Revenue Account,Property Repairs & Maintenance & Alterations - Responsive,A20011
Royal Borough of Kingston,29/04/2022,70023331,"1,562.80",AXIS EUROPE PLC,CONSTRUCTION INDUSTRY,Housing Revenue Account,Void Property Repairs,A20036
Royal Borough of Kingston,28/04/2022,90119248,"1,622.91",AXIS EUROPE PLC,CONSTRUCTION INDUSTRY,Housing Revenue Account,Property Repairs & Maintenance & Alterations - Responsive,A20011
Royal Borough of Kingston,09/05/2022,70023762,"1,808.23",AXIS EUROPE PLC,CONSTRUCTION INDUSTRY,Capital Programme,Council Dwellings - Capitalised Voids,C10001
Royal Borough of Kingston,30/04/2022,70023368,"1,825.55",AXIS EUROPE PLC,CONSTRUCTION INDUSTRY,Capital Programme,Council Dwellings - Construction & Renovation,C10002
Royal Borough of Kingston,10/05/2022,70023847,"1,871.79",AXIS EUROPE PLC,CONSTRUCTION INDUSTRY,Capital Programme,Council Dwellings - Fire Safety,C10004
Royal Borough of Kingston,30/04/2022,70023386,"2,029.14",AXIS EUROPE PLC,CONSTRUCTION INDUSTRY,Capital Programme,Council Dwellings - Construction & Renovation,C10002
Royal Borough of Kingston,30/04/2022,70023390,"2,063.41",AXIS EUROPE PLC,CONSTRUCTION INDUSTRY,Capital Programme,Council Dwellings - Construction & Renovation,C10002
Royal Borough of Kingston,30/04/2022,70023379,"2,102.68",AXIS EUROPE PLC,CONSTRUCTION INDUSTRY,Capital Programme,Council Dwellings - Construction & Renovation,C10002
Royal Borough of Kingston,28/04/2022,90119251,"2,105.67",AXIS EUROPE PLC,CONSTRUCTION INDUSTRY,Housing Revenue Account,Other Property Repairs & Maintenance,A20007
Royal Borough of Kingston,30/04/2022,70023387,"2,118.26",AXIS EUROPE PLC,CONSTRUCTION INDUSTRY,Capital Programme,Council Dwellings - Construction & Renovation,C10002
Royal Borough of Kingston,30/04/2022,70023392,"2,137.10",AXIS EUROPE PLC,CONSTRUCTION INDUSTRY,Capital Programme,Council Dwellings - Construction & Renovation,C10002
Royal Borough of Kingston,30/04/2022,70023377,"2,145.54",AXIS EUROPE PLC,CONSTRUCTION INDUSTRY,Capital Programme,Council Dwellings - Construction & Renovation,C10002
Royal Borough of Kingston,30/04/2022,70023375,"2,153.09",AXIS EUROPE PLC,CONSTRUCTION INDUSTRY,Capital Programme,Council Dwellings - Construction & Renovation,C10002
Royal Borough of Kingston,29/04/2022,70023333,"2,202.18",AXIS EUROPE PLC,CONSTRUCTION INDUSTRY,Housing Revenue Account,Electrical Repairs,A20002
Royal Borough of Kingston,28/04/2022,90119252,"2,222.81",AXIS EUROPE PLC,CONSTRUCTION INDUSTRY,Housing Revenue Account,Property Repairs & Maintenance & Alterations - Responsive,A20011
Royal Borough of Kingston,30/04/2022,70023397,"2,225.45",AXIS EUROPE PLC,CONSTRUCTION INDUSTRY,Capital Programme,Council Dwellings - Construction & Renovation,C10002
Royal Borough of Kingston,30/04/2022,70023380,"2,283.05",AXIS EUROPE PLC,CONSTRUCTION INDUSTRY,Capital Programme,Council Dwellings - Construction & Renovation,C10002
Royal Borough of Kingston,30/04/2022,70023382,"2,315.47",AXIS EUROPE PLC,CONSTRUCTION INDUSTRY,Capital Programme,Council Dwellings - Construction & Renovation,C10002
Royal Borough of Kingston,30/04/2022,70023391,"2,377.23",AXIS EUROPE PLC,CONSTRUCTION INDUSTRY,Capital Programme,Council Dwellings - Construction & Renovation,C10002
Royal Borough of Kingston,30/04/2022,70023372,"2,387.63",AXIS EUROPE PLC,CONSTRUCTION INDUSTRY,Capital Programme,Council Dwellings - Construction & Renovation,C10002
Royal Borough of Kingston,09/05/2022,70023767,"2,389.92",AXIS EUROPE PLC,CONSTRUCTION INDUSTRY,Capital Programme,Council Dwellings - Capitalised Voids,C10001
Royal Borough of Kingston,30/04/2022,70023396,"2,394.55",AXIS EUROPE PLC,CONSTRUCTION INDUSTRY,Capital Programme,Council Dwellings - Construction & Renovation,C10002
Royal Borough of Kingston,30/04/2022,70023376,"2,461.73",AXIS EUROPE PLC,CONSTRUCTION INDUSTRY,Capital Programme,Council Dwellings - Construction & Renovation,C10002
Royal Borough of Kingston,30/04/2022,70023378,"2,465.71",AXIS EUROPE PLC,CONSTRUCTION INDUSTRY,Capital Programme,Council Dwellings - Construction & Renovation,C10002
Royal Borough of Kingston,30/04/2022,70023393,"2,486.41",AXIS EUROPE PLC,CONSTRUCTION INDUSTRY,Capital Programme,Council Dwellings - Construction & Renovation,C10002
Royal Borough of Kingston,30/04/2022,70023381,"2,550.51",AXIS EUROPE PLC,CONSTRUCTION INDUSTRY,Capital Programme,Council Dwellings - Construction & Renovation,C10002
Royal Borough of Kingston,09/05/2022,70023808,"2,568.36",AXIS EUROPE PLC,CONSTRUCTION INDUSTRY,Capital Programme,Council Dwellings - Construction & Renovation,C10002
Royal Borough of Kingston,30/04/2022,70023383,"2,744.64",AXIS EUROPE PLC,CONSTRUCTION INDUSTRY,Capital Programme,Council Dwellings - Construction & Renovation,C10002
Royal Borough of Kingston,31/03/2022,70023752,"2,835.10",AXIS EUROPE PLC,CONSTRUCTION INDUSTRY,Capital Programme,Council Dwellings - Capitalised Voids,C10001
Royal Borough of Kingston,09/05/2022,70023814,"2,950.28",AXIS EUROPE PLC,CONSTRUCTION INDUSTRY,Capital Programme,Council Dwellings - Capitalised Voids,C10001
Royal Borough of Kingston,30/04/2022,70023384,"2,961.64",AXIS EUROPE PLC,CONSTRUCTION INDUSTRY,Capital Programme,Council Dwellings - Construction & Renovation,C10002
Royal Borough of Kingston,30/04/2022,70023374,"3,048.87",AXIS EUROPE PLC,CONSTRUCTION INDUSTRY,Capital Programme,Council Dwellings - Construction & Renovation,C10002
Royal Borough of Kingston,30/04/2022,70023398,"3,102.90",AXIS EUROPE PLC,CONSTRUCTION INDUSTRY,Capital Programme,Council Dwellings - Construction & Renovation,C10002
Royal Borough of Kingston,09/05/2022,90122908,"3,111.00",AXIS EUROPE PLC,CONSTRUCTION INDUSTRY,Housing Revenue Account,Property Repairs & Maintenance & Alterations - Responsive,A20011
Royal Borough of Kingston,30/04/2022,70023395,"3,196.39",AXIS EUROPE PLC,CONSTRUCTION INDUSTRY,Capital Programme,Council Dwellings - Construction & Renovation,C10002
Royal Borough of Kingston,30/04/2022,70023388,"3,323.05",AXIS EUROPE PLC,CONSTRUCTION INDUSTRY,Capital Programme,Council Dwellings - Construction & Renovation,C10002
Royal Borough of Kingston,09/05/2022,70023768,"3,338.30",AXIS EUROPE PLC,CONSTRUCTION INDUSTRY,Capital Programme,Council Dwellings - Capitalised Voids,C10001
Royal Borough of Kingston,30/04/2022,70023373,"3,395.44",AXIS EUROPE PLC,CONSTRUCTION INDUSTRY,Capital Programme,Council Dwellings - Construction & Renovation,C10002
Royal Borough of Kingston,30/04/2022,70023365,"3,467.32",AXIS EUROPE PLC,CONSTRUCTION INDUSTRY,Capital Programme,Council Dwellings - Construction & Renovation,C10002
Royal Borough of Kingston,30/04/2022,70023385,"3,486.47",AXIS EUROPE PLC,CONSTRUCTION INDUSTRY,Capital Programme,Council Dwellings - Construction & Renovation,C10002
Royal Borough of Kingston,30/04/2022,70023394,"3,544.04",AXIS EUROPE PLC,CONSTRUCTION INDUSTRY,Capital Programme,Council Dwellings - Construction & Renovation,C10002
Royal Borough of Kingston,30/04/2022,70023389,"3,624.60",AXIS EUROPE PLC,CONSTRUCTION INDUSTRY,Capital Programme,Council Dwellings - Construction & Renovation,C10002
Royal Borough of Kingston,31/03/2022,70021521,"3,779.05",AXIS EUROPE PLC,CONSTRUCTION INDUSTRY,Capital Programme,Council Dwellings - Capitalised Voids,C10001
Royal Borough of Kingston,09/05/2022,70023774,"3,800.27",AXIS EUROPE PLC,CONSTRUCTION INDUSTRY,Capital Programme,Council Dwellings - Construction & Renovation,C10002
Royal Borough of Kingston,29/04/2022,70023332,"4,476.57",AXIS EUROPE PLC,CONSTRUCTION INDUSTRY,Housing Revenue Account,Housing - Heating & Ventilation,A20045
Royal Borough of Kingston,09/05/2022,70023792,"4,733.84",AXIS EUROPE PLC,CONSTRUCTION INDUSTRY,Housing Revenue Account,Property Repairs & Maintenance & Alterations - Responsive,A20011
Royal Borough of Kingston,09/05/2022,70023795,"5,386.54",AXIS EUROPE PLC,CONSTRUCTION INDUSTRY,Capital Programme,Council Dwellings - Construction & Renovation,C10002
Royal Borough of Kingston,09/05/2022,70023771,"5,564.35",AXIS EUROPE PLC,CONSTRUCTION INDUSTRY,Capital Programme,Council Dwellings - Capitalised Voids,C10001
Royal Borough of Kingston,31/03/2022,70021526,"5,631.80",AXIS EUROPE PLC,CONSTRUCTION INDUSTRY,Capital Programme,Council Dwellings - Capitalised Voids,C10001
Royal Borough of Kingston,29/03/2022,70023751,"5,744.02",AXIS EUROPE PLC,CONSTRUCTION INDUSTRY,Capital Programme,Council Dwellings - Construction & Renovation,C10002
Royal Borough of Kingston,10/05/2022,70023849,"5,931.10",AXIS EUROPE PLC,CONSTRUCTION INDUSTRY,Capital Programme,Council Dwellings - Construction & Renovation,C10002
Royal Borough of Kingston,28/04/2022,70023297,"6,054.53",AXIS EUROPE PLC,CONSTRUCTION INDUSTRY,Capital Programme,Council Dwellings - Construction & Renovation,C10002
Royal Borough of Kingston,09/05/2022,70023763,"6,316.83",AXIS EUROPE PLC,CONSTRUCTION INDUSTRY,Capital Programme,Council Dwellings - Capitalised Voids,C10001
Royal Borough of Kingston,09/05/2022,70023811,"6,561.54",AXIS EUROPE PLC,CONSTRUCTION INDUSTRY,Capital Programme,Council Dwellings - Capitalised Voids,C10001
Royal Borough of Kingston,09/05/2022,90122910,"6,628.26",AXIS EUROPE PLC,CONSTRUCTION INDUSTRY,Housing Revenue Account,Property Repairs & Maintenance & Alterations - Responsive,A20011
Royal Borough of Kingston,09/05/2022,70023790,"6,801.01",AXIS EUROPE PLC,CONSTRUCTION INDUSTRY,Capital Programme,Council Dwellings - Construction & Renovation,C10002
Royal Borough of Kingston,31/03/2022,70021533,"8,299.27",AXIS EUROPE PLC,CONSTRUCTION INDUSTRY,Capital Programme,Council Dwellings - Capitalised Voids,C10001
Royal Borough of Kingston,29/04/2022,70023338,"8,912.40",AXIS EUROPE PLC,CONSTRUCTION INDUSTRY,Housing Revenue Account,Property Repairs & Maintenance & Alterations - Responsive,A20011
Royal Borough of Kingston,30/04/2022,70023370,"9,408.00",AXIS EUROPE PLC,CONSTRUCTION INDUSTRY,Capital Programme,Council Dwellings - Construction & Renovation,C10002
Royal Borough of Kingston,09/05/2022,70023813,"9,470.90",AXIS EUROPE PLC,CONSTRUCTION INDUSTRY,Capital Programme,Council Dwellings - Capitalised Voids,C10001
Royal Borough of Kingston,30/04/2022,70023369,"11,743.32",AXIS EUROPE PLC,CONSTRUCTION INDUSTRY,Capital Programme,Disabled Adaptations,C20003
Royal Borough of Kingston,30/04/2022,70023522,"13,733.76",AXIS EUROPE PLC,CONSTRUCTION INDUSTRY,Capital Programme,Council Dwellings - Construction & Renovation,C10002
Royal Borough of Kingston,30/04/2022,70023371,"15,410.16",AXIS EUROPE PLC,CONSTRUCTION INDUSTRY,Capital Programme,Disabled Adaptations,C20003
Royal Borough of Kingston,10/05/2022,70023846,"24,955.83",AXIS EUROPE PLC,CONSTRUCTION INDUSTRY,Capital Programme,Council Dwellings - Construction & Renovation,C10002
Royal Borough of Kingston,31/03/2022,70023823,"24,976.58",AXIS EUROPE PLC,CONSTRUCTION INDUSTRY,Capital Programme,Council Dwellings - Capitalised Voids,C10001
Royal Borough of Kingston,01/05/2022,90130194,"-1,724.94",BALANCE (SUPPORT) C.I.C,SOCIAL SERVICES - OTHER,Adult Social Care & Health,Personal Budget - Third Party,A61019
Royal Borough of Kingston,01/05/2022,90129870,-891.63,BALANCE (SUPPORT) C.I.C,SOCIAL SERVICES - OTHER,Adult Social Care & Health,Supported Living - new framework,A56126
Royal Borough of Kingston,01/05/2022,90129845,526.48,BALANCE (SUPPORT) C.I.C,SOCIAL SERVICES - OTHER,Adult Social Care & Health,Supported Living - new framework,A56126
Royal Borough of Kingston,01/05/2022,90130047,527.49,BALANCE (SUPPORT) C.I.C,SOCIAL SERVICES - OTHER,Adult Social Care & Health,Personal Budget - Third Party,A61019
Royal Borough of Kingston,01/05/2022,90129915,548.27,BALANCE (SUPPORT) C.I.C,SOCIAL SERVICES - OTHER,Adult Social Care & Health,Personal Budget - Third Party,A61019
Royal Borough of Kingston,01/05/2022,90129916,548.27,BALANCE (SUPPORT) C.I.C,SOCIAL SERVICES - OTHER,Adult Social Care & Health,Personal Budget - Third Party,A61019
Royal Borough of Kingston,01/05/2022,90130032,575.45,BALANCE (SUPPORT) C.I.C,SOCIAL SERVICES - OTHER,Adult Social Care & Health,Personal Budget - Third Party,A61019
Royal Borough of Kingston,01/05/2022,90130055,575.45,BALANCE (SUPPORT) C.I.C,SOCIAL SERVICES - OTHER,Adult Social Care & Health,Personal Budget - Third Party,A61019
Royal Borough of Kingston,01/05/2022,90130097,575.45,BALANCE (SUPPORT) C.I.C,SOCIAL SERVICES - OTHER,Adult Social Care & Health,Personal Budget - Third Party,A61019
Royal Borough of Kingston,01/05/2022,90130102,575.45,BALANCE (SUPPORT) C.I.C,SOCIAL SERVICES - OTHER,Adult Social Care & Health,Personal Budget - Third Party,A61019
Royal Borough of Kingston,01/05/2022,90130144,575.45,BALANCE (SUPPORT) C.I.C,SOCIAL SERVICES - OTHER,Adult Social Care & Health,Personal Budget - Third Party,A61019
Royal Borough of Kingston,01/05/2022,90130145,575.45,BALANCE (SUPPORT) C.I.C,SOCIAL SERVICES - OTHER,Adult Social Care & Health,Personal Budget - Third Party,A61019
Royal Borough of Kingston,01/05/2022,90130210,575.45,BALANCE (SUPPORT) C.I.C,SOCIAL SERVICES - OTHER,Adult Social Care & Health,Personal Budget - Third Party,A61019
Royal Borough of Kingston,01/05/2022,90130215,575.45,BALANCE (SUPPORT) C.I.C,SOCIAL SERVICES - OTHER,Adult Social Care & Health,Personal Budget - Third Party,A61019
Royal Borough of Kingston,01/05/2022,90130228,575.45,BALANCE (SUPPORT) C.I.C,SOCIAL SERVICES - OTHER,Adult Social Care & Health,Personal Budget - Third Party,A61019
Royal Borough of Kingston,01/05/2022,90130263,575.45,BALANCE (SUPPORT) C.I.C,SOCIAL SERVICES - OTHER,Adult Social Care & Health,Personal Budget - Third Party,A61019
Royal Borough of Kingston,01/05/2022,90130039,579.17,BALANCE (SUPPORT) C.I.C,SOCIAL SERVICES - OTHER,Adult Social Care & Health,Personal Budget - Third Party,A61019
Royal Borough of Kingston,01/05/2022,90129851,614.23,BALANCE (SUPPORT) C.I.C,SOCIAL SERVICES - OTHER,Adult Social Care & Health,Supported Living - new framework,A56126
Royal Borough of Kingston,01/05/2022,90130190,614.24,BALANCE (SUPPORT) C.I.C,SOCIAL SERVICES - OTHER,Adult Social Care & Health,Personal Budget - Third Party,A61019
Royal Borough of Kingston,01/05/2022,90129847,618.28,BALANCE (SUPPORT) C.I.C,SOCIAL SERVICES - OTHER,Adult Social Care & Health,Supported Living - new framework,A56126
Royal Borough of Kingston,01/05/2022,90130152,649.8,BALANCE (SUPPORT) C.I.C,SOCIAL SERVICES - OTHER,Adult Social Care & Health,Personal Budget - Third Party,A61019
Royal Borough of Kingston,01/05/2022,90130113,671.37,BALANCE (SUPPORT) C.I.C,SOCIAL SERVICES - OTHER,Adult Social Care & Health,Personal Budget - Third Party,A61019
Royal Borough of Kingston,01/05/2022,90130225,671.37,BALANCE (SUPPORT) C.I.C,SOCIAL SERVICES - OTHER,Adult Social Care & Health,Personal Budget - Third Party,A61019
Royal Borough of Kingston,02/05/2022,90129859,673.56,BALANCE (SUPPORT) C.I.C,SOCIAL SERVICES - OTHER,Adult Social Care & Health,Supported Living - new framework,A56126
Royal Borough of Kingston,01/05/2022,90129848,701.98,BALANCE (SUPPORT) C.I.C,SOCIAL SERVICES - OTHER,Adult Social Care & Health,Supported Living - new framework,A56126
Royal Borough of Kingston,01/05/2022,90129852,701.98,BALANCE (SUPPORT) C.I.C,SOCIAL SERVICES - OTHER,Adult Social Care & Health,Supported Living - new framework,A56126
Royal Borough of Kingston,01/05/2022,90130187,724.51,BALANCE (SUPPORT) C.I.C,SOCIAL SERVICES - OTHER,Adult Social Care & Health,Personal Budget - Third Party,A61019
Royal Borough of Kingston,02/05/2022,90129858,748.4,BALANCE (SUPPORT) C.I.C,SOCIAL SERVICES - OTHER,Adult Social Care & Health,Supported Living - new framework,A56126
Royal Borough of Kingston,01/05/2022,90130115,767.25,BALANCE (SUPPORT) C.I.C,SOCIAL SERVICES - OTHER,Adult Social Care & Health,Personal Budget - Third Party,A61019
Royal Borough of Kingston,01/05/2022,90130180,767.25,BALANCE (SUPPORT) C.I.C,SOCIAL SERVICES - OTHER,Adult Social Care & Health,Personal Budget - Third Party,A61019
Royal Borough of Kingston,01/05/2022,90130274,767.38,BALANCE (SUPPORT) C.I.C,SOCIAL SERVICES - OTHER,Adult Social Care & Health,Personal Budget - Third Party,A61019
Royal Borough of Kingston,01/05/2022,90130301,767.38,BALANCE (SUPPORT) C.I.C,SOCIAL SERVICES - OTHER,Adult Social Care & Health,Personal Budget - Third Party,A61019
Royal Borough of Kingston,01/05/2022,90130137,863.17,BALANCE (SUPPORT) C.I.C,SOCIAL SERVICES - OTHER,Adult Social Care & Health,Personal Budget - Third Party,A61019
Royal Borough of Kingston,01/05/2022,90130042,959.1,BALANCE (SUPPORT) C.I.C,SOCIAL SERVICES - OTHER,Adult Social Care & Health,Personal Budget - Third Party,A61019
Royal Borough of Kingston,01/05/2022,90130046,959.1,BALANCE (SUPPORT) C.I.C,SOCIAL SERVICES - OTHER,Adult Social Care & Health,Personal Budget - Third Party,A61019
Royal Borough of Kingston,01/05/2022,90130209,"1,007.06",BALANCE (SUPPORT) C.I.C,SOCIAL SERVICES - OTHER,Adult Social Care & Health,Personal Budget - Third Party,A61019
Royal Borough of Kingston,01/05/2022,90130030,"1,054.97",BALANCE (SUPPORT) C.I.C,SOCIAL SERVICES - OTHER,Adult Social Care & Health,Personal Budget - Third Party,A61019
Royal Borough of Kingston,02/05/2022,90129855,"1,122.60",BALANCE (SUPPORT) C.I.C,SOCIAL SERVICES - OTHER,Adult Social Care & Health,Supported Living - new framework,A56126
Royal Borough of Kingston,01/05/2022,90130294,"1,151.07",BALANCE (SUPPORT) C.I.C,SOCIAL SERVICES - OTHER,Adult Social Care & Health,Personal Budget - Third Party,A61019
Royal Borough of Kingston,01/05/2022,90130176,"1,246.82",BALANCE (SUPPORT) C.I.C,SOCIAL SERVICES - OTHER,Adult Social Care & Health,Personal Budget - Third Party,A61019
Royal Borough of Kingston,01/05/2022,90130214,"1,246.82",BALANCE (SUPPORT) C.I.C,SOCIAL SERVICES - OTHER,Adult Social Care & Health,Personal Budget - Third Party,A61019
Royal Borough of Kingston,01/05/2022,90130053,"1,294.78",BALANCE (SUPPORT) C.I.C,SOCIAL SERVICES - OTHER,Adult Social Care & Health,Personal Budget - Third Party,A61019
Royal Borough of Kingston,01/05/2022,90130045,"1,342.70",BALANCE (SUPPORT) C.I.C,SOCIAL SERVICES - OTHER,Adult Social Care & Health,Personal Budget - Third Party,A61019
Royal Borough of Kingston,01/05/2022,90130212,"1,342.70",BALANCE (SUPPORT) C.I.C,SOCIAL SERVICES - OTHER,Adult Social Care & Health,Personal Budget - Third Party,A61019
Royal Borough of Kingston,01/05/2022,90130065,"1,438.62",BALANCE (SUPPORT) C.I.C,SOCIAL SERVICES - OTHER,Adult Social Care & Health,Personal Budget - Third Party,A61019
Royal Borough of Kingston,01/05/2022,90130130,"1,438.62",BALANCE (SUPPORT) C.I.C,SOCIAL SERVICES - OTHER,Adult Social Care & Health,Personal Budget - Third Party,A61019
Royal Borough of Kingston,01/05/2022,90130105,"1,534.50",BALANCE (SUPPORT) C.I.C,SOCIAL SERVICES - OTHER,Adult Social Care & Health,Personal Budget - Third Party,A61019
Royal Borough of Kingston,01/05/2022,90130118,"1,630.42",BALANCE (SUPPORT) C.I.C,SOCIAL SERVICES - OTHER,Adult Social Care & Health,Personal Budget - Third Party,A61019
Royal Borough of Kingston,01/05/2022,90130183,"1,630.42",BALANCE (SUPPORT) C.I.C,SOCIAL SERVICES - OTHER,Adult Social Care & Health,Personal Budget - Third Party,A61019
Royal Borough of Kingston,01/05/2022,90130217,"1,726.35",BALANCE (SUPPORT) C.I.C,SOCIAL SERVICES - OTHER,Adult Social Care & Health,Personal Budget - Third Party,A61019
Royal Borough of Kingston,01/05/2022,90129849,"1,864.64",BALANCE (SUPPORT) C.I.C,SOCIAL SERVICES - OTHER,Adult Social Care & Health,Supported Living - new framework,A56126
Royal Borough of Kingston,01/05/2022,90129853,"1,864.64",BALANCE (SUPPORT) C.I.C,SOCIAL SERVICES - OTHER,Adult Social Care & Health,Supported Living - new framework,A56126
Royal Borough of Kingston,01/05/2022,90129793,"1,866.20",BALANCE (SUPPORT) C.I.C,SOCIAL SERVICES - OTHER,Adult Social Care & Health,Independent Placements,A56006
Royal Borough of Kingston,01/05/2022,90130203,"1,870.23",BALANCE (SUPPORT) C.I.C,SOCIAL SERVICES - OTHER,Adult Social Care & Health,Personal Budget - Third Party,A61019
Royal Borough of Kingston,11/05/2022,70024056,"1,929.28",BALANCE (SUPPORT) C.I.C,SOCIAL SERVICES - OTHER,Adult Social Care & Health,Supporting People Contracts,A56027
Royal Borough of Kingston,01/05/2022,90130193,"1,950.20",BALANCE (SUPPORT) C.I.C,SOCIAL SERVICES - OTHER,Adult Social Care & Health,Personal Budget - Third Party,A61019
Royal Borough of Kingston,01/05/2022,90130151,"2,014.07",BALANCE (SUPPORT) C.I.C,SOCIAL SERVICES - OTHER,Adult Social Care & Health,Personal Budget - Third Party,A61019
Royal Borough of Kingston,01/05/2022,90130062,"2,205.87",BALANCE (SUPPORT) C.I.C,SOCIAL SERVICES - OTHER,Adult Social Care & Health,Personal Budget - Third Party,A61019
Royal Borough of Kingston,01/05/2022,90130170,"2,234.13",BALANCE (SUPPORT) C.I.C,SOCIAL SERVICES - OTHER,Adult Social Care & Health,Personal Budget - Third Party,A61019
Royal Borough of Kingston,01/05/2022,90129846,"2,486.20",BALANCE (SUPPORT) C.I.C,SOCIAL SERVICES - OTHER,Adult Social Care & Health,Supported Living - new framework,A56126
Royal Borough of Kingston,01/05/2022,90130112,"2,644.74",BALANCE (SUPPORT) C.I.C,SOCIAL SERVICES - OTHER,Adult Social Care & Health,Personal Budget - Third Party,A61019
Royal Borough of Kingston,01/05/2022,90130049,"2,970.29",BALANCE (SUPPORT) C.I.C,SOCIAL SERVICES - OTHER,Adult Social Care & Health,Personal Budget - Third Party,A61019
Royal Borough of Kingston,01/05/2022,90130195,"3,022.81",BALANCE (SUPPORT) C.I.C,SOCIAL SERVICES - OTHER,Adult Social Care & Health,Personal Budget - Third Party,A61019
Royal Borough of Kingston,01/05/2022,90130150,"3,139.77",BALANCE (SUPPORT) C.I.C,SOCIAL SERVICES - OTHER,Adult Social Care & Health,Personal Budget - Third Party,A61019
Royal Borough of Kingston,01/05/2022,90130138,"3,221.08",BALANCE (SUPPORT) C.I.C,SOCIAL SERVICES - OTHER,Adult Social Care & Health,Personal Budget - Third Party,A61019
Royal Borough of Kingston,01/05/2022,90130153,"3,411.46",BALANCE (SUPPORT) C.I.C,SOCIAL SERVICES - OTHER,Adult Social Care & Health,Personal Budget - Third Party,A61019
Royal Borough of Kingston,01/05/2022,90130106,"3,580.90",BALANCE (SUPPORT) C.I.C,SOCIAL SERVICES - OTHER,Adult Social Care & Health,Personal Budget - Third Party,A61019
Royal Borough of Kingston,01/05/2022,90129917,"12,933.64",BALANCE (SUPPORT) C.I.C,SOCIAL SERVICES - OTHER,Adult Social Care & Health,Personal Budget - Third Party,A61019
Royal Borough of Kingston,09/05/2022,70023831,"92,250.00",BALANCE (SUPPORT) C.I.C,SOCIAL SERVICES - OTHER,Adult Social Care & Health,Professional Fees,A44066
Royal Borough of Kingston,26/05/2022,70025019,"92,250.00",BALANCE (SUPPORT) C.I.C,SOCIAL SERVICES - OTHER,Adult Social Care & Health,Professional Fees,A44066
Royal Borough of Kingston,28/04/2022,70023328,953.63,Banner Group Ltd,OFFICE SUPPLIES,Corporate & Communities,Stationery,A43015
Royal Borough of Kingston,01/05/2022,90129395,"3,625.80",BARCHESTER HEALTHCARE ,SOCIAL SERVICES RESIDENTIAL,Adult Social Care & Health,Independent Placements,A56006
Royal Borough of Kingston,01/05/2022,90129631,"4,486.28",BAVANI CARE HOME LIMITED,SOCIAL SERVICES RESIDENTIAL,Adult Social Care & Health,Independent Placements,A56006
Royal Borough of Kingston,25/03/2022,70023146,"12,681.00",BEVAN BRITTAN LLP,LEGAL & PROFESSIONAL SERVICES,Adult Social Care & Health,Professional Fees,A44066
Royal Borough of Kingston,31/03/2022,70023530,641.95,BFS GROUP LIMITED ,CATERING SERVICES,Adult Social Care & Health,Purchases for resale,A49004
Royal Borough of Kingston,29/04/2022,70023952,"3,894.10",BLAKE MORGAN LLP,LEGAL & PROFESSIONAL SERVICES,Capital Programme,External Legal Fees,C20008
Royal Borough of Kingston,25/04/2022,90122805,-758.85,BLUE ARROW CARE LTD,SOCIAL SERVICES-HOME CARE,Adult Social Care & Health,Personal Budget - Third Party,A61019
Royal Borough of Kingston,25/04/2022,90122806,-758.85,BLUE ARROW CARE LTD,SOCIAL SERVICES-HOME CARE,Adult Social Care & Health,Personal Budget - Third Party,A61019
Royal Borough of Kingston,18/04/2022,90119870,543.26,BLUE ARROW CARE LTD,SOCIAL SERVICES-HOME CARE,Adult Social Care & Health,Personal Budget - Third Party,A61019
Royal Borough of Kingston,18/04/2022,90119879,543.26,BLUE ARROW CARE LTD,SOCIAL SERVICES-HOME CARE,Adult Social Care & Health,Personal Budget - Third Party,A61019
Royal Borough of Kingston,25/04/2022,90122826,543.26,BLUE ARROW CARE LTD,SOCIAL SERVICES-HOME CARE,Adult Social Care & Health,Personal Budget - Third Party,A61019
Royal Borough of Kingston,02/05/2022,90125185,543.26,BLUE ARROW CARE LTD,SOCIAL SERVICES-HOME CARE,Adult Social Care & Health,Personal Budget - Third Party,A61019
Royal Borough of Kingston,09/05/2022,90127535,543.26,BLUE ARROW CARE LTD,SOCIAL SERVICES-HOME CARE,Adult Social Care & Health,Personal Budget - Third Party,A61019
Royal Borough of Kingston,16/05/2022,90131142,543.26,BLUE ARROW CARE LTD,SOCIAL SERVICES-HOME CARE,Adult Social Care & Health,Personal Budget - Third Party,A61019
Royal Borough of Kingston,18/04/2022,90119868,603.63,BLUE ARROW CARE LTD,SOCIAL SERVICES-HOME CARE,Adult Social Care & Health,Personal Budget - Third Party,A61019
Royal Borough of Kingston,25/04/2022,90122814,603.63,BLUE ARROW CARE LTD,SOCIAL SERVICES-HOME CARE,Adult Social Care & Health,Personal Budget - Third Party,A61019
Royal Borough of Kingston,02/05/2022,90125174,603.63,BLUE ARROW CARE LTD,SOCIAL SERVICES-HOME CARE,Adult Social Care & Health,Personal Budget - Third Party,A61019
Royal Borough of Kingston,09/05/2022,90127525,603.63,BLUE ARROW CARE LTD,SOCIAL SERVICES-HOME CARE,Adult Social Care & Health,Personal Budget - Third Party,A61019
Royal Borough of Kingston,16/05/2022,90131131,603.63,BLUE ARROW CARE LTD,SOCIAL SERVICES-HOME CARE,Adult Social Care & Health,Personal Budget - Third Party,A61019
Royal Borough of Kingston,18/04/2022,90119905,724.35,BLUE ARROW CARE LTD,SOCIAL SERVICES-HOME CARE,Adult Social Care & Health,Personal Budget - Third Party,A61019
Royal Borough of Kingston,25/04/2022,90122848,724.35,BLUE ARROW CARE LTD,SOCIAL SERVICES-HOME CARE,Adult Social Care & Health,Personal Budget - Third Party,A61019
Royal Borough of Kingston,02/05/2022,90125206,724.35,BLUE ARROW CARE LTD,SOCIAL SERVICES-HOME CARE,Adult Social Care & Health,Personal Budget - Third Party,A61019
Royal Borough of Kingston,09/05/2022,90127555,724.35,BLUE ARROW CARE LTD,SOCIAL SERVICES-HOME CARE,Adult Social Care & Health,Personal Budget - Third Party,A61019
Royal Borough of Kingston,16/05/2022,90131159,724.35,BLUE ARROW CARE LTD,SOCIAL SERVICES-HOME CARE,Adult Social Care & Health,Personal Budget - Third Party,A61019
Royal Borough of Kingston,18/04/2022,90119862,758.85,BLUE ARROW CARE LTD,SOCIAL SERVICES-HOME CARE,Adult Social Care & Health,Personal Budget - Third Party,A61019
Royal Borough of Kingston,29/04/2022,70023309,"5,415.00",BNP PARIBAS REAL ESTATE ADVISORY & PROPERTY MANAGEMENT UK LTD,LEGAL & PROFESSIONAL SERVICES,Place,Consultancy Services,A56007
Royal Borough of Kingston,01/05/2022,90129373,"3,232.41",BONDCARE (LONDON) LTD ,SOCIAL SERVICES RESIDENTIAL,Adult Social Care & Health,Independent Placements,A56006
Royal Borough of Kingston,01/05/2022,90129613,"4,000.00",BONDCARE (LONDON) LTD ,SOCIAL SERVICES RESIDENTIAL,Adult Social Care & Health,Independent Placements,A56006
Royal Borough of Kingston,01/05/2022,90129603,"4,285.71",BONDCARE (LONDON) LTD ,SOCIAL SERVICES RESIDENTIAL,Adult Social Care & Health,Independent Placements,A56006
Royal Borough of Kingston,01/05/2022,90129607,"4,285.71",BONDCARE (LONDON) LTD ,SOCIAL SERVICES RESIDENTIAL,Adult Social Care & Health,Independent Placements,A56006
Royal Borough of Kingston,01/05/2022,90129617,"4,285.71",BONDCARE (LONDON) LTD ,SOCIAL SERVICES RESIDENTIAL,Adult Social Care & Health,Independent Placements,A56006
Royal Borough of Kingston,01/05/2022,90129599,"4,428.57",BONDCARE (LONDON) LTD ,SOCIAL SERVICES RESIDENTIAL,Adult Social Care & Health,Independent Placements,A56006
Royal Borough of Kingston,01/05/2022,90129601,"4,428.57",BONDCARE (LONDON) LTD ,SOCIAL SERVICES RESIDENTIAL,Adult Social Care & Health,Independent Placements,A56006
Royal Borough of Kingston,01/05/2022,90129605,"4,428.57",BONDCARE (LONDON) LTD ,SOCIAL SERVICES RESIDENTIAL,Adult Social Care & Health,Independent Placements,A56006
Royal Borough of Kingston,01/05/2022,90129609,"4,428.57",BONDCARE (LONDON) LTD ,SOCIAL SERVICES RESIDENTIAL,Adult Social Care & Health,Independent Placements,A56006
Royal Borough of Kingston,01/05/2022,90129611,"4,428.57",BONDCARE (LONDON) LTD ,SOCIAL SERVICES RESIDENTIAL,Adult Social Care & Health,Independent Placements,A56006
Royal Borough of Kingston,01/05/2022,90129615,"4,428.57",BONDCARE (LONDON) LTD ,SOCIAL SERVICES RESIDENTIAL,Adult Social Care & Health,Independent Placements,A56006
Royal Borough of Kingston,01/05/2022,90129618,"4,428.57",BONDCARE (LONDON) LTD ,SOCIAL SERVICES RESIDENTIAL,Adult Social Care & Health,Independent Placements,A56006
Royal Borough of Kingston,20/05/2022,90126582,801.66,BONSOR PENNINGTONS LTD,PLS LANDLORDS,Place,PSL Payments To Landlords,A22031
Royal Borough of Kingston,11/05/2022,70023951,625,BOURNEMOUTH UNIVERSITY,ACADEMIC INSTNS - OTHER,Adult Social Care & Health,Training - Professional Qualification,A15024
Royal Borough of Kingston,20/05/2022,90126583,900,BR INVESTMENTS LIMITED,PLS LANDLORDS,Place,PSL Payments To Landlords,A22031
Royal Borough of Kingston,20/04/2022,70023276,"7,925.00",BRIDGEALL LIBRARIES LTD,PROFESSIONAL ASSOCIATIONS TU,Corporate & Communities,Subscriptions,A47010
Royal Borough of Kingston,11/04/2022,90119552,551.25,Bright Star Care Service Ltd,SOCIAL SERVICES - OTHER,Adult Social Care & Health,Homecare - new framework,A56127
Royal Borough of Kingston,18/04/2022,90122201,551.25,Bright Star Care Service Ltd,SOCIAL SERVICES - OTHER,Adult Social Care & Health,Homecare - new framework,A56127
Royal Borough of Kingston,25/04/2022,90124825,551.25,Bright Star Care Service Ltd,SOCIAL SERVICES - OTHER,Adult Social Care & Health,Homecare - new framework,A56127
Royal Borough of Kingston,02/05/2022,90127140,551.25,Bright Star Care Service Ltd,SOCIAL SERVICES - OTHER,Adult Social Care & Health,Homecare - new framework,A56127
Royal Borough of Kingston,09/05/2022,90130773,551.25,Bright Star Care Service Ltd,SOCIAL SERVICES - OTHER,Adult Social Care & Health,Homecare - new framework,A56127
Royal Borough of Kingston,11/04/2022,90119907,612.5,Bright Star Care Service Ltd,SOCIAL SERVICES - OTHER,Adult Social Care & Health,Personal Budget - Third Party,A61019
Royal Borough of Kingston,18/04/2022,90122850,612.5,Bright Star Care Service Ltd,SOCIAL SERVICES - OTHER,Adult Social Care & Health,Personal Budget - Third Party,A61019
Royal Borough of Kingston,25/04/2022,90125209,612.5,Bright Star Care Service Ltd,SOCIAL SERVICES - OTHER,Adult Social Care & Health,Personal Budget - Third Party,A61019
Royal Borough of Kingston,02/05/2022,90127644,612.5,Bright Star Care Service Ltd,SOCIAL SERVICES - OTHER,Adult Social Care & Health,Personal Budget - Third Party,A61019
Royal Borough of Kingston,09/05/2022,90131163,612.5,Bright Star Care Service Ltd,SOCIAL SERVICES - OTHER,Adult Social Care & Health,Personal Budget - Third Party,A61019
Royal Borough of Kingston,18/04/2022,90121946,612.51,Bright Star Care Service Ltd,SOCIAL SERVICES - OTHER,Adult Social Care & Health,Homecare - new framework,A56127
Royal Borough of Kingston,25/04/2022,90124604,612.51,Bright Star Care Service Ltd,SOCIAL SERVICES - OTHER,Adult Social Care & Health,Homecare - new framework,A56127
Royal Borough of Kingston,02/05/2022,90126920,612.51,Bright Star Care Service Ltd,SOCIAL SERVICES - OTHER,Adult Social Care & Health,Homecare - new framework,A56127
Royal Borough of Kingston,09/05/2022,90130553,612.51,Bright Star Care Service Ltd,SOCIAL SERVICES - OTHER,Adult Social Care & Health,Homecare - new framework,A56127
Royal Borough of Kingston,18/04/2022,90122064,673.75,Bright Star Care Service Ltd,SOCIAL SERVICES - OTHER,Adult Social Care & Health,Homecare - new framework,A56127
Royal Borough of Kingston,25/04/2022,90124705,673.75,Bright Star Care Service Ltd,SOCIAL SERVICES - OTHER,Adult Social Care & Health,Homecare - new framework,A56127
Royal Borough of Kingston,02/05/2022,90127019,673.75,Bright Star Care Service Ltd,SOCIAL SERVICES - OTHER,Adult Social Care & Health,Homecare - new framework,A56127
Royal Borough of Kingston,09/05/2022,90130654,673.75,Bright Star Care Service Ltd,SOCIAL SERVICES - OTHER,Adult Social Care & Health,Homecare - new framework,A56127
Royal Borough of Kingston,11/04/2022,90119422,708.76,Bright Star Care Service Ltd,SOCIAL SERVICES - OTHER,Adult Social Care & Health,Homecare - new framework,A56127
Royal Borough of Kingston,11/04/2022,90119555,735.01,Bright Star Care Service Ltd,SOCIAL SERVICES - OTHER,Adult Social Care & Health,Homecare - new framework,A56127
Royal Borough of Kingston,18/04/2022,90122206,735.01,Bright Star Care Service Ltd,SOCIAL SERVICES - OTHER,Adult Social Care & Health,Homecare - new framework,A56127
Royal Borough of Kingston,25/04/2022,90124830,735.01,Bright Star Care Service Ltd,SOCIAL SERVICES - OTHER,Adult Social Care & Health,Homecare - new framework,A56127
Royal Borough of Kingston,02/05/2022,90127151,735.01,Bright Star Care Service Ltd,SOCIAL SERVICES - OTHER,Adult Social Care & Health,Homecare - new framework,A56127
Royal Borough of Kingston,09/05/2022,90130779,735.01,Bright Star Care Service Ltd,SOCIAL SERVICES - OTHER,Adult Social Care & Health,Homecare - new framework,A56127
Royal Borough of Kingston,11/04/2022,90119315,"1,635.37",Bright Star Care Service Ltd,SOCIAL SERVICES - OTHER,Adult Social Care & Health,Homecare - new framework,A56127
Royal Borough of Kingston,05/05/2022,90120061,"4,056.48",BRIGHTSPARKS DAY NURSERY,BOOKS PUBLICATIONS STATIONERY,Schools,2 Yr Old Place Funding,A60000
Royal Borough of Kingston,05/05/2022,90120068,"12,451.32",BRIGHTSPARKS DAY NURSERY,BOOKS PUBLICATIONS STATIONERY,Schools,PVI Providers,A60014
Royal Borough of Kingston,09/05/2022,70024507,786.34,BRITISH GAS,UTILITIES,Housing Revenue Account,Electricity,A21000
Royal Borough of Kingston,06/03/2022,70024518,"1,213.47",BRITISH TELECOMMUNICATIONS PLC,TELECOMS,Corporate & Communities,Telephones,A45020
Royal Borough of Kingston,09/05/2022,70025068,"1,228.79",BRITISH TELECOMMUNICATIONS PLC,TELECOMS,Corporate & Communities,Telephones,A45020
Royal Borough of Kingston,06/04/2022,70025069,"1,263.23",BRITISH TELECOMMUNICATIONS PLC,TELECOMS,Corporate & Communities,Telephones,A45020
Royal Borough of Kingston,17/05/2022,70024771,"1,421.35",BRITISH TELECOMMUNICATIONS PLC,TELECOMS,Corporate & Communities,Telephones,A45020
Royal Borough of Kingston,17/05/2022,70024769,"6,314.17",BRITISH TELECOMMUNICATIONS PLC,TELECOMS,Corporate & Communities,Telephones,A45020
Royal Borough of Kingston,23/02/2022,70025070,"8,129.01",BRITISH TELECOMMUNICATIONS PLC,TELECOMS,Corporate & Communities,Telephones,A45020
Royal Borough of Kingston,28/04/2022,70023464,"13,449.62",BUCHANAN COMPUTING LTD,IT EQUIPMENT MAINTENANCE,Corporate & Communities,Equipment And Materials Purchase,A40000
Royal Borough of Kingston,30/04/2022,70024478,"1,260.00",Buildvantage Limited,ACCOMMODATION BED & BREAKFAST,Place,Bed & Breakfast,A56000
Royal Borough of Kingston,30/04/2022,70024495,"1,260.00",Buildvantage Limited,ACCOMMODATION BED & BREAKFAST,Place,Bed & Breakfast,A56000
Royal Borough of Kingston,30/04/2022,70024496,"1,260.00",Buildvantage Limited,ACCOMMODATION BED & BREAKFAST,Place,Bed & Breakfast,A56000
Royal Borough of Kingston,30/04/2022,70024479,"1,440.00",Buildvantage Limited,ACCOMMODATION BED & BREAKFAST,Place,Bed & Breakfast,A56000
Royal Borough of Kingston,30/04/2022,70024480,"1,440.00",Buildvantage Limited,ACCOMMODATION BED & BREAKFAST,Place,Bed & Breakfast,A56000
Royal Borough of Kingston,30/04/2022,70024481,"1,440.00",Buildvantage Limited,ACCOMMODATION BED & BREAKFAST,Place,Bed & Breakfast,A56000
Royal Borough of Kingston,30/04/2022,70024482,"1,440.00",Buildvantage Limited,ACCOMMODATION BED & BREAKFAST,Place,Bed & Breakfast,A56000
Royal Borough of Kingston,30/04/2022,70024483,"1,440.00",Buildvantage Limited,ACCOMMODATION BED & BREAKFAST,Place,Bed & Breakfast,A56000
Royal Borough of Kingston,30/04/2022,70024484,"1,440.00",Buildvantage Limited,ACCOMMODATION BED & BREAKFAST,Place,Bed & Breakfast,A56000
Royal Borough of Kingston,30/04/2022,70024485,"1,440.00",Buildvantage Limited,ACCOMMODATION BED & BREAKFAST,Place,Bed & Breakfast,A56000
Royal Borough of Kingston,30/04/2022,70024486,"1,440.00",Buildvantage Limited,ACCOMMODATION BED & BREAKFAST,Place,Bed & Breakfast,A56000
Royal Borough of Kingston,30/04/2022,70024487,"1,440.00",Buildvantage Limited,ACCOMMODATION BED & BREAKFAST,Place,Bed & Breakfast,A56000
Royal Borough of Kingston,30/04/2022,70024488,"1,440.00",Buildvantage Limited,ACCOMMODATION BED & BREAKFAST,Place,Bed & Breakfast,A56000
Royal Borough of Kingston,30/04/2022,70024489,"1,440.00",Buildvantage Limited,ACCOMMODATION BED & BREAKFAST,Place,Bed & Breakfast,A56000
Royal Borough of Kingston,30/04/2022,70024490,"1,440.00",Buildvantage Limited,ACCOMMODATION BED & BREAKFAST,Place,Bed & Breakfast,A56000
Royal Borough of Kingston,30/04/2022,70024491,"1,440.00",Buildvantage Limited,ACCOMMODATION BED & BREAKFAST,Place,Bed & Breakfast,A56000
Royal Borough of Kingston,30/04/2022,70024492,"1,440.00",Buildvantage Limited,ACCOMMODATION BED & BREAKFAST,Place,Bed & Breakfast,A56000
Royal Borough of Kingston,30/04/2022,70024493,"1,440.00",Buildvantage Limited,ACCOMMODATION BED & BREAKFAST,Place,Bed & Breakfast,A56000
Royal Borough of Kingston,30/04/2022,70024494,"1,440.00",Buildvantage Limited,ACCOMMODATION BED & BREAKFAST,Place,Bed & Breakfast,A56000
Royal Borough of Kingston,30/04/2022,70024497,"1,440.00",Buildvantage Limited,ACCOMMODATION BED & BREAKFAST,Place,Bed & Breakfast,A56000
Royal Borough of Kingston,01/12/2021,90119269,"3,321.81",BUPA CARE  HOME (CFH CARE ) LTD,SOCIAL SERVICES RESIDENTIAL,Adult Social Care & Health,Independent Placements,A56006
Royal Borough of Kingston,01/05/2022,90129422,"3,432.54",BUPA CARE  HOME (CFH CARE ) LTD,SOCIAL SERVICES RESIDENTIAL,Adult Social Care & Health,Independent Placements,A56006
Royal Borough of Kingston,01/05/2022,90129577,"3,572.88",BUPA CARE  HOME (CFH CARE ) LTD,SOCIAL SERVICES RESIDENTIAL,Adult Social Care & Health,Independent Placements,A56006
Royal Borough of Kingston,01/12/2021,90119270,"12,042.57",BUPA CARE  HOME (CFH CARE ) LTD,SOCIAL SERVICES RESIDENTIAL,Adult Social Care & Health,Independent Placements,A56006
Royal Borough of Kingston,01/05/2022,90129796,"5,325.18",BUPA CARE HOMES (AKW) LIMITED,SOCIAL SERVICES RESIDENTIAL,Adult Social Care & Health,Independent Placements,A56006
Royal Borough of Kingston,01/05/2022,90129493,"8,319.29",BUPA CARE HOMES (AKW) LIMITED,SOCIAL SERVICES RESIDENTIAL,Adult Social Care & Health,Independent Placements,A56006
Royal Borough of Kingston,01/05/2022,90129494,"9,007.98",BUPA CARE HOMES (AKW) LIMITED,SOCIAL SERVICES RESIDENTIAL,Adult Social Care & Health,Independent Placements,A56006
Royal Borough of Kingston,04/05/2022,90120036,"143,612.71",BURLINGTON INFANT AND NURSERY SCHOOL,SCHOOL FUNDS,Schools,Miscellaneous Expenses,A49000
Royal Borough of Kingston,25/05/2022,90127716,"143,612.71",BURLINGTON INFANT AND NURSERY SCHOOL,SCHOOL FUNDS,Schools,Miscellaneous Expenses,A49000
Royal Borough of Kingston,04/05/2022,90120037,"176,936.56",BURLINGTON JUNIOR SCHOOL,SCHOOL FUNDS,Schools,Miscellaneous Expenses,A49000
Royal Borough of Kingston,25/05/2022,90127717,"176,936.56",BURLINGTON JUNIOR SCHOOL,SCHOOL FUNDS,Schools,Miscellaneous Expenses,A49000
Royal Borough of Kingston,13/05/2022,70024169,243.55,BYTES SOFTWARE SERVICES LTD,BUSINESS & COMPUTER SYSTEMS,Corporate & Communities,Cloud Services,A45007
Royal Borough of Kingston,29/04/2022,70023434,426.56,BYTES SOFTWARE SERVICES LTD,BUSINESS & COMPUTER SYSTEMS,Corporate & Communities,IT Software Maintenance,A45045
Royal Borough of Kingston,29/04/2022,70023446,"1,732.40",BYTES SOFTWARE SERVICES LTD,BUSINESS & COMPUTER SYSTEMS,Corporate & Communities,IT Software Maintenance,A45045
Royal Borough of Kingston,13/05/2022,70024169,"2,357.51",BYTES SOFTWARE SERVICES LTD,BUSINESS & COMPUTER SYSTEMS,Corporate & Communities,Cloud Services,A45007
Royal Borough of Kingston,17/05/2022,70024553,"4,298.93",BYTES SOFTWARE SERVICES LTD,BUSINESS & COMPUTER SYSTEMS,Corporate & Communities,IT Hardware Purchase,A45005
Royal Borough of Kingston,29/04/2022,70023498,"32,436.00",BYTES SOFTWARE SERVICES LTD,BUSINESS & COMPUTER SYSTEMS,Corporate & Communities,Cloud Services,A45007
Royal Borough of Kingston,31/08/2021,70007890,"43,848.48",BYTES SOFTWARE SERVICES LTD,BUSINESS & COMPUTER SYSTEMS,Capital Programme,Intangible Assets - Project Management,C13001
Royal Borough of Kingston,31/08/2021,70007890,"97,323.75",BYTES SOFTWARE SERVICES LTD,BUSINESS & COMPUTER SYSTEMS,Capital Programme,Intangible Assets - Project Management,C13001
Royal Borough of Kingston,29/04/2022,70023598,"139,941.00",BYTES SOFTWARE SERVICES LTD,BUSINESS & COMPUTER SYSTEMS,Corporate & Communities,IT Hardware Purchase,A45005
Royal Borough of Kingston,02/03/2022,70023602,"3,665.50",CABLES DIRECT LIMITED,IT EQUIPMENT MAINTENANCE,Corporate & Communities,IT Hardware Purchase,A45005
Royal Borough of Kingston,21/05/2022,70024843,510,Canbury Park Church Trust,SUNDRY SUPPLIER - FINANCE,Corporate & Communities,Building Rents,A22005
Royal Borough of Kingston,01/05/2022,90130135,"5,425.80",CARE MANAGEMENT GROUP LTD,SOCIAL SERVICES RESIDENTIAL,Adult Social Care & Health,Personal Budget - Third Party,A61019
Royal Borough of Kingston,01/05/2022,90129669,"2,788.36",CARE UK COMMUNITY PARTNERSHIPS LTD,SOCIAL SERVICES RESIDENTIAL,Adult Social Care & Health,Independent Placements,A56006
Royal Borough of Kingston,01/05/2022,90129512,"3,346.05",CARE UK COMMUNITY PARTNERSHIPS LTD,SOCIAL SERVICES RESIDENTIAL,Adult Social Care & Health,Independent Placements,A56006
Royal Borough of Kingston,01/05/2022,90129518,"3,450.96",CARE UK COMMUNITY PARTNERSHIPS LTD,SOCIAL SERVICES RESIDENTIAL,Adult Social Care & Health,Independent Placements,A56006
Royal Borough of Kingston,01/05/2022,90129653,"4,141.16",CARE UK COMMUNITY PARTNERSHIPS LTD,SOCIAL SERVICES RESIDENTIAL,Adult Social Care & Health,Independent Placements,A56006
Royal Borough of Kingston,18/04/2022,90119705,595.01,CARLCARE LTD ,SOCIAL SERVICES-HOME CARE,Adult Social Care & Health,Homecare - new framework,A56127
Royal Borough of Kingston,25/04/2022,90122362,595.01,CARLCARE LTD ,SOCIAL SERVICES-HOME CARE,Adult Social Care & Health,Homecare - new framework,A56127
Royal Borough of Kingston,02/05/2022,90124982,595.01,CARLCARE LTD ,SOCIAL SERVICES-HOME CARE,Adult Social Care & Health,Homecare - new framework,A56127
Royal Borough of Kingston,09/05/2022,90127311,595.01,CARLCARE LTD ,SOCIAL SERVICES-HOME CARE,Adult Social Care & Health,Homecare - new framework,A56127
Royal Borough of Kingston,16/05/2022,90130942,595.01,CARLCARE LTD ,SOCIAL SERVICES-HOME CARE,Adult Social Care & Health,Homecare - new framework,A56127
Royal Borough of Kingston,09/05/2022,90127089,612.51,CARLCARE LTD ,SOCIAL SERVICES-HOME CARE,Adult Social Care & Health,Homecare - new framework,A56127
Royal Borough of Kingston,18/04/2022,90119431,735.01,CARLCARE LTD ,SOCIAL SERVICES-HOME CARE,Adult Social Care & Health,Homecare - new framework,A56127
Royal Borough of Kingston,25/04/2022,90122075,735.01,CARLCARE LTD ,SOCIAL SERVICES-HOME CARE,Adult Social Care & Health,Homecare - new framework,A56127
Royal Borough of Kingston,02/05/2022,90124714,735.01,CARLCARE LTD ,SOCIAL SERVICES-HOME CARE,Adult Social Care & Health,Homecare - new framework,A56127
Royal Borough of Kingston,09/05/2022,90127029,735.01,CARLCARE LTD ,SOCIAL SERVICES-HOME CARE,Adult Social Care & Health,Homecare - new framework,A56127
Royal Borough of Kingston,16/05/2022,90130664,735.01,CARLCARE LTD ,SOCIAL SERVICES-HOME CARE,Adult Social Care & Health,Homecare - new framework,A56127
Royal Borough of Kingston,18/04/2022,90119287,963.78,CARLCARE LTD ,SOCIAL SERVICES-HOME CARE,Adult Social Care & Health,Homecare - new framework,A56127
Royal Borough of Kingston,20/05/2022,90126629,"1,343.00",CARLISLE SECURITIES LTD,PLS LANDLORDS,Place,PSL Payments To Landlords,A22031
Royal Borough of Kingston,01/05/2022,90129729,"9,470.46",CARTREF HOMES,SOCIAL SERVICES RESIDENTIAL,Adult Social Care & Health,Independent Placements,A56006
Royal Borough of Kingston,01/05/2022,90129704,"14,023.69",CAS CARE SERVICES LTD,SOCIAL SERVICES - OTHER,Adult Social Care & Health,Independent Placements,A56006
Royal Borough of Kingston,01/05/2022,90129770,"14,023.69",CAS CARE SERVICES LTD,SOCIAL SERVICES - OTHER,Adult Social Care & Health,Independent Placements,A56006
Royal Borough of Kingston,20/05/2022,90126705,"1,675.00",CASTLE RESIDENTIAL PROPERTIES LTD,PLS LANDLORDS,Place,PSL Payments To Landlords,A22031
Royal Borough of Kingston,20/05/2022,90126777,"1,675.00",CASTLE RESIDENTIAL PROPERTIES LTD,PLS LANDLORDS,Place,PSL Payments To Landlords,A22031
Royal Borough of Kingston,12/04/2022,70024927,"8,090.13",CASTLE WATER LIMITED,UTILITIES,Place,Water Services,A24005
Royal Borough of Kingston,20/05/2022,90126468,"1,094.00",CASTLE WILDISH RESI LTD,PLS LANDLORDS,Place,PSL Payments To Landlords,A22031
Royal Borough of Kingston,20/05/2022,90126399,"1,094.34",CASTLE WILDISH RESI LTD,PLS LANDLORDS,Place,PSL Payments To Landlords,A22031
Royal Borough of Kingston,20/05/2022,90126400,"1,094.34",CASTLE WILDISH RESI LTD,PLS LANDLORDS,Place,PSL Payments To Landlords,A22031
Royal Borough of Kingston,20/05/2022,90126401,"1,094.34",CASTLE WILDISH RESI LTD,PLS LANDLORDS,Place,PSL Payments To Landlords,A22031
Royal Borough of Kingston,20/05/2022,90126764,"1,626.00",CASTLE WILDISH RESI LTD,PLS LANDLORDS,Place,PSL Payments To Landlords,A22031
Royal Borough of Kingston,20/05/2022,90126765,"1,626.00",CASTLE WILDISH RESI LTD,PLS LANDLORDS,Place,PSL Payments To Landlords,A22031
Royal Borough of Kingston,01/05/2022,90129719,"11,152.12",CAVENDISH CARE,SOCIAL SERVICES RESIDENTIAL,Adult Social Care & Health,Independent Placements,A56006
Royal Borough of Kingston,01/05/2022,90129503,"3,450.96",CHARING OAST LTD ,SOCIAL SERVICES RESIDENTIAL,Adult Social Care & Health,Independent Placements,A56006
Royal Borough of Kingston,03/03/2022,70024967,"3,750.00",CHARTERED INSTITUTE OF HOUSING ,SUBSCRIPTIONS & PUBLICATIONS,Housing Revenue Account,Staff Development And Training,A15022
Royal Borough of Kingston,01/05/2022,90129824,599.14,CHD (CARE HOMES) LTD,SOCIAL SERVICES RESIDENTIAL,Adult Social Care & Health,Other Private Contractors - Third Party,A56080
Royal Borough of Kingston,01/05/2022,90129825,"3,095.57",CHD (CARE HOMES) LTD,SOCIAL SERVICES RESIDENTIAL,Adult Social Care & Health,Other Private Contractors - Third Party,A56080
Royal Borough of Kingston,01/05/2022,90129537,"3,450.96",CHD (CARE HOMES) LTD,SOCIAL SERVICES RESIDENTIAL,Adult Social Care & Health,Independent Placements,A56006
Royal Borough of Kingston,01/05/2022,90129571,"3,681.03",CHD (CARE HOMES) LTD,SOCIAL SERVICES RESIDENTIAL,Adult Social Care & Health,Independent Placements,A56006
Royal Borough of Kingston,01/05/2022,90129640,"3,450.96",CHD CARE LTD,SOCIAL SERVICES RESIDENTIAL,Adult Social Care & Health,Independent Placements,A56006
Royal Borough of Kingston,01/05/2022,90129348,"3,857.14",CHD CARE LTD,SOCIAL SERVICES RESIDENTIAL,Adult Social Care & Health,Independent Placements,A56006
Royal Borough of Kingston,01/05/2022,90129349,"3,985.71",CHD CARE LTD,SOCIAL SERVICES RESIDENTIAL,Adult Social Care & Health,Independent Placements,A56006
Royal Borough of Kingston,01/05/2022,90129643,"5,176.47",CHD CARE LTD,SOCIAL SERVICES RESIDENTIAL,Adult Social Care & Health,Independent Placements,A56006
Royal Borough of Kingston,01/05/2022,90129515,"5,406.53",CHD CARE LTD,SOCIAL SERVICES RESIDENTIAL,Adult Social Care & Health,Independent Placements,A56006
Royal Borough of Kingston,01/05/2022,90129495,"7,714.29",CHD CARE LTD,SOCIAL SERVICES RESIDENTIAL,Adult Social Care & Health,Independent Placements,A56006
Royal Borough of Kingston,01/05/2022,90129496,"7,971.43",CHD CARE LTD,SOCIAL SERVICES RESIDENTIAL,Adult Social Care & Health,Independent Placements,A56006
Royal Borough of Kingston,01/05/2022,90129575,"1,104.31",CHD LIVING,SOCIAL SERVICES RESIDENTIAL,Adult Social Care & Health,Independent Placements,A56006
Royal Borough of Kingston,01/05/2022,90129690,"3,945.64",CHHG LTD,SOCIAL SERVICES RESIDENTIAL,Adult Social Care & Health,Independent Placements,A56006
Royal Borough of Kingston,05/05/2022,90120069,"8,893.80",CHILDS PLAY NURSERY SCHOOL LTD,GRANTS & EX GRATIA PAYMENTS,Schools,PVI Providers,A60014
Royal Borough of Kingston,01/05/2022,90129622,"3,434.40",CHISWICK NURSING CENTRE,SOCIAL SERVICES RESIDENTIAL,Adult Social Care & Health,Independent Placements,A56006
Royal Borough of Kingston,01/05/2022,90129573,"3,755.03",CHISWICK NURSING CENTRE,SOCIAL SERVICES RESIDENTIAL,Adult Social Care & Health,Independent Placements,A56006
Royal Borough of Kingston,01/05/2022,90129403,"4,371.22",CHISWICK NURSING CENTRE,SOCIAL SERVICES RESIDENTIAL,Adult Social Care & Health,Independent Placements,A56006
Royal Borough of Kingston,01/05/2022,90129773,"7,186.20",CHOICE LTD,SOCIAL SERVICES RESIDENTIAL,Adult Social Care & Health,Independent Placements,A56006
Royal Borough of Kingston,01/05/2022,90129741,"8,132.76",CHOICE LTD,SOCIAL SERVICES RESIDENTIAL,Adult Social Care & Health,Independent Placements,A56006
Royal Borough of Kingston,04/05/2022,90120039,"158,749.86",CHRIST CHURCH  C. OF E.  PRIMARY SCHOOL (NEW MALDEN),SCHOOL FUNDS,Schools,Miscellaneous Expenses,A49000
Royal Borough of Kingston,25/05/2022,90127719,"158,749.86",CHRIST CHURCH  C. OF E.  PRIMARY SCHOOL (NEW MALDEN),SCHOOL FUNDS,Schools,Miscellaneous Expenses,A49000
Royal Borough of Kingston,04/05/2022,90120038,"173,569.93",CHRIST CHURCH C.OF E. PRIMARY SCHOOL - (SURBITON),ACADEMIC INSTNS - OTHER,Schools,Miscellaneous Expenses,A49000
Royal Borough of Kingston,25/05/2022,90127718,"173,569.93",CHRIST CHURCH C.OF E. PRIMARY SCHOOL - (SURBITON),ACADEMIC INSTNS - OTHER,Schools,Miscellaneous Expenses,A49000
Royal Borough of Kingston,01/05/2022,90130111,544.97,CHRISTIES CARE LTD,SOCIAL SERVICES RESIDENTIAL,Adult Social Care & Health,Personal Budget - Third Party,A61019
Royal Borough of Kingston,01/05/2022,90130123,554.7,CHRISTIES CARE LTD,SOCIAL SERVICES RESIDENTIAL,Adult Social Care & Health,Personal Budget - Third Party,A61019
Royal Borough of Kingston,01/05/2022,90130171,555.98,CHRISTIES CARE LTD,SOCIAL SERVICES RESIDENTIAL,Adult Social Care & Health,Personal Budget - Third Party,A61019
Royal Borough of Kingston,01/05/2022,90130120,596.01,CHRISTIES CARE LTD,SOCIAL SERVICES RESIDENTIAL,Adult Social Care & Health,Personal Budget - Third Party,A61019
Royal Borough of Kingston,01/05/2022,90130121,"4,835.74",CHRISTIES CARE LTD,SOCIAL SERVICES RESIDENTIAL,Adult Social Care & Health,Personal Budget - Third Party,A61019
Royal Borough of Kingston,01/05/2022,90130172,"4,855.02",CHRISTIES CARE LTD,SOCIAL SERVICES RESIDENTIAL,Adult Social Care & Health,Personal Budget - Third Party,A61019
Royal Borough of Kingston,01/05/2022,90130124,"5,031.57",CHRISTIES CARE LTD,SOCIAL SERVICES RESIDENTIAL,Adult Social Care & Health,Personal Budget - Third Party,A61019
Royal Borough of Kingston,01/05/2022,90130031,"5,172.93",CHRISTIES CARE LTD,SOCIAL SERVICES RESIDENTIAL,Adult Social Care & Health,Personal Budget - Third Party,A61019
Royal Borough of Kingston,30/04/2022,70023504,"1,860.00",CHRISTOPHER HOUSE (LONDON) LTD,ACCOMMODATION BED & BREAKFAST,Place,Bed & Breakfast,A56000
Royal Borough of Kingston,30/04/2022,70023597,529,CITYSPRINT (UK) LTD,OFFICE SERVICES,Corporate & Communities,Books,A43050
Royal Borough of Kingston,05/05/2022,70024070,"5,202.50",CIVICA UK LTD,BUSINESS & COMPUTER SYSTEMS,Capital Programme,Infrastructure Assets - Initial Design,C12002
Royal Borough of Kingston,09/05/2022,90121906,"2,861.90",CLARENDON CARE SERVICES LIMITED,TEMP STAFF & CONSULTANCY,Adult Social Care & Health,Homecare - new framework,A56127
Royal Borough of Kingston,16/05/2022,90124571,"2,861.90",CLARENDON CARE SERVICES LIMITED,TEMP STAFF & CONSULTANCY,Adult Social Care & Health,Homecare - new framework,A56127
Royal Borough of Kingston,01/05/2022,90129776,"8,811.48",CLEARWATER CARE (HACKNEY) LTD,SOCIAL SERVICES RESIDENTIAL,Adult Social Care & Health,Independent Placements,A56006
Royal Borough of Kingston,01/05/2022,90130305,"6,317.00",CLIA Care Ltd,ACCOMMODATION - OTHER,Adult Social Care & Health,Personal Budget - Third Party,A61019
Royal Borough of Kingston,20/05/2022,90126652,"1,094.00",CLIFFE &  ROCHFORD,PLS LANDLORDS,Place,PSL Payments To Landlords,A22031
Royal Borough of Kingston,20/05/2022,90126471,"1,435.50",CLIQUE 187 LTD,PLS LANDLORDS,Place,PSL Payments To Landlords,A22031
Royal Borough of Kingston,01/05/2022,90130174,930.27,CMG LIMITED,SOCIAL SERVICES - OTHER,Adult Social Care & Health,Personal Budget - Third Party,A61019
Royal Borough of Kingston,01/05/2022,90130117,"3,050.18",CMG LIMITED,SOCIAL SERVICES - OTHER,Adult Social Care & Health,Personal Budget - Third Party,A61019
Royal Borough of Kingston,01/05/2022,90130175,"4,019.02",CMG LIMITED,SOCIAL SERVICES - OTHER,Adult Social Care & Health,Personal Budget - Third Party,A61019
Royal Borough of Kingston,01/05/2022,90130222,"4,794.24",CMG LIMITED,SOCIAL SERVICES - OTHER,Adult Social Care & Health,Personal Budget - Third Party,A61019
Royal Borough of Kingston,01/05/2022,90130147,"5,501.22",CMG LIMITED,SOCIAL SERVICES - OTHER,Adult Social Care & Health,Personal Budget - Third Party,A61019
Royal Borough of Kingston,01/05/2022,90130146,"5,534.03",CMG LIMITED,SOCIAL SERVICES - OTHER,Adult Social Care & Health,Personal Budget - Third Party,A61019
Royal Borough of Kingston,01/05/2022,90130160,"6,040.53",CMG LIMITED,SOCIAL SERVICES - OTHER,Adult Social Care & Health,Personal Budget - Third Party,A61019
Royal Borough of Kingston,25/04/2022,90122121,551.25,CN Healthcare,SOCIAL SERVICES - OTHER,Adult Social Care & Health,Homecare - new framework,A56127
Royal Borough of Kingston,02/05/2022,90124747,551.25,CN Healthcare,SOCIAL SERVICES - OTHER,Adult Social Care & Health,Homecare - new framework,A56127
Royal Borough of Kingston,02/05/2022,90124754,551.25,CN Healthcare,SOCIAL SERVICES - OTHER,Adult Social Care & Health,Homecare - new framework,A56127
Royal Borough of Kingston,09/05/2022,90127073,551.25,CN Healthcare,SOCIAL SERVICES - OTHER,Adult Social Care & Health,Homecare - new framework,A56127
Royal Borough of Kingston,16/05/2022,90130711,551.25,CN Healthcare,SOCIAL SERVICES - OTHER,Adult Social Care & Health,Homecare - new framework,A56127
Royal Borough of Kingston,16/05/2022,90131042,560,CN Healthcare,SOCIAL SERVICES - OTHER,Adult Social Care & Health,Homecare - new framework,A56127
Royal Borough of Kingston,18/04/2022,90119282,612.51,CN Healthcare,SOCIAL SERVICES - OTHER,Adult Social Care & Health,Homecare - new framework,A56127
Royal Borough of Kingston,25/04/2022,90121903,612.51,CN Healthcare,SOCIAL SERVICES - OTHER,Adult Social Care & Health,Homecare - new framework,A56127
Royal Borough of Kingston,02/05/2022,90124566,612.51,CN Healthcare,SOCIAL SERVICES - OTHER,Adult Social Care & Health,Homecare - new framework,A56127
Royal Borough of Kingston,18/04/2022,90119485,918.76,CN Healthcare,SOCIAL SERVICES - OTHER,Adult Social Care & Health,Homecare - new framework,A56127
Royal Borough of Kingston,25/04/2022,90122140,918.76,CN Healthcare,SOCIAL SERVICES - OTHER,Adult Social Care & Health,Homecare - new framework,A56127
Royal Borough of Kingston,02/05/2022,90124765,918.76,CN Healthcare,SOCIAL SERVICES - OTHER,Adult Social Care & Health,Homecare - new framework,A56127
Royal Borough of Kingston,09/05/2022,90127091,918.76,CN Healthcare,SOCIAL SERVICES - OTHER,Adult Social Care & Health,Homecare - new framework,A56127
Royal Borough of Kingston,16/05/2022,90130724,918.76,CN Healthcare,SOCIAL SERVICES - OTHER,Adult Social Care & Health,Homecare - new framework,A56127
Royal Borough of Kingston,16/05/2022,90131043,980,CN Healthcare,SOCIAL SERVICES - OTHER,Adult Social Care & Health,Homecare - new framework,A56127
Royal Borough of Kingston,18/04/2022,90119327,"1,225.01",CN Healthcare,SOCIAL SERVICES - OTHER,Adult Social Care & Health,Homecare - new framework,A56127
Royal Borough of Kingston,25/04/2022,90121953,"1,225.01",CN Healthcare,SOCIAL SERVICES - OTHER,Adult Social Care & Health,Homecare - new framework,A56127
Royal Borough of Kingston,02/05/2022,90124611,"1,225.01",CN Healthcare,SOCIAL SERVICES - OTHER,Adult Social Care & Health,Homecare - new framework,A56127
Royal Borough of Kingston,09/05/2022,90126927,"1,225.01",CN Healthcare,SOCIAL SERVICES - OTHER,Adult Social Care & Health,Homecare - new framework,A56127
Royal Borough of Kingston,16/05/2022,90130543,"1,226.53",CN Healthcare,SOCIAL SERVICES - OTHER,Adult Social Care & Health,Homecare - new framework,A56127
Royal Borough of Kingston,09/05/2022,90126897,"1,635.37",CN Healthcare,SOCIAL SERVICES - OTHER,Adult Social Care & Health,Homecare - new framework,A56127
Royal Borough of Kingston,18/04/2022,90119294,"2,861.90",CN Healthcare,SOCIAL SERVICES - OTHER,Adult Social Care & Health,Homecare - new framework,A56127
Royal Borough of Kingston,25/04/2022,90121918,"2,861.90",CN Healthcare,SOCIAL SERVICES - OTHER,Adult Social Care & Health,Homecare - new framework,A56127
Royal Borough of Kingston,02/05/2022,90124582,"2,861.90",CN Healthcare,SOCIAL SERVICES - OTHER,Adult Social Care & Health,Homecare - new framework,A56127
Royal Borough of Kingston,09/05/2022,90126885,"2,861.90",CN Healthcare,SOCIAL SERVICES - OTHER,Adult Social Care & Health,Homecare - new framework,A56127
Royal Borough of Kingston,16/05/2022,90130513,"2,861.90",CN Healthcare,SOCIAL SERVICES - OTHER,Adult Social Care & Health,Homecare - new framework,A56127
Royal Borough of Kingston,20/05/2022,90126696,"1,116.00",COBHAM RENTALS LTD,PLS LANDLORDS,Place,PSL Payments To Landlords,A22031
Royal Borough of Kingston,20/05/2022,90126697,"1,116.00",COBHAM RENTALS LTD,PLS LANDLORDS,Place,PSL Payments To Landlords,A22031
Royal Borough of Kingston,20/05/2022,90126698,"1,116.00",COBHAM RENTALS LTD,PLS LANDLORDS,Place,PSL Payments To Landlords,A22031
Royal Borough of Kingston,01/05/2022,90129799,"14,022.05",COGNITHAN,SOCIAL SERVICES RESIDENTIAL,Adult Social Care & Health,Independent Placements,A56006
Royal Borough of Kingston,25/04/2022,70023024,"11,278.12",COLLABORATE I CIC,TEMP STAFF & CONSULTANCY,Corporate & Communities,Consultancy Services - Other,A44065
Royal Borough of Kingston,01/05/2022,90129579,"3,015.41",COLVILLE CARE LTD,SOCIAL SERVICES - DIRECT PAYMENTS,Adult Social Care & Health,Independent Placements,A56006
Royal Borough of Kingston,31/05/2022,70023659,"1,214.39",COMETT LIMITED,ENTERTAINMENTS INDUSTRY,Adult Social Care & Health,Consultancy Services - Other,A44065
Royal Borough of Kingston,01/05/2022,90130281,"-2,250.39",COMFORT CARE SERVICES UK LTD,SOCIAL SERVICES-HOME CARE,Adult Social Care & Health,Personal Budget - Third Party,A61019
Royal Borough of Kingston,01/05/2022,90130264,"1,110.82",COMFORT CARE SERVICES UK LTD,SOCIAL SERVICES-HOME CARE,Adult Social Care & Health,Personal Budget - Third Party,A61019
Royal Borough of Kingston,01/05/2022,90130288,"1,110.82",COMFORT CARE SERVICES UK LTD,SOCIAL SERVICES-HOME CARE,Adult Social Care & Health,Personal Budget - Third Party,A61019
Royal Borough of Kingston,01/05/2022,90130257,"1,395.22",COMFORT CARE SERVICES UK LTD,SOCIAL SERVICES-HOME CARE,Adult Social Care & Health,Personal Budget - Third Party,A61019
Royal Borough of Kingston,01/05/2022,90130306,"1,728.43",COMFORT CARE SERVICES UK LTD,SOCIAL SERVICES-HOME CARE,Adult Social Care & Health,Personal Budget - Third Party,A61019
Royal Borough of Kingston,01/05/2022,90130268,"1,852.52",COMFORT CARE SERVICES UK LTD,SOCIAL SERVICES-HOME CARE,Adult Social Care & Health,Personal Budget - Third Party,A61019
Royal Borough of Kingston,01/05/2022,90130299,"2,106.14",COMFORT CARE SERVICES UK LTD,SOCIAL SERVICES-HOME CARE,Adult Social Care & Health,Personal Budget - Third Party,A61019
Royal Borough of Kingston,01/05/2022,90130260,"2,790.49",COMFORT CARE SERVICES UK LTD,SOCIAL SERVICES-HOME CARE,Adult Social Care & Health,Personal Budget - Third Party,A61019
Royal Borough of Kingston,01/05/2022,90130267,"2,790.49",COMFORT CARE SERVICES UK LTD,SOCIAL SERVICES-HOME CARE,Adult Social Care & Health,Personal Budget - Third Party,A61019
Royal Borough of Kingston,01/05/2022,90130272,"2,790.49",COMFORT CARE SERVICES UK LTD,SOCIAL SERVICES-HOME CARE,Adult Social Care & Health,Personal Budget - Third Party,A61019
Royal Borough of Kingston,01/05/2022,90130278,"2,790.49",COMFORT CARE SERVICES UK LTD,SOCIAL SERVICES-HOME CARE,Adult Social Care & Health,Personal Budget - Third Party,A61019
Royal Borough of Kingston,01/05/2022,90130280,"2,790.49",COMFORT CARE SERVICES UK LTD,SOCIAL SERVICES-HOME CARE,Adult Social Care & Health,Personal Budget - Third Party,A61019
Royal Borough of Kingston,01/05/2022,90130285,"2,790.49",COMFORT CARE SERVICES UK LTD,SOCIAL SERVICES-HOME CARE,Adult Social Care & Health,Personal Budget - Third Party,A61019
Royal Borough of Kingston,01/05/2022,90130289,"2,790.49",COMFORT CARE SERVICES UK LTD,SOCIAL SERVICES-HOME CARE,Adult Social Care & Health,Personal Budget - Third Party,A61019
Royal Borough of Kingston,01/05/2022,90130292,"2,790.49",COMFORT CARE SERVICES UK LTD,SOCIAL SERVICES-HOME CARE,Adult Social Care & Health,Personal Budget - Third Party,A61019
Royal Borough of Kingston,01/05/2022,90130293,"2,790.49",COMFORT CARE SERVICES UK LTD,SOCIAL SERVICES-HOME CARE,Adult Social Care & Health,Personal Budget - Third Party,A61019
Royal Borough of Kingston,01/05/2022,90130296,"2,790.49",COMFORT CARE SERVICES UK LTD,SOCIAL SERVICES-HOME CARE,Adult Social Care & Health,Personal Budget - Third Party,A61019
Royal Borough of Kingston,01/05/2022,90130303,"2,790.49",COMFORT CARE SERVICES UK LTD,SOCIAL SERVICES-HOME CARE,Adult Social Care & Health,Personal Budget - Third Party,A61019
Royal Borough of Kingston,01/05/2022,90129909,"3,111.20",COMFORT CARE SERVICES UK LTD,SOCIAL SERVICES-HOME CARE,Adult Social Care & Health,Personal Budget - Third Party,A61019
Royal Borough of Kingston,01/05/2022,90129911,"3,111.20",COMFORT CARE SERVICES UK LTD,SOCIAL SERVICES-HOME CARE,Adult Social Care & Health,Personal Budget - Third Party,A61019
Royal Borough of Kingston,01/05/2022,90130290,"3,111.20",COMFORT CARE SERVICES UK LTD,SOCIAL SERVICES-HOME CARE,Adult Social Care & Health,Personal Budget - Third Party,A61019
Royal Borough of Kingston,01/05/2022,90130295,"3,111.20",COMFORT CARE SERVICES UK LTD,SOCIAL SERVICES-HOME CARE,Adult Social Care & Health,Personal Budget - Third Party,A61019
Royal Borough of Kingston,01/05/2022,90130302,"3,111.20",COMFORT CARE SERVICES UK LTD,SOCIAL SERVICES-HOME CARE,Adult Social Care & Health,Personal Budget - Third Party,A61019
Royal Borough of Kingston,01/05/2022,90130177,"3,998.96",COMFORT CARE SERVICES UK LTD,SOCIAL SERVICES-HOME CARE,Adult Social Care & Health,Personal Budget - Third Party,A61019
Royal Borough of Kingston,01/05/2022,90130284,"4,095.14",COMFORT CARE SERVICES UK LTD,SOCIAL SERVICES-HOME CARE,Adult Social Care & Health,Personal Budget - Third Party,A61019
Royal Borough of Kingston,01/05/2022,90129727,"8,102.87",COMMUNITY CARE SOLUTIONS LTD,SOCIAL SERVICES RESIDENTIAL,Adult Social Care & Health,Independent Placements,A56006
Royal Borough of Kingston,01/05/2022,90129731,"8,363.45",CONGRESS HOUSE LIMITED ,SOCIAL SERVICES RESIDENTIAL,Adult Social Care & Health,Independent Placements,A56006
Royal Borough of Kingston,01/05/2022,90129707,"10,145.86",CONSENSUS SUPPORT SERVICES LTD ,SOCIAL SERVICES RESIDENTIAL,Adult Social Care & Health,Independent Placements,A56006
Royal Borough of Kingston,01/05/2022,90129814,"11,316.68",CONSENSUS SUPPORT SERVICES LTD ,SOCIAL SERVICES RESIDENTIAL,Adult Social Care & Health,Independent Placements,A56006
Royal Borough of Kingston,01/05/2022,90129786,"12,057.67",CONSENSUS SUPPORT SERVICES LTD ,SOCIAL SERVICES RESIDENTIAL,Adult Social Care & Health,Independent Placements,A56006
Royal Borough of Kingston,01/05/2022,90129735,"15,621.39",CONSENSUS SUPPORT SERVICES LTD ,SOCIAL SERVICES RESIDENTIAL,Adult Social Care & Health,Independent Placements,A56006
Royal Borough of Kingston,27/01/2022,70020401,"2,100.00",CONTINUOUS DATA PRINT (UK) LTD,BUSINESS & COMPUTER SYSTEMS,Corporate & Communities,Design,A43017
Royal Borough of Kingston,04/05/2022,90120040,"107,636.54",COOMBE HILL INFANTS SCHOOL,ACADEMIC INSTNS - OTHER,Schools,Miscellaneous Expenses,A49000
Royal Borough of Kingston,25/05/2022,90127720,"107,636.54",COOMBE HILL INFANTS SCHOOL,ACADEMIC INSTNS - OTHER,Schools,Miscellaneous Expenses,A49000
Royal Borough of Kingston,20/05/2022,90126385,"1,047.00",COOMBE HILL INVESTMENTS,PLS LANDLORDS,Place,PSL Payments To Landlords,A22031
Royal Borough of Kingston,20/05/2022,90126386,"1,047.00",COOMBE HILL INVESTMENTS,PLS LANDLORDS,Place,PSL Payments To Landlords,A22031
Royal Borough of Kingston,20/05/2022,90126789,"1,093.00",COOMBE HILL INVESTMENTS,PLS LANDLORDS,Place,PSL Payments To Landlords,A22031
Royal Borough of Kingston,20/05/2022,90126739,"1,093.50",COOMBE HILL INVESTMENTS,PLS LANDLORDS,Place,PSL Payments To Landlords,A22031
Royal Borough of Kingston,20/05/2022,90126820,"1,093.50",COOMBE HILL INVESTMENTS,PLS LANDLORDS,Place,PSL Payments To Landlords,A22031
Royal Borough of Kingston,20/05/2022,90126640,"1,094.00",COOMBE HILL INVESTMENTS,PLS LANDLORDS,Place,PSL Payments To Landlords,A22031
Royal Borough of Kingston,20/05/2022,90126639,"1,094.34",COOMBE HILL INVESTMENTS,PLS LANDLORDS,Place,PSL Payments To Landlords,A22031
Royal Borough of Kingston,20/05/2022,90126680,"1,850.00",COOMBE HILL INVESTMENTS,PLS LANDLORDS,Place,PSL Payments To Landlords,A22031
Royal Borough of Kingston,20/05/2022,90126806,"2,152.50",COOMBE HILL INVESTMENTS,PLS LANDLORDS,Place,PSL Payments To Landlords,A22031
Royal Borough of Kingston,20/05/2022,90126383,"3,660.00",COOMBE HILL INVESTMENTS,PLS LANDLORDS,Place,PSL Payments To Landlords,A22031
Royal Borough of Kingston,04/05/2022,90120041,"155,365.37",COOMBE HILL JUNIOR SCHOOL,ACADEMIC INSTNS - OTHER,Schools,Miscellaneous Expenses,A49000
Royal Borough of Kingston,25/05/2022,90127721,"155,365.37",COOMBE HILL JUNIOR SCHOOL,ACADEMIC INSTNS - OTHER,Schools,Miscellaneous Expenses,A49000
Royal Borough of Kingston,01/05/2022,90129723,"14,886.82",CORICH COMMUNITY CARE LTD,SOCIAL SERVICES RESIDENTIAL,Adult Social Care & Health,Independent Placements,A56006
Royal Borough of Kingston,04/05/2022,90120042,"149,458.59",CORPUS CHRISTI CATHOLIC PRIMARY SCHOOL ,ACADEMIC INSTNS - OTHER,Schools,Miscellaneous Expenses,A49000
Royal Borough of Kingston,25/05/2022,90127722,"149,458.59",CORPUS CHRISTI CATHOLIC PRIMARY SCHOOL ,ACADEMIC INSTNS - OTHER,Schools,Miscellaneous Expenses,A49000
Royal Borough of Kingston,05/05/2022,70023568,"1,000.00",Corpus Christi School Association,SUNDRY SUPPLIER - FINANCE,Adult Social Care & Health,"Grants, Contributions & Donations",A47005
Royal Borough of Kingston,01/05/2022,90129449,"3,450.96",COUNTRY COURT CARE HOMES 2 LTD,SOCIAL SERVICES RESIDENTIAL,Adult Social Care & Health,Independent Placements,A56006
Royal Borough of Kingston,01/05/2022,90129561,"3,450.96",COUNTRY COURT CARE HOMES 2 LTD,SOCIAL SERVICES RESIDENTIAL,Adult Social Care & Health,Independent Placements,A56006
Royal Borough of Kingston,01/05/2022,90129588,"3,460.18",COUNTRY COURT CARE HOMES 2 LTD,SOCIAL SERVICES RESIDENTIAL,Adult Social Care & Health,Independent Placements,A56006
Royal Borough of Kingston,01/05/2022,90129519,"3,528.91",COUNTRY COURT CARE HOMES 2 LTD,SOCIAL SERVICES RESIDENTIAL,Adult Social Care & Health,Independent Placements,A56006
Royal Borough of Kingston,01/05/2022,90129572,"3,529.17",COUNTRY COURT CARE HOMES 2 LTD,SOCIAL SERVICES RESIDENTIAL,Adult Social Care & Health,Independent Placements,A56006
Royal Borough of Kingston,01/05/2022,90129578,"3,529.17",COUNTRY COURT CARE HOMES 2 LTD,SOCIAL SERVICES RESIDENTIAL,Adult Social Care & Health,Independent Placements,A56006
Royal Borough of Kingston,30/04/2022,70023546,"15,421.55",COUNTRYSIDE PROPERTIES (UK) LTD,CONSTRUCTION INDUSTRY,Capital Programme,Payments to Contractors,C14000
Royal Borough of Kingston,30/04/2022,70023548,"261,751.21",COUNTRYSIDE PROPERTIES (UK) LTD,CONSTRUCTION INDUSTRY,Capital Programme,Payments to Contractors,C14000
Royal Borough of Kingston,30/04/2022,70023547,"335,419.18",COUNTRYSIDE PROPERTIES (UK) LTD,CONSTRUCTION INDUSTRY,Capital Programme,Payments to Contractors,C14000
Royal Borough of Kingston,30/04/2022,70023549,"371,483.39",COUNTRYSIDE PROPERTIES (UK) LTD,CONSTRUCTION INDUSTRY,Capital Programme,Payments to Contractors,C14000
Royal Borough of Kingston,25/04/2022,70023272,"2,244.47",CRAVENCROFT LTD,CONSTRUCTION INDUSTRY,Capital Programme,Payments to Contractors,C14000
Royal Borough of Kingston,19/04/2022,70022565,"3,237.41",CRAVENCROFT LTD,CONSTRUCTION INDUSTRY,Capital Programme,Payments to Contractors,C14000
Royal Borough of Kingston,28/04/2022,70024103,"59,265.18",CRAVENCROFT LTD,CONSTRUCTION INDUSTRY,Capital Programme,Payments to Contractors,C14000
Royal Borough of Kingston,31/01/2022,70024131,165,CROMWOOD LIMITED,PLS LANDLORDS,Place,Bed & Breakfast,A56000
Royal Borough of Kingston,31/01/2022,70024131,165,CROMWOOD LIMITED,PLS LANDLORDS,Place,Bed & Breakfast,A56000
Royal Borough of Kingston,31/01/2022,70024131,"1,210.00",CROMWOOD LIMITED,PLS LANDLORDS,Place,Bed & Breakfast,A56000
Royal Borough of Kingston,28/02/2022,70024129,"1,540.00",CROMWOOD LIMITED,PLS LANDLORDS,Place,Bed & Breakfast,A56000
Royal Borough of Kingston,30/04/2022,70024130,"1,650.00",CROMWOOD LIMITED,PLS LANDLORDS,Place,Bed & Breakfast,A56000
Royal Borough of Kingston,31/03/2022,70024128,"1,705.00",CROMWOOD LIMITED,PLS LANDLORDS,Place,Bed & Breakfast,A56000
Royal Borough of Kingston,20/05/2022,90126547,"1,807.09",CROMWOOD LIMITED,PLS LANDLORDS,Place,PSL Payments To Landlords,A22031
Royal Borough of Kingston,31/01/2022,70023661,800,CROWN PROMOTIONS & REMOVALS LTD,PREMISES - REMOVALS,Housing Revenue Account,Removal Services,A44075
Royal Borough of Kingston,20/05/2022,90126669,936,CRPD,PLS LANDLORDS,Place,PSL Payments To Landlords,A22031
Royal Borough of Kingston,20/05/2022,90126671,936,CRPD,PLS LANDLORDS,Place,PSL Payments To Landlords,A22031
Royal Borough of Kingston,20/05/2022,90126620,"1,094.00",CRPD,PLS LANDLORDS,Place,PSL Payments To Landlords,A22031
Royal Borough of Kingston,20/05/2022,90126621,"1,094.00",CRPD,PLS LANDLORDS,Place,PSL Payments To Landlords,A22031
Royal Borough of Kingston,20/05/2022,90126622,"1,094.00",CRPD,PLS LANDLORDS,Place,PSL Payments To Landlords,A22031
Royal Borough of Kingston,20/05/2022,90126623,"1,094.00",CRPD,PLS LANDLORDS,Place,PSL Payments To Landlords,A22031
Royal Borough of Kingston,20/05/2022,90126670,"1,161.33",CRPD,PLS LANDLORDS,Place,PSL Payments To Landlords,A22031
Royal Borough of Kingston,20/05/2022,90126672,"1,161.33",CRPD,PLS LANDLORDS,Place,PSL Payments To Landlords,A22031
Royal Borough of Kingston,20/05/2022,90126618,"1,314.00",CRPD,PLS LANDLORDS,Place,PSL Payments To Landlords,A22031
Royal Borough of Kingston,20/05/2022,90126619,"1,314.00",CRPD,PLS LANDLORDS,Place,PSL Payments To Landlords,A22031
Royal Borough of Kingston,01/04/2022,70023794,186,CRYSTAL & CO,ACCOMMODATION BED & BREAKFAST,Place,Bed & Breakfast,A56000
Royal Borough of Kingston,01/04/2022,70023793,255,CRYSTAL & CO,ACCOMMODATION BED & BREAKFAST,Place,Bed & Breakfast,A56000
Royal Borough of Kingston,01/04/2022,70023793,918,CRYSTAL & CO,ACCOMMODATION BED & BREAKFAST,Place,Bed & Breakfast,A56000
Royal Borough of Kingston,01/04/2022,70024127,"1,200.00",CRYSTAL & CO,ACCOMMODATION BED & BREAKFAST,Place,Bed & Breakfast,A56000
Royal Borough of Kingston,01/05/2022,70024094,"1,260.00",CRYSTAL & CO,ACCOMMODATION BED & BREAKFAST,Place,Bed & Breakfast,A56000
Royal Borough of Kingston,01/04/2022,70023794,"1,302.00",CRYSTAL & CO,ACCOMMODATION BED & BREAKFAST,Place,Bed & Breakfast,A56000
Royal Borough of Kingston,01/05/2022,70024114,"1,530.00",CRYSTAL & CO,ACCOMMODATION BED & BREAKFAST,Place,Bed & Breakfast,A56000
Royal Borough of Kingston,01/05/2022,70024115,"1,530.00",CRYSTAL & CO,ACCOMMODATION BED & BREAKFAST,Place,Bed & Breakfast,A56000
Royal Borough of Kingston,01/05/2022,70024118,"1,530.00",CRYSTAL & CO,ACCOMMODATION BED & BREAKFAST,Place,Bed & Breakfast,A56000
Royal Borough of Kingston,01/05/2022,70024122,"1,530.00",CRYSTAL & CO,ACCOMMODATION BED & BREAKFAST,Place,Bed & Breakfast,A56000
Royal Borough of Kingston,01/05/2022,70024125,"1,530.00",CRYSTAL & CO,ACCOMMODATION BED & BREAKFAST,Place,Bed & Breakfast,A56000
Royal Borough of Kingston,01/05/2022,70024119,"1,590.00",CRYSTAL & CO,ACCOMMODATION BED & BREAKFAST,Place,Bed & Breakfast,A56000
Royal Borough of Kingston,01/05/2022,70024120,"1,590.00",CRYSTAL & CO,ACCOMMODATION BED & BREAKFAST,Place,Bed & Breakfast,A56000
Royal Borough of Kingston,01/05/2022,70024117,"1,650.00",CRYSTAL & CO,ACCOMMODATION BED & BREAKFAST,Place,Bed & Breakfast,A56000
Royal Borough of Kingston,01/05/2022,70024113,"1,860.00",CRYSTAL & CO,ACCOMMODATION BED & BREAKFAST,Place,Bed & Breakfast,A56000
Royal Borough of Kingston,01/05/2022,70024116,"1,860.00",CRYSTAL & CO,ACCOMMODATION BED & BREAKFAST,Place,Bed & Breakfast,A56000
Royal Borough of Kingston,01/05/2022,70024121,"1,860.00",CRYSTAL & CO,ACCOMMODATION BED & BREAKFAST,Place,Bed & Breakfast,A56000
Royal Borough of Kingston,01/05/2022,70024123,"1,860.00",CRYSTAL & CO,ACCOMMODATION BED & BREAKFAST,Place,Bed & Breakfast,A56000
Royal Borough of Kingston,01/05/2022,70024124,"1,860.00",CRYSTAL & CO,ACCOMMODATION BED & BREAKFAST,Place,Bed & Breakfast,A56000
Royal Borough of Kingston,01/05/2022,70024126,"1,860.00",CRYSTAL & CO,ACCOMMODATION BED & BREAKFAST,Place,Bed & Breakfast,A56000
Royal Borough of Kingston,01/05/2022,90129804,"7,738.31",CSS LTD ,SOCIAL SERVICES - OTHER,Adult Social Care & Health,Independent Placements,A56006
Royal Borough of Kingston,01/05/2022,90129790,"9,610.09",CSS LTD ,SOCIAL SERVICES - OTHER,Adult Social Care & Health,Independent Placements,A56006
Royal Borough of Kingston,01/05/2022,90129726,"10,036.34",CSS LTD ,SOCIAL SERVICES - OTHER,Adult Social Care & Health,Independent Placements,A56006
Royal Borough of Kingston,01/05/2022,90129815,"11,503.21",CSS LTD ,SOCIAL SERVICES - OTHER,Adult Social Care & Health,Independent Placements,A56006
Royal Borough of Kingston,01/05/2022,90129777,"14,737.31",CSS LTD ,SOCIAL SERVICES RESIDENTIAL,Adult Social Care & Health,Independent Placements,A56006
Royal Borough of Kingston,05/05/2022,70024623,885,D & L House Clearance Limited,BUILDING MNTCE - SERVICES,Adult Social Care & Health,Other Cleaning And Waste-Related Third Party Payment,A56064
Royal Borough of Kingston,13/04/2022,70024625,"1,125.00",D & L House Clearance Limited,BUILDING MNTCE - SERVICES,Adult Social Care & Health,Other Cleaning And Waste-Related Third Party Payment,A56064
Royal Borough of Kingston,17/05/2022,70024626,"1,235.00",D & L House Clearance Limited,BUILDING MNTCE - SERVICES,Adult Social Care & Health,Other Cleaning And Waste-Related Third Party Payment,A56064
Royal Borough of Kingston,23/04/2022,70024624,"1,612.00",D & L House Clearance Limited,BUILDING MNTCE - SERVICES,Adult Social Care & Health,Other Cleaning And Waste-Related Third Party Payment,A56064
Royal Borough of Kingston,01/05/2022,90125266,"5,745.89",Darethealthcare UK Limited,ACCOMMODATION - OTHER,Adult Social Care & Health,Personal Budget - Third Party,A61019
Royal Borough of Kingston,01/05/2022,90125267,"6,142.16",Darethealthcare UK Limited,ACCOMMODATION - OTHER,Adult Social Care & Health,Personal Budget - Third Party,A61019
Royal Borough of Kingston,01/05/2022,90125268,"6,294.73",Darethealthcare UK Limited,ACCOMMODATION - OTHER,Adult Social Care & Health,Personal Budget - Third Party,A61019
Royal Borough of Kingston,01/05/2022,90130307,"6,504.55",Darethealthcare UK Limited,ACCOMMODATION - OTHER,Adult Social Care & Health,Personal Budget - Third Party,A61019
Royal Borough of Kingston,02/05/2022,90125125,"-2,435.79",DAY AND NITE SERVICES (KINGSTON),SOCIAL SERVICES-HOME CARE,Adult Social Care & Health,Personal Budget - Third Party,A61019
Royal Borough of Kingston,18/04/2022,90119826,500.15,DAY AND NITE SERVICES (KINGSTON),SOCIAL SERVICES-HOME CARE,Adult Social Care & Health,Personal Budget - Third Party,A61019
Royal Borough of Kingston,25/04/2022,90122759,500.15,DAY AND NITE SERVICES (KINGSTON),SOCIAL SERVICES-HOME CARE,Adult Social Care & Health,Personal Budget - Third Party,A61019
Royal Borough of Kingston,02/05/2022,90125131,500.15,DAY AND NITE SERVICES (KINGSTON),SOCIAL SERVICES-HOME CARE,Adult Social Care & Health,Personal Budget - Third Party,A61019
Royal Borough of Kingston,09/05/2022,90127469,500.15,DAY AND NITE SERVICES (KINGSTON),SOCIAL SERVICES-HOME CARE,Adult Social Care & Health,Personal Budget - Third Party,A61019
Royal Borough of Kingston,16/05/2022,90131083,500.15,DAY AND NITE SERVICES (KINGSTON),SOCIAL SERVICES-HOME CARE,Adult Social Care & Health,Personal Budget - Third Party,A61019
Royal Borough of Kingston,18/04/2022,90119831,543.26,DAY AND NITE SERVICES (KINGSTON),SOCIAL SERVICES-HOME CARE,Adult Social Care & Health,Personal Budget - Third Party,A61019
Royal Borough of Kingston,25/04/2022,90122764,543.26,DAY AND NITE SERVICES (KINGSTON),SOCIAL SERVICES-HOME CARE,Adult Social Care & Health,Personal Budget - Third Party,A61019
Royal Borough of Kingston,02/05/2022,90125135,543.26,DAY AND NITE SERVICES (KINGSTON),SOCIAL SERVICES-HOME CARE,Adult Social Care & Health,Personal Budget - Third Party,A61019
Royal Borough of Kingston,09/05/2022,90127473,543.26,DAY AND NITE SERVICES (KINGSTON),SOCIAL SERVICES-HOME CARE,Adult Social Care & Health,Personal Budget - Third Party,A61019
Royal Borough of Kingston,16/05/2022,90131088,543.26,DAY AND NITE SERVICES (KINGSTON),SOCIAL SERVICES-HOME CARE,Adult Social Care & Health,Personal Budget - Third Party,A61019
Royal Borough of Kingston,18/04/2022,90119921,663.99,DAY AND NITE SERVICES (KINGSTON),SOCIAL SERVICES-HOME CARE,Adult Social Care & Health,Personal Budget - Third Party,A61019
Royal Borough of Kingston,25/04/2022,90122863,663.99,DAY AND NITE SERVICES (KINGSTON),SOCIAL SERVICES-HOME CARE,Adult Social Care & Health,Personal Budget - Third Party,A61019
Royal Borough of Kingston,02/05/2022,90125222,663.99,DAY AND NITE SERVICES (KINGSTON),SOCIAL SERVICES-HOME CARE,Adult Social Care & Health,Personal Budget - Third Party,A61019
Royal Borough of Kingston,09/05/2022,90127657,663.99,DAY AND NITE SERVICES (KINGSTON),SOCIAL SERVICES-HOME CARE,Adult Social Care & Health,Personal Budget - Third Party,A61019
Royal Borough of Kingston,16/05/2022,90131176,663.99,DAY AND NITE SERVICES (KINGSTON),SOCIAL SERVICES-HOME CARE,Adult Social Care & Health,Personal Budget - Third Party,A61019
Royal Borough of Kingston,18/04/2022,90119821,"2,435.79",DAY AND NITE SERVICES (KINGSTON),SOCIAL SERVICES-HOME CARE,Adult Social Care & Health,Personal Budget - Third Party,A61019
Royal Borough of Kingston,25/04/2022,90122752,"2,435.79",DAY AND NITE SERVICES (KINGSTON),SOCIAL SERVICES-HOME CARE,Adult Social Care & Health,Personal Budget - Third Party,A61019
Royal Borough of Kingston,30/04/2022,70023780,"1,800.00",Delta Wise Limited,ACCOMMODATION BED & BREAKFAST,Place,Bed & Breakfast,A56000
Royal Borough of Kingston,01/05/2022,90130261,"6,665.00",Dephinus Healthcare Ltd,ACCOMMODATION - OTHER,Adult Social Care & Health,Personal Budget - Third Party,A61019
Royal Borough of Kingston,09/05/2022,70023704,950,DEXTERS LIMITED,LANDLORDS,Adult Social Care & Health,Building Rents,A22005
Royal Borough of Kingston,31/03/2022,70023866,"24,132.00",DISCLOSURE AND BARRING SERVICE ,LEGAL & PROFESSIONAL SERVICES,Corporate & Communities,DBS Checks,A15029
Royal Borough of Kingston,30/04/2022,70023611,"3,309.00",DOLPHIN MOBILITY LIMITED,CONSTRUCTION INDUSTRY,Capital Programme,Disabled Adaptations,C20003
Royal Borough of Kingston,01/05/2022,90129783,"5,534.83",DOWNING (CHERTSEY ROAD) LTD,SOCIAL SERVICES RESIDENTIAL,Adult Social Care & Health,Independent Placements,A56006
Royal Borough of Kingston,30/04/2022,70024668,140,Dunheved Hotel LTD,ACCOMMODATION BED & BREAKFAST,Place,Bed & Breakfast,A56000
Royal Borough of Kingston,30/04/2022,70024668,"1,050.00",Dunheved Hotel LTD,ACCOMMODATION BED & BREAKFAST,Place,Bed & Breakfast,A56000
Royal Borough of Kingston,30/04/2022,70023431,"3,366.61",DURADIAMOND HEALTHCARE LIMITED,LEGAL & PROFESSIONAL SERVICES,Corporate & Communities,Other Private Contractors - Third Party,A56080
Royal Borough of Kingston,20/05/2022,90126381,"1,047.00",EARLSFIELD PROPERTIES,PLS LANDLORDS,Place,PSL Payments To Landlords,A22031
Royal Borough of Kingston,20/05/2022,90126598,"1,094.00",EARLSFIELD PROPERTIES,PLS LANDLORDS,Place,PSL Payments To Landlords,A22031
Royal Borough of Kingston,20/05/2022,90126599,"1,094.00",EARLSFIELD PROPERTIES,PLS LANDLORDS,Place,PSL Payments To Landlords,A22031
Royal Borough of Kingston,27/04/2022,70023495,732.93,EDF ENERGY CUSTOMER PLC,UTILITIES,Housing Revenue Account,Electricity,A21000
Royal Borough of Kingston,24/02/2022,70023764,599.58,EDF ENERGY CUSTOMERS PLC,UTILITIES,Place,Electricity,A21000
Royal Borough of Kingston,25/03/2022,70023769,607.01,EDF ENERGY CUSTOMERS PLC,UTILITIES,Place,Electricity,A21000
Royal Borough of Kingston,22/04/2022,70023423,450,EGBERT H TAYLOR & CO LIMITED,OPERATIONAL EQUIPMENT/MATERIAL,Corporate & Communities,Equipment And Materials Purchase,A40000
Royal Borough of Kingston,22/04/2022,70023423,"4,872.00",EGBERT H TAYLOR & CO LIMITED,OPERATIONAL EQUIPMENT/MATERIAL,Corporate & Communities,Equipment And Materials Purchase,A40000
Royal Borough of Kingston,03/05/2022,70023493,596.23,ELAN PRINT & DESIGN LTD,OFFICE SERVICES,Corporate & Communities,Design,A43017
Royal Borough of Kingston,31/01/2022,70025077,445.21,ELDERCARE (UK) LTD,SOCIAL SERVICES - OTHER,Adult Social Care & Health,Equipment And Materials Purchase,A40000
Royal Borough of Kingston,31/03/2022,70025078,489.91,ELDERCARE (UK) LTD,SOCIAL SERVICES - OTHER,Adult Social Care & Health,Equipment And Materials Purchase,A40000
Royal Borough of Kingston,28/02/2022,70025080,"1,015.00",ELDERCARE (UK) LTD,SOCIAL SERVICES - OTHER,Adult Social Care & Health,Equipment And Materials Purchase,A40000
Royal Borough of Kingston,31/01/2022,70023524,"2,798.28",ELDERCARE (UK) LTD,SOCIAL SERVICES - OTHER,Adult Social Care & Health,Equipment And Materials Purchase,A40000
Royal Borough of Kingston,31/03/2022,70025079,"7,581.65",ELDERCARE (UK) LTD,SOCIAL SERVICES - OTHER,Adult Social Care & Health,Equipment And Materials Purchase,A40000
Royal Borough of Kingston,04/05/2022,90120053,"4,369.73",ELLINGHAM PRIMARY SCHOOL,ACADEMIC INSTNS - OTHER,Schools,Miscellaneous Expenses,A49000
Royal Borough of Kingston,01/05/2022,90124547,642.86,ELMGLADE CARE HOME,SOCIAL SERVICES-HOME CARE,Adult Social Care & Health,Independent Placements,A56006
Royal Borough of Kingston,01/05/2022,90129821,642.86,ELMGLADE CARE HOME,SOCIAL SERVICES-HOME CARE,Adult Social Care & Health,Other Private Contractors - Third Party,A56080
Royal Borough of Kingston,01/05/2022,90129820,857.14,ELMGLADE CARE HOME,SOCIAL SERVICES-HOME CARE,Adult Social Care & Health,Other Private Contractors - Third Party,A56080
Royal Borough of Kingston,01/05/2022,90124548,"2,357.14",ELMGLADE CARE HOME,SOCIAL SERVICES-HOME CARE,Adult Social Care & Health,Independent Placements,A56006
Royal Borough of Kingston,01/05/2022,90129712,"8,052.25",ELYSIUM HEALTHCARE LTD,SOCIAL SERVICES - OTHER,Adult Social Care & Health,Independent Placements,A56006
Royal Borough of Kingston,01/05/2022,90129706,"9,536.80",ELYSIUM HEALTHCARE LTD,SOCIAL SERVICES - OTHER,Adult Social Care & Health,Independent Placements,A56006
Royal Borough of Kingston,01/05/2022,90129699,"9,884.57",ELYSIUM HEALTHCARE LTD,SOCIAL SERVICES - OTHER,Adult Social Care & Health,Independent Placements,A56006
Royal Borough of Kingston,01/05/2022,90129737,"9,884.57",ELYSIUM HEALTHCARE LTD,SOCIAL SERVICES - OTHER,Adult Social Care & Health,Independent Placements,A56006
Royal Borough of Kingston,01/05/2022,90129715,"10,084.65",ELYSIUM HEALTHCARE LTD,SOCIAL SERVICES - OTHER,Adult Social Care & Health,Independent Placements,A56006
Royal Borough of Kingston,01/05/2022,90129708,"11,347.02",ELYSIUM HEALTHCARE LTD,SOCIAL SERVICES - OTHER,Adult Social Care & Health,Independent Placements,A56006
Royal Borough of Kingston,02/05/2022,90129861,"1,028.57",EMEZZIONS LIMITED ,SOCIAL SERVICES - OTHER,Adult Social Care & Health,Supported Living - new framework,A56126
Royal Borough of Kingston,02/05/2022,90129873,"1,224.00",EMEZZIONS LIMITED ,SOCIAL SERVICES - OTHER,Adult Social Care & Health,Supported Living - new framework,A56126
Royal Borough of Kingston,02/05/2022,90129863,"1,414.29",EMEZZIONS LIMITED ,SOCIAL SERVICES - OTHER,Adult Social Care & Health,Supported Living - new framework,A56126
Royal Borough of Kingston,02/05/2022,90129862,"3,600.00",EMEZZIONS LIMITED ,SOCIAL SERVICES - OTHER,Adult Social Care & Health,Supported Living - new framework,A56126
Royal Borough of Kingston,01/05/2022,90129866,"9,767.10",EMEZZIONS LIMITED ,SOCIAL SERVICES - OTHER,Adult Social Care & Health,Supported Living - new framework,A56126
Royal Borough of Kingston,01/05/2022,90129570,"3,349.68",ENHAM,SOCIAL SERVICES - OTHER,Adult Social Care & Health,Independent Placements,A56006
Royal Borough of Kingston,01/05/2022,90129840,525.01,ENHANCEABLE,SOCIAL SERVICES - OTHER,Adult Social Care & Health,Other Private Contractors - Third Party,A56080
Royal Borough of Kingston,01/05/2022,90129894,644.84,ENHANCEABLE,SOCIAL SERVICES - OTHER,Adult Social Care & Health,Personal Budget - Third Party,A61019
Royal Borough of Kingston,01/05/2022,90130417,937.97,ENHANCEABLE,SOCIAL SERVICES - OTHER,Adult Social Care & Health,Personal Budget - Third Party,A61019
Royal Borough of Kingston,01/05/2022,90130418,"1,031.77",ENHANCEABLE,SOCIAL SERVICES - OTHER,Adult Social Care & Health,Personal Budget - Third Party,A61019
Royal Borough of Kingston,01/05/2022,90125245,"1,501.46",ENHANCEABLE,SOCIAL SERVICES - OTHER,Adult Social Care & Health,Personal Budget - Third Party,A61019
Royal Borough of Kingston,01/05/2022,90130155,"1,688.35",ENHANCEABLE,SOCIAL SERVICES - OTHER,Adult Social Care & Health,Personal Budget - Third Party,A61019
Royal Borough of Kingston,01/05/2022,90129835,"31,227.10",ENHANCEABLE,SOCIAL SERVICES - OTHER,Adult Social Care & Health,Other Private Contractors - Third Party,A56080
Royal Borough of Kingston,09/05/2022,70023628,750,ERNST AND YOUNG LLP,LEGAL & PROFESSIONAL SERVICES,Place,Professional Fees,A44066
Royal Borough of Kingston,09/05/2022,70023629,"4,500.00",ERNST AND YOUNG LLP,LEGAL & PROFESSIONAL SERVICES,Place,Professional Fees,A44066
Royal Borough of Kingston,28/04/2022,70023284,"50,000.00",ERNST AND YOUNG LLP,LEGAL & PROFESSIONAL SERVICES,Adult Social Care & Health,Professional Fees,A44066
Royal Borough of Kingston,10/05/2022,70024864,"1,050.00",ETEACH UK LTD,OPERATIONAL EQUIPMENT/MATERIAL,Corporate & Communities,Subscriptions,A47010
Royal Borough of Kingston,29/04/2022,70024532,"4,987.50",ETEACH UK LTD,OPERATIONAL EQUIPMENT/MATERIAL,Corporate & Communities,Subscriptions,A47010
Royal Borough of Kingston,26/04/2022,70024531,"27,695.00",ETEACH UK LTD,OPERATIONAL EQUIPMENT/MATERIAL,Corporate & Communities,Subscriptions,A47010
Royal Borough of Kingston,26/04/2022,70024534,"37,717.50",ETEACH UK LTD,OPERATIONAL EQUIPMENT/MATERIAL,Corporate & Communities,Subscriptions,A47010
Royal Borough of Kingston,26/04/2022,70024530,"42,475.00",ETEACH UK LTD,OPERATIONAL EQUIPMENT/MATERIAL,Corporate & Communities,Subscriptions,A47010
Royal Borough of Kingston,26/04/2022,70024533,"43,812.50",ETEACH UK LTD,OPERATIONAL EQUIPMENT/MATERIAL,Corporate & Communities,Subscriptions,A47010
Royal Borough of Kingston,30/04/2022,70023351,"2,000.00",EVOLVE CONSULTING ENGINEERS LTD,LEGAL & PROFESSIONAL SERVICES,Capital Programme,Buildings - Design & Planning,C14001
Royal Borough of Kingston,01/05/2022,70024655,"1,620.00",EXCLUSIVE FINE HOMES LTD,ACCOMMODATION BED & BREAKFAST,Place,Bed & Breakfast,A56000
Royal Borough of Kingston,01/05/2022,70024656,"1,770.00",EXCLUSIVE FINE HOMES LTD,ACCOMMODATION BED & BREAKFAST,Place,Bed & Breakfast,A56000
Royal Borough of Kingston,01/05/2022,70024660,"1,770.00",EXCLUSIVE FINE HOMES LTD,ACCOMMODATION BED & BREAKFAST,Place,Bed & Breakfast,A56000
Royal Borough of Kingston,01/05/2022,70024661,"2,040.00",EXCLUSIVE FINE HOMES LTD,ACCOMMODATION BED & BREAKFAST,Place,Bed & Breakfast,A56000
Royal Borough of Kingston,01/05/2022,70024657,"4,500.00",EXCLUSIVE FINE HOMES LTD,ACCOMMODATION BED & BREAKFAST,Place,Bed & Breakfast,A56000
Royal Borough of Kingston,01/05/2022,70024659,"4,500.00",EXCLUSIVE FINE HOMES LTD,ACCOMMODATION BED & BREAKFAST,Place,Bed & Breakfast,A56000
Royal Borough of Kingston,06/05/2022,70023621,500,F H & G LIMITED,LEGAL & PROFESSIONAL SERVICES,Housing Revenue Account,Professional Fees,A44066
Royal Borough of Kingston,13/05/2022,70024157,500,F H & G LIMITED,LEGAL & PROFESSIONAL SERVICES,Housing Revenue Account,Professional Fees,A44066
Royal Borough of Kingston,20/05/2022,70024820,500,F H & G LIMITED,LEGAL & PROFESSIONAL SERVICES,Housing Revenue Account,Professional Fees,A44066
Royal Borough of Kingston,29/04/2022,70023358,650,F H & G LIMITED,LEGAL & PROFESSIONAL SERVICES,Housing Revenue Account,Professional Fees,A44066
Royal Borough of Kingston,06/05/2022,70023620,650,F H & G LIMITED,LEGAL & PROFESSIONAL SERVICES,Housing Revenue Account,Professional Fees,A44066
Royal Borough of Kingston,13/05/2022,70024156,650,F H & G LIMITED,LEGAL & PROFESSIONAL SERVICES,Housing Revenue Account,Professional Fees,A44066
Royal Borough of Kingston,28/04/2022,70023440,"1,471.66",F.M. CONWAY LTD,CONSTRUCTION INDUSTRY,Corporate & Communities,TMS - General,A56085
Royal Borough of Kingston,06/05/2022,70023652,"8,573.37",F.M. CONWAY LTD,CONSTRUCTION INDUSTRY,Corporate & Communities,Vehicle Crossings,A56043
Royal Borough of Kingston,25/04/2022,70023037,"22,938.94",F.M. CONWAY LTD,CONSTRUCTION INDUSTRY,Capital Programme,Infrastructure Assets - Project Management,C12000
Royal Borough of Kingston,29/04/2022,70024613,"2,250.00",Faithorn Farrell Timms LLP,TEMP STAFF & CONSULTANCY,Housing Revenue Account,Consultancy Services - Other,A44065
Royal Borough of Kingston,28/02/2022,70024611,"11,100.00",Faithorn Farrell Timms LLP,TEMP STAFF & CONSULTANCY,Housing Revenue Account,Consultancy Services - Other,A44065
Royal Borough of Kingston,28/03/2022,70024612,"12,703.12",Faithorn Farrell Timms LLP,TEMP STAFF & CONSULTANCY,Housing Revenue Account,Consultancy Services - Other,A44065
Royal Borough of Kingston,01/05/2022,90129778,"4,546.06",FAMILY INVESTMENT (THREE) LIMITED,SOCIAL SERVICES RESIDENTIAL,Adult Social Care & Health,Independent Placements,A56006
Royal Borough of Kingston,29/03/2022,70023859,"2,781.51",FASTSIGNS,BUILDING MNTCE - SERVICES,Corporate & Communities,Equipment And Materials Purchase,A40000
Royal Borough of Kingston,01/05/2022,70023914,"1,050.00",Financial Data Management Ltd,OFFICE SUPPLIES,Corporate & Communities,Printing And Photocopying,A43005
Royal Borough of Kingston,02/05/2022,90124577,"1,635.37",FIRST CHOICE SOCIAL CARE & SHELTERED HOUSING LTD,SOCIAL SERVICES - OTHER,Adult Social Care & Health,Homecare - new framework,A56127
Royal Borough of Kingston,09/05/2022,90126891,"2,861.90",FIRST CHOICE SOCIAL CARE & SHELTERED HOUSING LTD,SOCIAL SERVICES - OTHER,Adult Social Care & Health,Homecare - new framework,A56127
Royal Borough of Kingston,03/05/2022,70023430,"3,000.00",FLEXRM LIMITED,OPERATIONAL EQUIPMENT/MATERIAL,Corporate & Communities,IT Software Maintenance,A45045
Royal Borough of Kingston,20/05/2022,90126426,850,FORTYNINE LTD,PLS LANDLORDS,Place,PSL Payments To Landlords,A22031
Royal Borough of Kingston,01/05/2022,90129583,"-1,686.51",FOUR SEASONS HEALTHCARE,SOCIAL SERVICES RESIDENTIAL,Adult Social Care & Health,Independent Placements,A56006
Royal Borough of Kingston,01/05/2022,90129426,"3,013.86",FOUR SEASONS HEALTHCARE,SOCIAL SERVICES RESIDENTIAL,Adult Social Care & Health,Independent Placements,A56006
Royal Borough of Kingston,01/05/2022,90129448,"3,013.86",FOUR SEASONS HEALTHCARE,SOCIAL SERVICES RESIDENTIAL,Adult Social Care & Health,Independent Placements,A56006
Royal Borough of Kingston,01/05/2022,90129453,"3,229.62",FOUR SEASONS HEALTHCARE,SOCIAL SERVICES RESIDENTIAL,Adult Social Care & Health,Independent Placements,A56006
Royal Borough of Kingston,01/05/2022,90129597,"3,229.62",FOUR SEASONS HEALTHCARE,SOCIAL SERVICES RESIDENTIAL,Adult Social Care & Health,Independent Placements,A56006
Royal Borough of Kingston,01/05/2022,90129486,"3,317.53",FOUR SEASONS HEALTHCARE,SOCIAL SERVICES RESIDENTIAL,Adult Social Care & Health,Independent Placements,A56006
Royal Borough of Kingston,01/05/2022,90129475,"3,335.95",FOUR SEASONS HEALTHCARE,SOCIAL SERVICES RESIDENTIAL,Adult Social Care & Health,Independent Placements,A56006
Royal Borough of Kingston,01/05/2022,90129586,"3,358.94",FOUR SEASONS HEALTHCARE,SOCIAL SERVICES RESIDENTIAL,Adult Social Care & Health,Independent Placements,A56006
Royal Borough of Kingston,01/05/2022,90129404,"3,434.40",FOUR SEASONS HEALTHCARE,SOCIAL SERVICES RESIDENTIAL,Adult Social Care & Health,Independent Placements,A56006
Royal Borough of Kingston,01/05/2022,90129388,"3,450.96",FOUR SEASONS HEALTHCARE,SOCIAL SERVICES RESIDENTIAL,Adult Social Care & Health,Independent Placements,A56006
Royal Borough of Kingston,01/05/2022,90129397,"3,450.96",FOUR SEASONS HEALTHCARE,SOCIAL SERVICES RESIDENTIAL,Adult Social Care & Health,Independent Placements,A56006
Royal Borough of Kingston,01/05/2022,90129428,"3,450.96",FOUR SEASONS HEALTHCARE,SOCIAL SERVICES RESIDENTIAL,Adult Social Care & Health,Independent Placements,A56006
Royal Borough of Kingston,01/05/2022,90129489,"3,450.96",FOUR SEASONS HEALTHCARE,SOCIAL SERVICES RESIDENTIAL,Adult Social Care & Health,Independent Placements,A56006
Royal Borough of Kingston,01/05/2022,90129377,"3,520.01",FOUR SEASONS HEALTHCARE,SOCIAL SERVICES RESIDENTIAL,Adult Social Care & Health,Independent Placements,A56006
Royal Borough of Kingston,01/05/2022,90129390,"3,542.86",FOUR SEASONS HEALTHCARE,SOCIAL SERVICES RESIDENTIAL,Adult Social Care & Health,Independent Placements,A56006
Royal Borough of Kingston,01/05/2022,90129354,"3,668.23",FOUR SEASONS HEALTHCARE,SOCIAL SERVICES RESIDENTIAL,Adult Social Care & Health,Independent Placements,A56006
Royal Borough of Kingston,01/05/2022,90129410,"5,337.49",FOUR SEASONS HEALTHCARE,SOCIAL SERVICES RESIDENTIAL,Adult Social Care & Health,Independent Placements,A56006
Royal Borough of Kingston,01/05/2022,90130277,"17,629.17",Freshstart Care Solutions Ltd,ACCOMMODATION - OTHER,Adult Social Care & Health,Personal Budget - Third Party,A61019
Royal Borough of Kingston,30/04/2022,70023500,"3,048.00",GAS CONTRACT SERVICES LTD,LEGAL & PROFESSIONAL SERVICES,Housing Revenue Account,Gas Servicing & Heating Repairs,A20005
Royal Borough of Kingston,20/05/2022,90126505,"1,240.00",GATES & BRADSHAW (UK) LTD,PLS LANDLORDS,Place,PSL Payments To Landlords,A22031
Royal Borough of Kingston,01/05/2022,90129954,442.86,GENEVA ROAD LIMITED,SOCIAL SERVICES RESIDENTIAL,Adult Social Care & Health,Personal Budget - Third Party,A61019
Royal Borough of Kingston,01/05/2022,90129955,442.86,GENEVA ROAD LIMITED,SOCIAL SERVICES RESIDENTIAL,Adult Social Care & Health,Personal Budget - Third Party,A61019
Royal Borough of Kingston,01/05/2022,90129965,442.86,GENEVA ROAD LIMITED,SOCIAL SERVICES RESIDENTIAL,Adult Social Care & Health,Personal Budget - Third Party,A61019
Royal Borough of Kingston,01/05/2022,90130419,486.04,GENEVA ROAD LIMITED,SOCIAL SERVICES RESIDENTIAL,Adult Social Care & Health,Personal Budget - Third Party,A61019
Royal Borough of Kingston,01/05/2022,90130002,506.89,GENEVA ROAD LIMITED,SOCIAL SERVICES RESIDENTIAL,Adult Social Care & Health,Personal Budget - Third Party,A61019
Royal Borough of Kingston,02/05/2022,90129857,528.08,GENEVA ROAD LIMITED,SOCIAL SERVICES RESIDENTIAL,Adult Social Care & Health,Supported Living - new framework,A56126
Royal Borough of Kingston,01/05/2022,90130024,553.57,GENEVA ROAD LIMITED,SOCIAL SERVICES RESIDENTIAL,Adult Social Care & Health,Personal Budget - Third Party,A61019
Royal Borough of Kingston,01/05/2022,90129968,663.78,GENEVA ROAD LIMITED,SOCIAL SERVICES RESIDENTIAL,Adult Social Care & Health,Personal Budget - Third Party,A61019
Royal Borough of Kingston,01/05/2022,90129957,664.29,GENEVA ROAD LIMITED,SOCIAL SERVICES RESIDENTIAL,Adult Social Care & Health,Personal Budget - Third Party,A61019
Royal Borough of Kingston,01/05/2022,90129958,664.29,GENEVA ROAD LIMITED,SOCIAL SERVICES RESIDENTIAL,Adult Social Care & Health,Personal Budget - Third Party,A61019
Royal Borough of Kingston,01/05/2022,90130026,664.29,GENEVA ROAD LIMITED,SOCIAL SERVICES RESIDENTIAL,Adult Social Care & Health,Personal Budget - Third Party,A61019
Royal Borough of Kingston,01/05/2022,90129920,693.51,GENEVA ROAD LIMITED,SOCIAL SERVICES RESIDENTIAL,Adult Social Care & Health,Personal Budget - Third Party,A61019
Royal Borough of Kingston,01/05/2022,90129921,775,GENEVA ROAD LIMITED,SOCIAL SERVICES RESIDENTIAL,Adult Social Care & Health,Personal Budget - Third Party,A61019
Royal Borough of Kingston,01/05/2022,90130003,875.79,GENEVA ROAD LIMITED,SOCIAL SERVICES RESIDENTIAL,Adult Social Care & Health,Personal Budget - Third Party,A61019
Royal Borough of Kingston,01/05/2022,90129985,885.71,GENEVA ROAD LIMITED,SOCIAL SERVICES RESIDENTIAL,Adult Social Care & Health,Personal Budget - Third Party,A61019
Royal Borough of Kingston,01/05/2022,90129933,"1,107.14",GENEVA ROAD LIMITED,SOCIAL SERVICES RESIDENTIAL,Adult Social Care & Health,Personal Budget - Third Party,A61019
Royal Borough of Kingston,01/05/2022,90129934,"1,107.14",GENEVA ROAD LIMITED,SOCIAL SERVICES RESIDENTIAL,Adult Social Care & Health,Personal Budget - Third Party,A61019
Royal Borough of Kingston,01/05/2022,90129949,"1,107.14",GENEVA ROAD LIMITED,SOCIAL SERVICES RESIDENTIAL,Adult Social Care & Health,Personal Budget - Third Party,A61019
Royal Borough of Kingston,01/05/2022,90129960,"1,107.14",GENEVA ROAD LIMITED,SOCIAL SERVICES RESIDENTIAL,Adult Social Care & Health,Personal Budget - Third Party,A61019
Royal Borough of Kingston,01/05/2022,90129961,"1,107.14",GENEVA ROAD LIMITED,SOCIAL SERVICES RESIDENTIAL,Adult Social Care & Health,Personal Budget - Third Party,A61019
Royal Borough of Kingston,01/05/2022,90129959,"1,155.86",GENEVA ROAD LIMITED,SOCIAL SERVICES RESIDENTIAL,Adult Social Care & Health,Personal Budget - Third Party,A61019
Royal Borough of Kingston,01/05/2022,90129948,"1,271.44",GENEVA ROAD LIMITED,SOCIAL SERVICES RESIDENTIAL,Adult Social Care & Health,Personal Budget - Third Party,A61019
Royal Borough of Kingston,02/05/2022,90129864,"1,357.92",GENEVA ROAD LIMITED,SOCIAL SERVICES RESIDENTIAL,Adult Social Care & Health,Supported Living - new framework,A56126
Royal Borough of Kingston,01/05/2022,90129922,"1,992.86",GENEVA ROAD LIMITED,SOCIAL SERVICES RESIDENTIAL,Adult Social Care & Health,Personal Budget - Third Party,A61019
Royal Borough of Kingston,01/05/2022,90129584,"3,450.96",GEORGIAN HOUSE NURSING HOME ,SOCIAL SERVICES RESIDENTIAL,Adult Social Care & Health,Independent Placements,A56006
Royal Borough of Kingston,30/04/2022,70023492,"6,000.00",GLEEDS ADVISORY LIMITED,LEGAL & PROFESSIONAL SERVICES,Capital Programme,Buildings - Project Management,C14003
Royal Borough of Kingston,28/02/2022,70022761,"2,800.00",Glendale Countryside Ltd,CONSTRUCTION INDUSTRY,Adult Social Care & Health,"Grants, Contributions & Donations",A47005
Royal Borough of Kingston,25/04/2022,90122310,"-2,044.22",Global Homecare,SOCIAL SERVICES-HOME CARE,Adult Social Care & Health,Homecare - new framework,A56127
Royal Borough of Kingston,02/05/2022,90124584,612.51,Global Homecare,SOCIAL SERVICES-HOME CARE,Adult Social Care & Health,Homecare - new framework,A56127
Royal Borough of Kingston,09/05/2022,90126901,612.51,Global Homecare,SOCIAL SERVICES-HOME CARE,Adult Social Care & Health,Homecare - new framework,A56127
Royal Borough of Kingston,16/05/2022,90130532,612.51,Global Homecare,SOCIAL SERVICES-HOME CARE,Adult Social Care & Health,Homecare - new framework,A56127
Royal Borough of Kingston,02/05/2022,90124610,"1,226.53",Global Homecare,SOCIAL SERVICES-HOME CARE,Adult Social Care & Health,Homecare - new framework,A56127
Royal Borough of Kingston,02/05/2022,90124932,"1,635.37",Global Homecare,SOCIAL SERVICES-HOME CARE,Adult Social Care & Health,Homecare - new framework,A56127
Royal Borough of Kingston,18/04/2022,90119309,"2,044.22",Global Homecare,SOCIAL SERVICES-HOME CARE,Adult Social Care & Health,Homecare - new framework,A56127
Royal Borough of Kingston,18/04/2022,90119301,"2,861.90",Global Homecare,SOCIAL SERVICES-HOME CARE,Adult Social Care & Health,Homecare - new framework,A56127
Royal Borough of Kingston,18/04/2022,90119316,"2,861.90",Global Homecare,SOCIAL SERVICES-HOME CARE,Adult Social Care & Health,Homecare - new framework,A56127
Royal Borough of Kingston,18/04/2022,90119654,"2,861.90",Global Homecare,SOCIAL SERVICES-HOME CARE,Adult Social Care & Health,Homecare - new framework,A56127
Royal Borough of Kingston,25/04/2022,90121928,"2,861.90",Global Homecare,SOCIAL SERVICES-HOME CARE,Adult Social Care & Health,Homecare - new framework,A56127
Royal Borough of Kingston,25/04/2022,90121942,"2,861.90",Global Homecare,SOCIAL SERVICES-HOME CARE,Adult Social Care & Health,Homecare - new framework,A56127
Royal Borough of Kingston,02/05/2022,90124590,"2,861.90",Global Homecare,SOCIAL SERVICES-HOME CARE,Adult Social Care & Health,Homecare - new framework,A56127
Royal Borough of Kingston,09/05/2022,90126906,"2,861.90",Global Homecare,SOCIAL SERVICES-HOME CARE,Adult Social Care & Health,Homecare - new framework,A56127
Royal Borough of Kingston,09/05/2022,90126926,"2,861.90",Global Homecare,SOCIAL SERVICES-HOME CARE,Adult Social Care & Health,Homecare - new framework,A56127
Royal Borough of Kingston,16/05/2022,90130537,"2,861.90",Global Homecare,SOCIAL SERVICES-HOME CARE,Adult Social Care & Health,Homecare - new framework,A56127
Royal Borough of Kingston,16/05/2022,90130560,"2,861.90",Global Homecare,SOCIAL SERVICES-HOME CARE,Adult Social Care & Health,Homecare - new framework,A56127
Royal Borough of Kingston,01/05/2022,90129562,"4,207.14",GLORY CARE CENTRE LTD,SOCIAL SERVICES RESIDENTIAL,Adult Social Care & Health,Independent Placements,A56006
Royal Borough of Kingston,01/05/2022,90129663,-537.1,Gold Care Homes,SOCIAL SERVICES RESIDENTIAL,Adult Social Care & Health,Independent Placements,A56006
Royal Borough of Kingston,01/05/2022,90129907,530.42,Gold Care Homes,SOCIAL SERVICES RESIDENTIAL,Adult Social Care & Health,Personal Budget - Third Party,A61019
Royal Borough of Kingston,01/05/2022,90129882,626.86,Gold Care Homes,SOCIAL SERVICES RESIDENTIAL,Adult Social Care & Health,Personal Budget - Third Party,A61019
Royal Borough of Kingston,01/05/2022,90129906,867.96,Gold Care Homes,SOCIAL SERVICES RESIDENTIAL,Adult Social Care & Health,Personal Budget - Third Party,A61019
Royal Borough of Kingston,01/05/2022,90129879,938.86,Gold Care Homes,SOCIAL SERVICES RESIDENTIAL,Adult Social Care & Health,Personal Budget - Third Party,A61019
Royal Borough of Kingston,01/05/2022,90129885,"1,559.96",Gold Care Homes,SOCIAL SERVICES RESIDENTIAL,Adult Social Care & Health,Personal Budget - Third Party,A61019
Royal Borough of Kingston,01/05/2022,90129545,"3,450.96",Gold Care Homes,SOCIAL SERVICES RESIDENTIAL,Adult Social Care & Health,Independent Placements,A56006
Royal Borough of Kingston,01/05/2022,90129649,"4,162.50",Gold Care Homes,SOCIAL SERVICES RESIDENTIAL,Adult Social Care & Health,Independent Placements,A56006
Royal Borough of Kingston,01/05/2022,90129665,"4,162.50",Gold Care Homes,SOCIAL SERVICES RESIDENTIAL,Adult Social Care & Health,Independent Placements,A56006
Royal Borough of Kingston,01/05/2022,90129672,"4,162.50",Gold Care Homes,SOCIAL SERVICES RESIDENTIAL,Adult Social Care & Health,Independent Placements,A56006
Royal Borough of Kingston,01/05/2022,90129507,"4,462.23",Gold Care Homes,SOCIAL SERVICES RESIDENTIAL,Adult Social Care & Health,Independent Placements,A56006
Royal Borough of Kingston,01/05/2022,90129528,"4,462.23",Gold Care Homes,SOCIAL SERVICES RESIDENTIAL,Adult Social Care & Health,Independent Placements,A56006
Royal Borough of Kingston,01/05/2022,90129635,"4,462.23",Gold Care Homes,SOCIAL SERVICES RESIDENTIAL,Adult Social Care & Health,Independent Placements,A56006
Royal Borough of Kingston,01/05/2022,90129650,"4,462.23",Gold Care Homes,SOCIAL SERVICES RESIDENTIAL,Adult Social Care & Health,Independent Placements,A56006
Royal Borough of Kingston,01/05/2022,90129660,"4,462.23",Gold Care Homes,SOCIAL SERVICES RESIDENTIAL,Adult Social Care & Health,Independent Placements,A56006
Royal Borough of Kingston,01/05/2022,90129543,"4,762.35",Gold Care Homes,SOCIAL SERVICES RESIDENTIAL,Adult Social Care & Health,Independent Placements,A56006
Royal Borough of Kingston,01/05/2022,90129651,"4,762.35",Gold Care Homes,SOCIAL SERVICES RESIDENTIAL,Adult Social Care & Health,Independent Placements,A56006
Royal Borough of Kingston,01/05/2022,90129664,"4,762.35",Gold Care Homes,SOCIAL SERVICES RESIDENTIAL,Adult Social Care & Health,Independent Placements,A56006
Royal Borough of Kingston,01/05/2022,90129673,"4,762.35",Gold Care Homes,SOCIAL SERVICES RESIDENTIAL,Adult Social Care & Health,Independent Placements,A56006
Royal Borough of Kingston,01/05/2022,90129674,"4,762.35",Gold Care Homes,SOCIAL SERVICES RESIDENTIAL,Adult Social Care & Health,Independent Placements,A56006
Royal Borough of Kingston,02/05/2022,90124595,612.51,Goldsmith Personnel Ltd,SOCIAL SERVICES - OTHER,Adult Social Care & Health,Homecare - new framework,A56127
Royal Borough of Kingston,09/05/2022,90126913,612.51,Goldsmith Personnel Ltd,SOCIAL SERVICES - OTHER,Adult Social Care & Health,Homecare - new framework,A56127
Royal Borough of Kingston,09/05/2022,90126914,612.51,Goldsmith Personnel Ltd,SOCIAL SERVICES - OTHER,Adult Social Care & Health,Homecare - new framework,A56127
Royal Borough of Kingston,16/05/2022,90130545,612.51,Goldsmith Personnel Ltd,SOCIAL SERVICES - OTHER,Adult Social Care & Health,Homecare - new framework,A56127
Royal Borough of Kingston,09/05/2022,90127006,796.25,Goldsmith Personnel Ltd,SOCIAL SERVICES - OTHER,Adult Social Care & Health,Homecare - new framework,A56127
Royal Borough of Kingston,09/05/2022,90127213,"1,209.00",Goldsmith Personnel Ltd,SOCIAL SERVICES - OTHER,Adult Social Care & Health,Homecare - new framework,A56127
Royal Borough of Kingston,18/04/2022,90119312,"1,226.53",Goldsmith Personnel Ltd,SOCIAL SERVICES - OTHER,Adult Social Care & Health,Homecare - new framework,A56127
Royal Borough of Kingston,25/04/2022,90121939,"2,861.90",Goldsmith Personnel Ltd,SOCIAL SERVICES - OTHER,Adult Social Care & Health,Homecare - new framework,A56127
Royal Borough of Kingston,02/05/2022,90124600,"2,861.90",Goldsmith Personnel Ltd,SOCIAL SERVICES - OTHER,Adult Social Care & Health,Homecare - new framework,A56127
Royal Borough of Kingston,09/05/2022,90126917,"2,861.90",Goldsmith Personnel Ltd,SOCIAL SERVICES - OTHER,Adult Social Care & Health,Homecare - new framework,A56127
Royal Borough of Kingston,16/05/2022,90130550,"2,861.90",Goldsmith Personnel Ltd,SOCIAL SERVICES - OTHER,Adult Social Care & Health,Homecare - new framework,A56127
Royal Borough of Kingston,12/05/2022,70024092,"1,560.00",GOLFRATE PROPERTY MANAGEMENT LIMITED,ACCOMMODATION BED & BREAKFAST,Place,Bed & Breakfast,A56000
Royal Borough of Kingston,12/05/2022,70024093,"1,605.00",GOLFRATE PROPERTY MANAGEMENT LIMITED,ACCOMMODATION BED & BREAKFAST,Place,Bed & Breakfast,A56000
Royal Borough of Kingston,12/05/2022,70024079,"1,612.00",GOLFRATE PROPERTY MANAGEMENT LIMITED,ACCOMMODATION BED & BREAKFAST,Place,Bed & Breakfast,A56000
Royal Borough of Kingston,12/05/2022,70024078,"1,658.50",GOLFRATE PROPERTY MANAGEMENT LIMITED,ACCOMMODATION BED & BREAKFAST,Place,Bed & Breakfast,A56000
Royal Borough of Kingston,31/03/2022,70023286,650,GOVNET COMMUNICATIONS,CONFERENCES,Corporate & Communities,Equipment And Materials Purchase,A40000
Royal Borough of Kingston,26/05/2022,70025065,"1,000.00",Graham Spicer Table Tennis Club,SUNDRY SUPPLIER - FINANCE,Adult Social Care & Health,"Grants, Contributions & Donations",A47005
Royal Borough of Kingston,09/05/2022,70024627,"4,986.58",GRAND AVENUE PRIMARY AND NURSERY SCHOOL,CENTRAL & LOCAL GOVERNMENT,Adult Social Care & Health,Other Private Contractors - Third Party,A56080
Royal Borough of Kingston,04/05/2022,90120043,"220,043.01",GRAND AVENUE PRIMARY AND NURSERY SCHOOL,CENTRAL & LOCAL GOVERNMENT,Schools,Miscellaneous Expenses,A49000
Royal Borough of Kingston,25/05/2022,90127723,"220,043.01",GRAND AVENUE PRIMARY AND NURSERY SCHOOL,CENTRAL & LOCAL GOVERNMENT,Schools,Miscellaneous Expenses,A49000
Royal Borough of Kingston,27/04/2022,70023585,500,GRANGE ASSOCIATES LTD,LEGAL & PROFESSIONAL SERVICES,Adult Social Care & Health,Staff Development And Training,A15022
Royal Borough of Kingston,01/05/2022,90129532,"2,990.84",GREYDALES LIMITED,SOCIAL SERVICES RESIDENTIAL,Adult Social Care & Health,Independent Placements,A56006
Royal Borough of Kingston,01/05/2022,90129621,"4,601.29",HAMPTON CARE LIMITED,SOCIAL SERVICES RESIDENTIAL,Adult Social Care & Health,Independent Placements,A56006
Royal Borough of Kingston,25/04/2022,70023005,"4,535.00",HAYMARKET MEDIA GROUP LTD,SUBSCRIPTIONS & PUBLICATIONS,Place,Subscriptions,A47010
Royal Borough of Kingston,01/05/2022,90130331,-645.24,HAZELDENE UK LIMITED,OPERATIONAL EQUIPMENT/MATERIAL,Adult Social Care & Health,Financially Assessed Contributions clients � Non VAT,A92047
Royal Borough of Kingston,01/05/2022,90129771,"4,871.96",HAZELDENE UK LIMITED,OPERATIONAL EQUIPMENT/MATERIAL,Adult Social Care & Health,Independent Placements,A56006
Royal Borough of Kingston,01/05/2022,90129994,912.29,HAZELDENE UK LTD,SOCIAL SERVICES RESIDENTIAL,Adult Social Care & Health,Personal Budget - Third Party,A61019
Royal Borough of Kingston,01/05/2022,90129656,"5,061.41",HAZELWOOD HOUSE,SOCIAL SERVICES RESIDENTIAL,Adult Social Care & Health,Independent Placements,A56006
Royal Borough of Kingston,01/05/2022,90129407,"3,813.31",HC-1 LIMITED ASHGROVE CARE HOME,SOCIAL SERVICES RESIDENTIAL,Adult Social Care & Health,Independent Placements,A56006
Royal Borough of Kingston,01/05/2022,90129720,"10,122.83",HEATHCOTES (SOUTHERN) LTD,SOCIAL SERVICES RESIDENTIAL,Adult Social Care & Health,Independent Placements,A56006
Royal Borough of Kingston,01/05/2022,90129722,"12,015.02",HEATHCOTES (SOUTHERN) LTD,SOCIAL SERVICES RESIDENTIAL,Adult Social Care & Health,Independent Placements,A56006
Royal Borough of Kingston,01/05/2022,90129698,"13,586.81",HEATHCOTES (SOUTHERN) LTD,SOCIAL SERVICES RESIDENTIAL,Adult Social Care & Health,Independent Placements,A56006
Royal Borough of Kingston,01/05/2022,90130230,"15,757.92",HEATHCOTES (SOUTHERN) LTD,SOCIAL SERVICES RESIDENTIAL,Adult Social Care & Health,Personal Budget - Third Party,A61019
Royal Borough of Kingston,18/04/2022,90119774,550.73,HELMAR CARE AND COMMUNITY SERVICES LTD,SOCIAL SERVICES DAY CARE,Adult Social Care & Health,Homecare - new framework,A56127
Royal Borough of Kingston,25/04/2022,90122440,550.73,HELMAR CARE AND COMMUNITY SERVICES LTD,SOCIAL SERVICES DAY CARE,Adult Social Care & Health,Homecare - new framework,A56127
Royal Borough of Kingston,02/05/2022,90125055,550.73,HELMAR CARE AND COMMUNITY SERVICES LTD,SOCIAL SERVICES DAY CARE,Adult Social Care & Health,Homecare - new framework,A56127
Royal Borough of Kingston,09/05/2022,90127405,550.73,HELMAR CARE AND COMMUNITY SERVICES LTD,SOCIAL SERVICES DAY CARE,Adult Social Care & Health,Homecare - new framework,A56127
Royal Borough of Kingston,16/05/2022,90131030,550.73,HELMAR CARE AND COMMUNITY SERVICES LTD,SOCIAL SERVICES DAY CARE,Adult Social Care & Health,Homecare - new framework,A56127
Royal Borough of Kingston,18/04/2022,90119901,551.25,HELMAR CARE AND COMMUNITY SERVICES LTD,SOCIAL SERVICES DAY CARE,Adult Social Care & Health,Personal Budget - Third Party,A61019
Royal Borough of Kingston,25/04/2022,90122844,551.25,HELMAR CARE AND COMMUNITY SERVICES LTD,SOCIAL SERVICES DAY CARE,Adult Social Care & Health,Personal Budget - Third Party,A61019
Royal Borough of Kingston,02/05/2022,90125203,551.25,HELMAR CARE AND COMMUNITY SERVICES LTD,SOCIAL SERVICES DAY CARE,Adult Social Care & Health,Personal Budget - Third Party,A61019
Royal Borough of Kingston,18/04/2022,90119773,630,HELMAR CARE AND COMMUNITY SERVICES LTD,SOCIAL SERVICES DAY CARE,Adult Social Care & Health,Homecare - new framework,A56127
Royal Borough of Kingston,25/04/2022,90122439,630,HELMAR CARE AND COMMUNITY SERVICES LTD,SOCIAL SERVICES DAY CARE,Adult Social Care & Health,Homecare - new framework,A56127
Royal Borough of Kingston,02/05/2022,90125054,630,HELMAR CARE AND COMMUNITY SERVICES LTD,SOCIAL SERVICES DAY CARE,Adult Social Care & Health,Homecare - new framework,A56127
Royal Borough of Kingston,09/05/2022,90127404,630,HELMAR CARE AND COMMUNITY SERVICES LTD,SOCIAL SERVICES DAY CARE,Adult Social Care & Health,Homecare - new framework,A56127
Royal Borough of Kingston,16/05/2022,90131029,630,HELMAR CARE AND COMMUNITY SERVICES LTD,SOCIAL SERVICES DAY CARE,Adult Social Care & Health,Homecare - new framework,A56127
Royal Borough of Kingston,18/04/2022,90119319,"1,226.53",HELMAR CARE AND COMMUNITY SERVICES LTD,SOCIAL SERVICES DAY CARE,Adult Social Care & Health,Homecare - new framework,A56127
Royal Borough of Kingston,18/04/2022,90119873,"1,673.93",HELMAR CARE AND COMMUNITY SERVICES LTD,SOCIAL SERVICES DAY CARE,Adult Social Care & Health,Personal Budget - Third Party,A61019
Royal Borough of Kingston,25/04/2022,90122820,"1,673.93",HELMAR CARE AND COMMUNITY SERVICES LTD,SOCIAL SERVICES DAY CARE,Adult Social Care & Health,Personal Budget - Third Party,A61019
Royal Borough of Kingston,02/05/2022,90125179,"1,673.93",HELMAR CARE AND COMMUNITY SERVICES LTD,SOCIAL SERVICES DAY CARE,Adult Social Care & Health,Personal Budget - Third Party,A61019
Royal Borough of Kingston,09/05/2022,90127530,"1,673.93",HELMAR CARE AND COMMUNITY SERVICES LTD,SOCIAL SERVICES DAY CARE,Adult Social Care & Health,Personal Budget - Third Party,A61019
Royal Borough of Kingston,16/05/2022,90131136,"1,673.93",HELMAR CARE AND COMMUNITY SERVICES LTD,SOCIAL SERVICES DAY CARE,Adult Social Care & Health,Personal Budget - Third Party,A61019
Royal Borough of Kingston,18/04/2022,90119805,"2,861.90",HELMAR CARE AND COMMUNITY SERVICES LTD,SOCIAL SERVICES DAY CARE,Adult Social Care & Health,Homecare - new framework,A56127
Royal Borough of Kingston,25/04/2022,90121907,"2,861.90",HELMAR CARE AND COMMUNITY SERVICES LTD,SOCIAL SERVICES DAY CARE,Adult Social Care & Health,Homecare - new framework,A56127
Royal Borough of Kingston,25/04/2022,90121945,"2,861.90",HELMAR CARE AND COMMUNITY SERVICES LTD,SOCIAL SERVICES DAY CARE,Adult Social Care & Health,Homecare - new framework,A56127
Royal Borough of Kingston,25/04/2022,90122474,"2,861.90",HELMAR CARE AND COMMUNITY SERVICES LTD,SOCIAL SERVICES DAY CARE,Adult Social Care & Health,Homecare - new framework,A56127
Royal Borough of Kingston,02/05/2022,90124572,"2,861.90",HELMAR CARE AND COMMUNITY SERVICES LTD,SOCIAL SERVICES DAY CARE,Adult Social Care & Health,Homecare - new framework,A56127
Royal Borough of Kingston,02/05/2022,90124603,"2,861.90",HELMAR CARE AND COMMUNITY SERVICES LTD,SOCIAL SERVICES DAY CARE,Adult Social Care & Health,Homecare - new framework,A56127
Royal Borough of Kingston,02/05/2022,90125107,"2,861.90",HELMAR CARE AND COMMUNITY SERVICES LTD,SOCIAL SERVICES DAY CARE,Adult Social Care & Health,Homecare - new framework,A56127
Royal Borough of Kingston,09/05/2022,90126886,"2,861.90",HELMAR CARE AND COMMUNITY SERVICES LTD,SOCIAL SERVICES DAY CARE,Adult Social Care & Health,Homecare - new framework,A56127
Royal Borough of Kingston,09/05/2022,90126919,"2,861.90",HELMAR CARE AND COMMUNITY SERVICES LTD,SOCIAL SERVICES DAY CARE,Adult Social Care & Health,Homecare - new framework,A56127
Royal Borough of Kingston,09/05/2022,90127442,"2,861.90",HELMAR CARE AND COMMUNITY SERVICES LTD,SOCIAL SERVICES DAY CARE,Adult Social Care & Health,Homecare - new framework,A56127
Royal Borough of Kingston,16/05/2022,90130514,"2,861.90",HELMAR CARE AND COMMUNITY SERVICES LTD,SOCIAL SERVICES DAY CARE,Adult Social Care & Health,Homecare - new framework,A56127
Royal Borough of Kingston,16/05/2022,90130552,"2,861.90",HELMAR CARE AND COMMUNITY SERVICES LTD,SOCIAL SERVICES DAY CARE,Adult Social Care & Health,Homecare - new framework,A56127
Royal Borough of Kingston,16/05/2022,90131063,"2,861.90",HELMAR CARE AND COMMUNITY SERVICES LTD,SOCIAL SERVICES DAY CARE,Adult Social Care & Health,Homecare - new framework,A56127
Royal Borough of Kingston,01/05/2022,90129946,601.02,HERTFORDSHIRE COUNTY COUNCIL,SOCIAL SERVICES RESIDENTIAL,Adult Social Care & Health,Personal Budget - Third Party,A61019
Royal Borough of Kingston,01/05/2022,90129923,664.29,HF TRUST LTD ,SOCIAL SERVICES DAY CARE,Adult Social Care & Health,Personal Budget - Third Party,A61019
Royal Borough of Kingston,01/05/2022,90129940,664.29,HF TRUST LTD ,SOCIAL SERVICES DAY CARE,Adult Social Care & Health,Personal Budget - Third Party,A61019
Royal Borough of Kingston,01/05/2022,90129953,664.29,HF TRUST LTD ,SOCIAL SERVICES DAY CARE,Adult Social Care & Health,Personal Budget - Third Party,A61019
Royal Borough of Kingston,01/05/2022,90129975,664.29,HF TRUST LTD ,SOCIAL SERVICES DAY CARE,Adult Social Care & Health,Personal Budget - Third Party,A61019
Royal Borough of Kingston,01/05/2022,90129982,664.29,HF TRUST LTD ,SOCIAL SERVICES DAY CARE,Adult Social Care & Health,Personal Budget - Third Party,A61019
Royal Borough of Kingston,01/05/2022,90129990,664.29,HF TRUST LTD ,SOCIAL SERVICES DAY CARE,Adult Social Care & Health,Personal Budget - Third Party,A61019
Royal Borough of Kingston,01/05/2022,90129991,664.29,HF TRUST LTD ,SOCIAL SERVICES DAY CARE,Adult Social Care & Health,Personal Budget - Third Party,A61019
Royal Borough of Kingston,01/05/2022,90129995,664.29,HF TRUST LTD ,SOCIAL SERVICES DAY CARE,Adult Social Care & Health,Personal Budget - Third Party,A61019
Royal Borough of Kingston,01/05/2022,90130007,664.29,HF TRUST LTD ,SOCIAL SERVICES DAY CARE,Adult Social Care & Health,Personal Budget - Third Party,A61019
Royal Borough of Kingston,01/05/2022,90130023,664.29,HF TRUST LTD ,SOCIAL SERVICES DAY CARE,Adult Social Care & Health,Personal Budget - Third Party,A61019
Royal Borough of Kingston,01/05/2022,90129926,885.71,HF TRUST LTD ,SOCIAL SERVICES DAY CARE,Adult Social Care & Health,Personal Budget - Third Party,A61019
Royal Borough of Kingston,01/05/2022,90129942,885.71,HF TRUST LTD ,SOCIAL SERVICES DAY CARE,Adult Social Care & Health,Personal Budget - Third Party,A61019
Royal Borough of Kingston,01/05/2022,90129944,885.71,HF TRUST LTD ,SOCIAL SERVICES DAY CARE,Adult Social Care & Health,Personal Budget - Third Party,A61019
Royal Borough of Kingston,01/05/2022,90129981,885.71,HF TRUST LTD ,SOCIAL SERVICES DAY CARE,Adult Social Care & Health,Personal Budget - Third Party,A61019
Royal Borough of Kingston,01/05/2022,90129989,885.71,HF TRUST LTD ,SOCIAL SERVICES DAY CARE,Adult Social Care & Health,Personal Budget - Third Party,A61019
Royal Borough of Kingston,01/05/2022,90129996,885.71,HF TRUST LTD ,SOCIAL SERVICES DAY CARE,Adult Social Care & Health,Personal Budget - Third Party,A61019
Royal Borough of Kingston,01/05/2022,90129918,933.38,HF TRUST LTD ,SOCIAL SERVICES DAY CARE,Adult Social Care & Health,Personal Budget - Third Party,A61019
Royal Borough of Kingston,01/05/2022,90129925,996.43,HF TRUST LTD ,SOCIAL SERVICES DAY CARE,Adult Social Care & Health,Personal Budget - Third Party,A61019
Royal Borough of Kingston,01/05/2022,90129962,"1,107.14",HF TRUST LTD ,SOCIAL SERVICES DAY CARE,Adult Social Care & Health,Personal Budget - Third Party,A61019
Royal Borough of Kingston,01/05/2022,90129978,"1,107.14",HF TRUST LTD ,SOCIAL SERVICES DAY CARE,Adult Social Care & Health,Personal Budget - Third Party,A61019
Royal Borough of Kingston,01/05/2022,90129986,"1,107.14",HF TRUST LTD ,SOCIAL SERVICES DAY CARE,Adult Social Care & Health,Personal Budget - Third Party,A61019
Royal Borough of Kingston,01/05/2022,90129997,"1,107.14",HF TRUST LTD ,SOCIAL SERVICES DAY CARE,Adult Social Care & Health,Personal Budget - Third Party,A61019
Royal Borough of Kingston,01/05/2022,90130004,"1,107.14",HF TRUST LTD ,SOCIAL SERVICES DAY CARE,Adult Social Care & Health,Personal Budget - Third Party,A61019
Royal Borough of Kingston,01/05/2022,90130008,"1,107.14",HF TRUST LTD ,SOCIAL SERVICES DAY CARE,Adult Social Care & Health,Personal Budget - Third Party,A61019
Royal Borough of Kingston,01/05/2022,90130010,"1,107.14",HF TRUST LTD ,SOCIAL SERVICES DAY CARE,Adult Social Care & Health,Personal Budget - Third Party,A61019
Royal Borough of Kingston,01/05/2022,90129919,"2,333.46",HF TRUST LTD ,SOCIAL SERVICES DAY CARE,Adult Social Care & Health,Personal Budget - Third Party,A61019
Royal Borough of Kingston,30/04/2022,70023502,"24,300.00",HILTON NURSING PARTNERSHIP,SOCIAL SERVICES-HOME CARE,Adult Social Care & Health,Other Private Contractors - Third Party,A56080
Royal Borough of Kingston,28/02/2022,70023911,910,HML INDEPENDENT MEDICAL ADVICE LTD,LEGAL & PROFESSIONAL SERVICES,Place,Professional Fees,A44066
Royal Borough of Kingston,30/04/2022,70023918,910,HML INDEPENDENT MEDICAL ADVICE LTD,LEGAL & PROFESSIONAL SERVICES,Place,Professional Fees,A44066
Royal Borough of Kingston,01/04/2022,70023662,"6,875.00",HOME CONNECTIONS LETTINGS LTD,ACCOMMODATION - OTHER,Housing Revenue Account,Subscriptions,A47010
Royal Borough of Kingston,20/05/2022,90126729,"1,314.00",HOMEPATH MANAGEMENT LTD,PLS LANDLORDS,Place,PSL Payments To Landlords,A22031
Royal Borough of Kingston,20/05/2022,90126730,"1,314.00",HOMEPATH MANAGEMENT LTD,PLS LANDLORDS,Place,PSL Payments To Landlords,A22031
Royal Borough of Kingston,01/05/2022,70023735,"1,110.00",HOUSING ACTION  MANAGEMENT,ACCOMMODATION BED & BREAKFAST,Place,Bed & Breakfast,A56000
Royal Borough of Kingston,11/04/2022,90119388,735.01,Humble Healthcare Ltd,SOCIAL SERVICES - OTHER,Adult Social Care & Health,Homecare - new framework,A56127
Royal Borough of Kingston,18/04/2022,90122026,735.01,Humble Healthcare Ltd,SOCIAL SERVICES - OTHER,Adult Social Care & Health,Homecare - new framework,A56127
Royal Borough of Kingston,25/04/2022,90124675,735.01,Humble Healthcare Ltd,SOCIAL SERVICES - OTHER,Adult Social Care & Health,Homecare - new framework,A56127
Royal Borough of Kingston,02/05/2022,90126986,735.01,Humble Healthcare Ltd,SOCIAL SERVICES - OTHER,Adult Social Care & Health,Homecare - new framework,A56127
Royal Borough of Kingston,09/05/2022,90130621,735.01,Humble Healthcare Ltd,SOCIAL SERVICES - OTHER,Adult Social Care & Health,Homecare - new framework,A56127
Royal Borough of Kingston,01/05/2022,90129566,"5,511.71",Huntercombe Neuro Limited,SOCIAL SERVICES RESIDENTIAL,Adult Social Care & Health,Independent Placements,A56006
Royal Borough of Kingston,01/05/2022,90129654,"3,450.96",IDDENSHALL HALL  ,ACCOMMODATION - OTHER,Adult Social Care & Health,Independent Placements,A56006
Royal Borough of Kingston,10/01/2022,70023063,606.67,Ideagen Gael Ltd,FINANCIAL / INSURANCE INSTNS,Place,IT Software Purchase,A45040
Royal Borough of Kingston,22/03/2022,70023002,683.51,Ideagen Gael Ltd,FINANCIAL / INSURANCE INSTNS,Place,IT Software Purchase,A45040
Royal Borough of Kingston,28/04/2022,70023301,"3,800.00",IDOX SOFTWARE LTD,BUSINESS & COMPUTER SYSTEMS,Corporate & Communities,Consultancy Services,A56007
Royal Borough of Kingston,01/05/2022,90130211,"13,354.22",INDEPENDENCE HOMES LIMITED,SOCIAL SERVICES RESIDENTIAL,Adult Social Care & Health,Personal Budget - Third Party,A61019
Royal Borough of Kingston,16/05/2022,70024748,658.13,INDEPENDENT LIVING LTD,SOCIAL SERVICES - OTHER,Capital Programme,Grants Given For Capital Purposes,C20004
Royal Borough of Kingston,13/04/2022,70024512,"1,059.88",INDEPENDENT LIVING LTD,SOCIAL SERVICES - OTHER,Capital Programme,Grants Given For Capital Purposes,C20004
Royal Borough of Kingston,11/04/2022,70024543,"1,223.75",INDEPENDENT LIVING LTD,SOCIAL SERVICES - OTHER,Capital Programme,Grants Given For Capital Purposes,C20004
Royal Borough of Kingston,30/04/2022,70023567,"9,900.00",INNER CIRCLE CONSULTING LTD,TEMP STAFF & CONSULTANCY,Place,Consultancy Services - Other,A44065
Royal Borough of Kingston,02/05/2022,90124899,-673.76,INSPIRE MANAGEMENT GROUP LTD,SOCIAL SERVICES DAY CARE,Adult Social Care & Health,Homecare - new framework,A56127
Royal Borough of Kingston,02/05/2022,90124900,-673.76,INSPIRE MANAGEMENT GROUP LTD,SOCIAL SERVICES DAY CARE,Adult Social Care & Health,Homecare - new framework,A56127
Royal Borough of Kingston,02/05/2022,90124901,-673.76,INSPIRE MANAGEMENT GROUP LTD,SOCIAL SERVICES DAY CARE,Adult Social Care & Health,Homecare - new framework,A56127
Royal Borough of Kingston,02/05/2022,90124902,-673.76,INSPIRE MANAGEMENT GROUP LTD,SOCIAL SERVICES DAY CARE,Adult Social Care & Health,Homecare - new framework,A56127
Royal Borough of Kingston,02/05/2022,90124898,-668.25,INSPIRE MANAGEMENT GROUP LTD,SOCIAL SERVICES DAY CARE,Adult Social Care & Health,Homecare - new framework,A56127
Royal Borough of Kingston,02/05/2022,90124891,-664.13,INSPIRE MANAGEMENT GROUP LTD,SOCIAL SERVICES DAY CARE,Adult Social Care & Health,Homecare - new framework,A56127
Royal Borough of Kingston,02/05/2022,90124892,-664.13,INSPIRE MANAGEMENT GROUP LTD,SOCIAL SERVICES DAY CARE,Adult Social Care & Health,Homecare - new framework,A56127
Royal Borough of Kingston,02/05/2022,90124893,-664.13,INSPIRE MANAGEMENT GROUP LTD,SOCIAL SERVICES DAY CARE,Adult Social Care & Health,Homecare - new framework,A56127
Royal Borough of Kingston,02/05/2022,90124894,-664.13,INSPIRE MANAGEMENT GROUP LTD,SOCIAL SERVICES DAY CARE,Adult Social Care & Health,Homecare - new framework,A56127
Royal Borough of Kingston,02/05/2022,90124895,-664.13,INSPIRE MANAGEMENT GROUP LTD,SOCIAL SERVICES DAY CARE,Adult Social Care & Health,Homecare - new framework,A56127
Royal Borough of Kingston,02/05/2022,90124896,-664.13,INSPIRE MANAGEMENT GROUP LTD,SOCIAL SERVICES DAY CARE,Adult Social Care & Health,Homecare - new framework,A56127
Royal Borough of Kingston,02/05/2022,90124897,-664.13,INSPIRE MANAGEMENT GROUP LTD,SOCIAL SERVICES DAY CARE,Adult Social Care & Health,Homecare - new framework,A56127
Royal Borough of Kingston,09/05/2022,90126932,507.5,INSPIRE MANAGEMENT GROUP LTD,SOCIAL SERVICES DAY CARE,Adult Social Care & Health,Homecare - new framework,A56127
Royal Borough of Kingston,16/05/2022,90130976,507.5,INSPIRE MANAGEMENT GROUP LTD,SOCIAL SERVICES DAY CARE,Adult Social Care & Health,Homecare - new framework,A56127
Royal Borough of Kingston,18/04/2022,90119550,551.25,INSPIRE MANAGEMENT GROUP LTD,SOCIAL SERVICES DAY CARE,Adult Social Care & Health,Homecare - new framework,A56127
Royal Borough of Kingston,18/04/2022,90119722,551.25,INSPIRE MANAGEMENT GROUP LTD,SOCIAL SERVICES DAY CARE,Adult Social Care & Health,Homecare - new framework,A56127
Royal Borough of Kingston,25/04/2022,90122199,551.25,INSPIRE MANAGEMENT GROUP LTD,SOCIAL SERVICES DAY CARE,Adult Social Care & Health,Homecare - new framework,A56127
Royal Borough of Kingston,25/04/2022,90122380,551.25,INSPIRE MANAGEMENT GROUP LTD,SOCIAL SERVICES DAY CARE,Adult Social Care & Health,Homecare - new framework,A56127
Royal Borough of Kingston,02/05/2022,90124823,551.25,INSPIRE MANAGEMENT GROUP LTD,SOCIAL SERVICES DAY CARE,Adult Social Care & Health,Homecare - new framework,A56127
Royal Borough of Kingston,02/05/2022,90124998,551.25,INSPIRE MANAGEMENT GROUP LTD,SOCIAL SERVICES DAY CARE,Adult Social Care & Health,Homecare - new framework,A56127
Royal Borough of Kingston,09/05/2022,90127332,551.25,INSPIRE MANAGEMENT GROUP LTD,SOCIAL SERVICES DAY CARE,Adult Social Care & Health,Homecare - new framework,A56127
Royal Borough of Kingston,16/05/2022,90130959,551.25,INSPIRE MANAGEMENT GROUP LTD,SOCIAL SERVICES DAY CARE,Adult Social Care & Health,Homecare - new framework,A56127
Royal Borough of Kingston,18/04/2022,90119322,612.51,INSPIRE MANAGEMENT GROUP LTD,SOCIAL SERVICES DAY CARE,Adult Social Care & Health,Homecare - new framework,A56127
Royal Borough of Kingston,18/04/2022,90119727,612.51,INSPIRE MANAGEMENT GROUP LTD,SOCIAL SERVICES DAY CARE,Adult Social Care & Health,Homecare - new framework,A56127
Royal Borough of Kingston,25/04/2022,90121947,612.51,INSPIRE MANAGEMENT GROUP LTD,SOCIAL SERVICES DAY CARE,Adult Social Care & Health,Homecare - new framework,A56127
Royal Borough of Kingston,25/04/2022,90122385,612.51,INSPIRE MANAGEMENT GROUP LTD,SOCIAL SERVICES DAY CARE,Adult Social Care & Health,Homecare - new framework,A56127
Royal Borough of Kingston,02/05/2022,90124605,612.51,INSPIRE MANAGEMENT GROUP LTD,SOCIAL SERVICES DAY CARE,Adult Social Care & Health,Homecare - new framework,A56127
Royal Borough of Kingston,02/05/2022,90125004,612.51,INSPIRE MANAGEMENT GROUP LTD,SOCIAL SERVICES DAY CARE,Adult Social Care & Health,Homecare - new framework,A56127
Royal Borough of Kingston,09/05/2022,90126921,612.51,INSPIRE MANAGEMENT GROUP LTD,SOCIAL SERVICES DAY CARE,Adult Social Care & Health,Homecare - new framework,A56127
Royal Borough of Kingston,09/05/2022,90127337,612.51,INSPIRE MANAGEMENT GROUP LTD,SOCIAL SERVICES DAY CARE,Adult Social Care & Health,Homecare - new framework,A56127
Royal Borough of Kingston,16/05/2022,90130555,612.51,INSPIRE MANAGEMENT GROUP LTD,SOCIAL SERVICES DAY CARE,Adult Social Care & Health,Homecare - new framework,A56127
Royal Borough of Kingston,16/05/2022,90130964,612.51,INSPIRE MANAGEMENT GROUP LTD,SOCIAL SERVICES DAY CARE,Adult Social Care & Health,Homecare - new framework,A56127
Royal Borough of Kingston,09/05/2022,90127388,664.13,INSPIRE MANAGEMENT GROUP LTD,SOCIAL SERVICES DAY CARE,Adult Social Care & Health,Homecare - new framework,A56127
Royal Borough of Kingston,09/05/2022,90127389,664.13,INSPIRE MANAGEMENT GROUP LTD,SOCIAL SERVICES DAY CARE,Adult Social Care & Health,Homecare - new framework,A56127
Royal Borough of Kingston,09/05/2022,90127390,664.13,INSPIRE MANAGEMENT GROUP LTD,SOCIAL SERVICES DAY CARE,Adult Social Care & Health,Homecare - new framework,A56127
Royal Borough of Kingston,09/05/2022,90127391,664.13,INSPIRE MANAGEMENT GROUP LTD,SOCIAL SERVICES DAY CARE,Adult Social Care & Health,Homecare - new framework,A56127
Royal Borough of Kingston,18/04/2022,90119612,673.76,INSPIRE MANAGEMENT GROUP LTD,SOCIAL SERVICES DAY CARE,Adult Social Care & Health,Homecare - new framework,A56127
Royal Borough of Kingston,25/04/2022,90122277,673.76,INSPIRE MANAGEMENT GROUP LTD,SOCIAL SERVICES DAY CARE,Adult Social Care & Health,Homecare - new framework,A56127
Royal Borough of Kingston,18/04/2022,90119714,787.51,INSPIRE MANAGEMENT GROUP LTD,SOCIAL SERVICES DAY CARE,Adult Social Care & Health,Homecare - new framework,A56127
Royal Borough of Kingston,25/04/2022,90122372,787.51,INSPIRE MANAGEMENT GROUP LTD,SOCIAL SERVICES DAY CARE,Adult Social Care & Health,Homecare - new framework,A56127
Royal Borough of Kingston,02/05/2022,90124991,787.51,INSPIRE MANAGEMENT GROUP LTD,SOCIAL SERVICES DAY CARE,Adult Social Care & Health,Homecare - new framework,A56127
Royal Borough of Kingston,09/05/2022,90127325,787.51,INSPIRE MANAGEMENT GROUP LTD,SOCIAL SERVICES DAY CARE,Adult Social Care & Health,Homecare - new framework,A56127
Royal Borough of Kingston,16/05/2022,90130952,787.51,INSPIRE MANAGEMENT GROUP LTD,SOCIAL SERVICES DAY CARE,Adult Social Care & Health,Homecare - new framework,A56127
Royal Borough of Kingston,09/05/2022,90127435,796.26,INSPIRE MANAGEMENT GROUP LTD,SOCIAL SERVICES DAY CARE,Adult Social Care & Health,Homecare - new framework,A56127
Royal Borough of Kingston,16/05/2022,90131057,796.26,INSPIRE MANAGEMENT GROUP LTD,SOCIAL SERVICES DAY CARE,Adult Social Care & Health,Homecare - new framework,A56127
Royal Borough of Kingston,18/04/2022,90119288,"2,861.90",INSPIRE MANAGEMENT GROUP LTD,SOCIAL SERVICES DAY CARE,Adult Social Care & Health,Homecare - new framework,A56127
Royal Borough of Kingston,18/04/2022,90119324,"2,861.90",INSPIRE MANAGEMENT GROUP LTD,SOCIAL SERVICES DAY CARE,Adult Social Care & Health,Homecare - new framework,A56127
Royal Borough of Kingston,25/04/2022,90121911,"2,861.90",INSPIRE MANAGEMENT GROUP LTD,SOCIAL SERVICES DAY CARE,Adult Social Care & Health,Homecare - new framework,A56127
Royal Borough of Kingston,25/04/2022,90121949,"2,861.90",INSPIRE MANAGEMENT GROUP LTD,SOCIAL SERVICES DAY CARE,Adult Social Care & Health,Homecare - new framework,A56127
Royal Borough of Kingston,02/05/2022,90124575,"2,861.90",INSPIRE MANAGEMENT GROUP LTD,SOCIAL SERVICES DAY CARE,Adult Social Care & Health,Homecare - new framework,A56127
Royal Borough of Kingston,02/05/2022,90124607,"2,861.90",INSPIRE MANAGEMENT GROUP LTD,SOCIAL SERVICES DAY CARE,Adult Social Care & Health,Homecare - new framework,A56127
Royal Borough of Kingston,09/05/2022,90126889,"2,861.90",INSPIRE MANAGEMENT GROUP LTD,SOCIAL SERVICES DAY CARE,Adult Social Care & Health,Homecare - new framework,A56127
Royal Borough of Kingston,09/05/2022,90126923,"2,861.90",INSPIRE MANAGEMENT GROUP LTD,SOCIAL SERVICES DAY CARE,Adult Social Care & Health,Homecare - new framework,A56127
Royal Borough of Kingston,16/05/2022,90130525,"2,861.90",INSPIRE MANAGEMENT GROUP LTD,SOCIAL SERVICES DAY CARE,Adult Social Care & Health,Homecare - new framework,A56127
Royal Borough of Kingston,16/05/2022,90130557,"2,861.90",INSPIRE MANAGEMENT GROUP LTD,SOCIAL SERVICES DAY CARE,Adult Social Care & Health,Homecare - new framework,A56127
Royal Borough of Kingston,26/05/2022,70024985,"106,177.52",ITC Concepts Limited,CONSTRUCTION INDUSTRY,Place,Miscellaneous Expenses,A49000
Royal Borough of Kingston,20/05/2022,90126810,"1,314.08",J BEIM PROPERTY PARTNERSHIP,PLS LANDLORDS,Place,PSL Payments To Landlords,A22031
Royal Borough of Kingston,31/05/2022,90130503,"1,948.50",JESMUND CARE LIMITED,SOCIAL SERVICES - PERSONAL BUDGETS,Adult Social Care & Health,Independent Placements,A56006
Royal Borough of Kingston,31/05/2022,90130504,"5,951.29",JESMUND CARE LIMITED,SOCIAL SERVICES - PERSONAL BUDGETS,Adult Social Care & Health,Independent Placements,A56006
Royal Borough of Kingston,31/05/2022,90130505,"5,983.93",JESMUND CARE LIMITED,SOCIAL SERVICES - PERSONAL BUDGETS,Adult Social Care & Health,Independent Placements,A56006
Royal Borough of Kingston,01/05/2022,90129582,"6,183.39",JESMUND CARE LIMITED,SOCIAL SERVICES - PERSONAL BUDGETS,Adult Social Care & Health,Independent Placements,A56006
Royal Borough of Kingston,01/05/2022,90129585,"3,197.65",JESYEM MEDICARE LTD,SOCIAL SERVICES RESIDENTIAL,Adult Social Care & Health,Independent Placements,A56006
Royal Borough of Kingston,01/05/2022,90129589,"4,371.22",JESYEM MEDICARE LTD,SOCIAL SERVICES RESIDENTIAL,Adult Social Care & Health,Independent Placements,A56006
Royal Borough of Kingston,01/05/2022,90129596,"4,371.22",JESYEM MEDICARE LTD,SOCIAL SERVICES RESIDENTIAL,Adult Social Care & Health,Independent Placements,A56006
Royal Borough of Kingston,20/05/2022,90126800,"1,286.17",JG STAFFORD,PLS LANDLORDS,Place,PSL Payments To Landlords,A22031
Royal Borough of Kingston,20/05/2022,90126691,826,JGPG LLP,PLS LANDLORDS,Place,PSL Payments To Landlords,A22031
Royal Borough of Kingston,20/05/2022,90126692,826,JGPG LLP,PLS LANDLORDS,Place,PSL Payments To Landlords,A22031
Royal Borough of Kingston,20/05/2022,90126693,826,JGPG LLP,PLS LANDLORDS,Place,PSL Payments To Landlords,A22031
Royal Borough of Kingston,20/05/2022,90126694,826,JGPG LLP,PLS LANDLORDS,Place,PSL Payments To Landlords,A22031
Royal Borough of Kingston,01/05/2022,90129682,"3,450.96",Jiva Healthcare Ltd,SOCIAL SERVICES RESIDENTIAL,Adult Social Care & Health,Independent Placements,A56006
Royal Borough of Kingston,20/05/2022,90126807,"1,052.26",JOHN FOWLERS LLP,PLS LANDLORDS,Place,PSL Payments To Landlords,A22031
Royal Borough of Kingston,01/05/2022,90130136,"8,904.22",JOYMAC CARE LTD,SOCIAL SERVICES RESIDENTIAL,Adult Social Care & Health,Personal Budget - Third Party,A61019
Royal Borough of Kingston,01/05/2022,90125251,679.13,JUST MY PA,SOCIAL SERVICES RESIDENTIAL,Adult Social Care & Health,Personal Budget - Third Party,A61019
Royal Borough of Kingston,01/05/2022,90125241,"1,006.38",JUST MY PA,SOCIAL SERVICES RESIDENTIAL,Adult Social Care & Health,Personal Budget - Third Party,A61019
Royal Borough of Kingston,01/05/2022,90130159,"2,226.42",JUST MY PA,SOCIAL SERVICES RESIDENTIAL,Adult Social Care & Health,Personal Budget - Third Party,A61019
Royal Borough of Kingston,01/05/2022,90129912,"2,735.40",JUST MY PA,SOCIAL SERVICES RESIDENTIAL,Adult Social Care & Health,Personal Budget - Third Party,A61019
Royal Borough of Kingston,01/05/2022,90125242,"6,065.26",JUST MY PA,SOCIAL SERVICES RESIDENTIAL,Adult Social Care & Health,Personal Budget - Third Party,A61019
Royal Borough of Kingston,01/05/2022,90125237,"6,764.64",JUST MY PA,SOCIAL SERVICES RESIDENTIAL,Adult Social Care & Health,Personal Budget - Third Party,A61019
Royal Borough of Kingston,01/05/2022,90125249,"8,821.59",JUST MY PA,SOCIAL SERVICES RESIDENTIAL,Adult Social Care & Health,Personal Budget - Third Party,A61019
Royal Borough of Kingston,31/03/2022,70023350,"1,561.05",KARNTEK LIMITED,LEGAL & PROFESSIONAL SERVICES,Capital Programme,Council Dwellings - Fire Safety,C10004
Royal Borough of Kingston,31/03/2022,70023344,"1,562.60",KARNTEK LIMITED,LEGAL & PROFESSIONAL SERVICES,Capital Programme,Council Dwellings - Fire Safety,C10004
Royal Borough of Kingston,31/03/2022,70023349,"1,731.50",KARNTEK LIMITED,LEGAL & PROFESSIONAL SERVICES,Capital Programme,Council Dwellings - Fire Safety,C10004
Royal Borough of Kingston,31/03/2022,70023533,"1,866.95",KARNTEK LIMITED,LEGAL & PROFESSIONAL SERVICES,Capital Programme,Council Dwellings - Fire Safety,C10004
Royal Borough of Kingston,31/03/2022,70023343,"3,314.52",KARNTEK LIMITED,LEGAL & PROFESSIONAL SERVICES,Capital Programme,Council Dwellings - Fire Safety,C10004
Royal Borough of Kingston,31/03/2022,70023346,"3,314.52",KARNTEK LIMITED,LEGAL & PROFESSIONAL SERVICES,Capital Programme,Council Dwellings - Fire Safety,C10004
Royal Borough of Kingston,31/03/2022,70023347,"3,314.52",KARNTEK LIMITED,LEGAL & PROFESSIONAL SERVICES,Capital Programme,Council Dwellings - Fire Safety,C10004
Royal Borough of Kingston,31/03/2022,70023348,"3,314.52",KARNTEK LIMITED,LEGAL & PROFESSIONAL SERVICES,Capital Programme,Council Dwellings - Fire Safety,C10004
Royal Borough of Kingston,01/05/2022,90129513,"3,450.96",KATHRYNS HOUSE CARE HOME,SOCIAL SERVICES RESIDENTIAL,Adult Social Care & Health,Independent Placements,A56006
Royal Borough of Kingston,29/04/2022,70023476,"1,385.00",KEEGANS LIMITED,CONSULTING ARCHITECTS ENGINEER,Housing Revenue Account,Professional Fees,A44066
Royal Borough of Kingston,21/04/2022,70023115,"-4,459.47",KENT COUNTY COUNCIL,UTILITIES,Corporate & Communities,Electricity,A21000
Royal Borough of Kingston,25/04/2022,70023729,"-3,379.48",KENT COUNTY COUNCIL,UTILITIES,Housing Revenue Account,Gas,A21003
Royal Borough of Kingston,25/04/2022,70023728,"-3,349.07",KENT COUNTY COUNCIL,UTILITIES,Housing Revenue Account,Gas,A21003
Royal Borough of Kingston,22/04/2022,70023730,"-2,846.86",KENT COUNTY COUNCIL,UTILITIES,Housing Revenue Account,Gas,A21003
Royal Borough of Kingston,25/04/2022,70023716,"-2,825.72",KENT COUNTY COUNCIL,UTILITIES,Housing Revenue Account,Gas,A21003
Royal Borough of Kingston,22/04/2022,70023717,"-2,822.73",KENT COUNTY COUNCIL,UTILITIES,Housing Revenue Account,Gas,A21003
Royal Borough of Kingston,22/04/2022,70023731,"-2,767.43",KENT COUNTY COUNCIL,UTILITIES,Housing Revenue Account,Gas,A21003
Royal Borough of Kingston,21/04/2022,70022803,"-2,127.41",KENT COUNTY COUNCIL,UTILITIES,Housing Revenue Account,Electricity,A21000
Royal Borough of Kingston,25/04/2022,70023732,"-1,918.39",KENT COUNTY COUNCIL,UTILITIES,Housing Revenue Account,Gas,A21003
Royal Borough of Kingston,25/04/2022,70023727,"-1,875.68",KENT COUNTY COUNCIL,UTILITIES,Housing Revenue Account,Gas,A21003
Royal Borough of Kingston,22/04/2022,70023104,-722.83,KENT COUNTY COUNCIL,UTILITIES,Corporate & Communities,Electricity,A21000
Royal Borough of Kingston,05/05/2022,70023673,-709.6,KENT COUNTY COUNCIL,UTILITIES,Housing Revenue Account,Gas,A21003
Royal Borough of Kingston,05/05/2022,70023672,-675.15,KENT COUNTY COUNCIL,UTILITIES,Housing Revenue Account,Gas,A21003
Royal Borough of Kingston,14/04/2022,70023158,-418.32,KENT COUNTY COUNCIL,UTILITIES,Corporate & Communities,Electricity,A21000
Royal Borough of Kingston,22/04/2022,70023104,-374.42,KENT COUNTY COUNCIL,UTILITIES,Corporate & Communities,Electricity,A21000
Royal Borough of Kingston,22/04/2022,70023104,-196.98,KENT COUNTY COUNCIL,UTILITIES,Corporate & Communities,Electricity,A21000
Royal Borough of Kingston,14/04/2022,70023158,-179.28,KENT COUNTY COUNCIL,UTILITIES,Place,Electricity,A21000
Royal Borough of Kingston,22/04/2022,70023713,0.01,KENT COUNTY COUNCIL,UTILITIES,Housing Revenue Account,Gas,A21003
Royal Borough of Kingston,22/04/2022,70023102,137.5,KENT COUNTY COUNCIL,UTILITIES,Corporate & Communities,Electricity,A21000
Royal Borough of Kingston,13/05/2022,70024760,188.68,KENT COUNTY COUNCIL,UTILITIES,Place,Electricity,A21000
Royal Borough of Kingston,22/04/2022,70023094,196.98,KENT COUNTY COUNCIL,UTILITIES,Corporate & Communities,Electricity,A21000
Royal Borough of Kingston,22/04/2022,70023102,261.36,KENT COUNTY COUNCIL,UTILITIES,Corporate & Communities,Electricity,A21000
Royal Borough of Kingston,17/05/2022,70024860,265.39,KENT COUNTY COUNCIL,UTILITIES,Housing Revenue Account,Electricity,A21000
Royal Borough of Kingston,16/05/2022,70024761,267.39,KENT COUNTY COUNCIL,UTILITIES,Corporate & Communities,Gas,A21003
Royal Borough of Kingston,13/05/2022,70024757,332.36,KENT COUNTY COUNCIL,UTILITIES,Place,Electricity,A21000
Royal Borough of Kingston,22/04/2022,70023094,374.41,KENT COUNTY COUNCIL,UTILITIES,Corporate & Communities,Electricity,A21000
Royal Borough of Kingston,16/05/2022,70024755,393.09,KENT COUNTY COUNCIL,UTILITIES,Place,Gas,A21003
Royal Borough of Kingston,17/05/2022,70024762,408.92,KENT COUNTY COUNCIL,UTILITIES,Place,Electricity,A21000
Royal Borough of Kingston,16/05/2022,70024818,417.27,KENT COUNTY COUNCIL,UTILITIES,Housing Revenue Account,Gas,A21003
Royal Borough of Kingston,13/05/2022,70024760,440.26,KENT COUNTY COUNCIL,UTILITIES,Corporate & Communities,Electricity,A21000
Royal Borough of Kingston,18/05/2022,70024929,455.47,KENT COUNTY COUNCIL,UTILITIES,Place,Electricity,A21000
Royal Borough of Kingston,22/04/2022,70023692,459.44,KENT COUNTY COUNCIL,UTILITIES,Housing Revenue Account,Electricity,A21000
Royal Borough of Kingston,22/04/2022,70023692,459.44,KENT COUNTY COUNCIL,UTILITIES,Housing Revenue Account,Electricity,A21000
Royal Borough of Kingston,17/05/2022,70024861,487.93,KENT COUNTY COUNCIL,UTILITIES,Housing Revenue Account,Electricity,A21000
Royal Borough of Kingston,22/04/2022,70023102,504.56,KENT COUNTY COUNCIL,UTILITIES,Corporate & Communities,Electricity,A21000
Royal Borough of Kingston,16/05/2022,70024761,508.02,KENT COUNTY COUNCIL,UTILITIES,Corporate & Communities,Gas,A21003
Royal Borough of Kingston,16/05/2022,70024817,523.65,KENT COUNTY COUNCIL,UTILITIES,Housing Revenue Account,Gas,A21003
Royal Borough of Kingston,17/05/2022,70024887,568.66,KENT COUNTY COUNCIL,UTILITIES,Housing Revenue Account,Electricity,A21000
Royal Borough of Kingston,13/04/2022,70022419,578.4,KENT COUNTY COUNCIL,UTILITIES,Place,Gas,A21003
Royal Borough of Kingston,16/05/2022,70024812,608.85,KENT COUNTY COUNCIL,UTILITIES,Housing Revenue Account,Gas,A21003
Royal Borough of Kingston,17/05/2022,70024860,619.23,KENT COUNTY COUNCIL,UTILITIES,Housing Revenue Account,Electricity,A21000
Royal Borough of Kingston,17/05/2022,70024856,635.45,KENT COUNTY COUNCIL,UTILITIES,Housing Revenue Account,Electricity,A21000
Royal Borough of Kingston,31/05/2022,90130255,642.86,KENT COUNTY COUNCIL,SOCIAL SERVICES - OTHER,Adult Social Care & Health,Personal Budget - Third Party,A61019
Royal Borough of Kingston,16/05/2022,70024814,661.19,KENT COUNTY COUNCIL,UTILITIES,Housing Revenue Account,Gas,A21003
Royal Borough of Kingston,18/05/2022,70024929,683.2,KENT COUNTY COUNCIL,UTILITIES,Corporate & Communities,Electricity,A21000
Royal Borough of Kingston,17/05/2022,70024897,714.8,KENT COUNTY COUNCIL,UTILITIES,Housing Revenue Account,Electricity,A21000
Royal Borough of Kingston,16/05/2022,70024767,718.89,KENT COUNTY COUNCIL,UTILITIES,Corporate & Communities,Gas,A21003
Royal Borough of Kingston,22/04/2022,70023094,722.82,KENT COUNTY COUNCIL,UTILITIES,Corporate & Communities,Electricity,A21000
Royal Borough of Kingston,14/04/2022,70022802,734.97,KENT COUNTY COUNCIL,UTILITIES,Place,Electricity,A21000
Royal Borough of Kingston,22/04/2022,70023682,748.4,KENT COUNTY COUNCIL,UTILITIES,Housing Revenue Account,Electricity,A21000
Royal Borough of Kingston,22/04/2022,70023682,748.4,KENT COUNTY COUNCIL,UTILITIES,Housing Revenue Account,Electricity,A21000
Royal Borough of Kingston,13/05/2022,70024757,775.51,KENT COUNTY COUNCIL,UTILITIES,Corporate & Communities,Electricity,A21000
Royal Borough of Kingston,16/05/2022,70024815,869.07,KENT COUNTY COUNCIL,UTILITIES,Housing Revenue Account,Gas,A21003
Royal Borough of Kingston,25/04/2022,70023691,870.75,KENT COUNTY COUNCIL,UTILITIES,Place,Gas,A21003
Royal Borough of Kingston,17/05/2022,70024892,896.54,KENT COUNTY COUNCIL,UTILITIES,Housing Revenue Account,Electricity,A21000
Royal Borough of Kingston,22/04/2022,70023678,910.54,KENT COUNTY COUNCIL,UTILITIES,Housing Revenue Account,Electricity,A21000
Royal Borough of Kingston,16/05/2022,70024755,917.22,KENT COUNTY COUNCIL,UTILITIES,Corporate & Communities,Gas,A21003
Royal Borough of Kingston,17/05/2022,70024878,948.92,KENT COUNTY COUNCIL,UTILITIES,Housing Revenue Account,Electricity,A21000
Royal Borough of Kingston,17/05/2022,70024762,954.16,KENT COUNTY COUNCIL,UTILITIES,Corporate & Communities,Electricity,A21000
Royal Borough of Kingston,17/05/2022,70024752,"1,005.97",KENT COUNTY COUNCIL,UTILITIES,Corporate & Communities,Electricity,A21000
Royal Borough of Kingston,17/05/2022,70024855,"1,016.05",KENT COUNTY COUNCIL,UTILITIES,Housing Revenue Account,Electricity,A21000
Royal Borough of Kingston,16/05/2022,70024811,"1,025.87",KENT COUNTY COUNCIL,UTILITIES,Housing Revenue Account,Gas,A21003
Royal Borough of Kingston,22/04/2022,70023696,"1,059.77",KENT COUNTY COUNCIL,UTILITIES,Housing Revenue Account,Electricity,A21000
Royal Borough of Kingston,16/05/2022,70024761,"1,082.75",KENT COUNTY COUNCIL,UTILITIES,Corporate & Communities,Gas,A21003
Royal Borough of Kingston,18/05/2022,70024926,"1,128.72",KENT COUNTY COUNCIL,UTILITIES,Housing Revenue Account,Electricity,A21000
Royal Borough of Kingston,25/04/2022,70023718,"1,132.82",KENT COUNTY COUNCIL,UTILITIES,Housing Revenue Account,Gas,A21003
Royal Borough of Kingston,22/04/2022,70023695,"1,247.35",KENT COUNTY COUNCIL,UTILITIES,Place,Electricity,A21000
Royal Borough of Kingston,17/05/2022,70024859,"1,317.42",KENT COUNTY COUNCIL,UTILITIES,Housing Revenue Account,Electricity,A21000
Royal Borough of Kingston,19/04/2022,70024372,"1,340.37",KENT COUNTY COUNCIL,UTILITIES,Adult Social Care & Health,CRC Allowances,A21050
Royal Borough of Kingston,13/04/2022,70022787,"1,480.41",KENT COUNTY COUNCIL,UTILITIES,Place,Gas,A21003
Royal Borough of Kingston,13/04/2022,70022784,"1,494.27",KENT COUNTY COUNCIL,UTILITIES,Place,Gas,A21003
Royal Borough of Kingston,24/04/2022,70023680,"1,639.54",KENT COUNTY COUNCIL,UTILITIES,Housing Revenue Account,Electricity,A21000
Royal Borough of Kingston,14/04/2022,70022798,"1,666.12",KENT COUNTY COUNCIL,UTILITIES,Place,Electricity,A21000
Royal Borough of Kingston,14/04/2022,70022801,"1,711.87",KENT COUNTY COUNCIL,UTILITIES,Place,Electricity,A21000
Royal Borough of Kingston,18/05/2022,70024919,"1,755.39",KENT COUNTY COUNCIL,UTILITIES,Housing Revenue Account,Electricity,A21000
Royal Borough of Kingston,14/04/2022,70022799,"1,995.65",KENT COUNTY COUNCIL,UTILITIES,Adult Social Care & Health,Electricity,A21000
Royal Borough of Kingston,25/04/2022,70023722,"2,165.94",KENT COUNTY COUNCIL,UTILITIES,Housing Revenue Account,Gas,A21003
Royal Borough of Kingston,25/04/2022,70023721,"2,284.93",KENT COUNTY COUNCIL,UTILITIES,Housing Revenue Account,Gas,A21003
Royal Borough of Kingston,13/04/2022,70022789,"2,370.96",KENT COUNTY COUNCIL,UTILITIES,Place,Gas,A21003
Royal Borough of Kingston,17/05/2022,70024900,"2,407.58",KENT COUNTY COUNCIL,UTILITIES,Adult Social Care & Health,Electricity,A21000
Royal Borough of Kingston,31/05/2022,90130256,"2,428.07",KENT COUNTY COUNCIL,SOCIAL SERVICES - OTHER,Adult Social Care & Health,Personal Budget - Third Party,A61019
Royal Borough of Kingston,22/04/2022,70023684,"2,435.55",KENT COUNTY COUNCIL,UTILITIES,Housing Revenue Account,Electricity,A21000
Royal Borough of Kingston,14/04/2022,70022418,"2,512.88",KENT COUNTY COUNCIL,UTILITIES,Place,Electricity,A21000
Royal Borough of Kingston,14/04/2022,70023686,"2,520.10",KENT COUNTY COUNCIL,UTILITIES,Adult Social Care & Health,CRC Allowances,A21050
Royal Borough of Kingston,13/04/2022,70024371,"2,595.72",KENT COUNTY COUNCIL,UTILITIES,Adult Social Care & Health,Gas,A21003
Royal Borough of Kingston,25/04/2022,70023724,"2,791.94",KENT COUNTY COUNCIL,UTILITIES,Housing Revenue Account,Gas,A21003
Royal Borough of Kingston,13/04/2022,70022776,"2,927.05",KENT COUNTY COUNCIL,UTILITIES,Place,Gas,A21003
Royal Borough of Kingston,17/05/2022,70025000,"3,292.95",KENT COUNTY COUNCIL,UTILITIES,Corporate & Communities,Electricity,A21000
Royal Borough of Kingston,22/04/2022,70023719,"3,371.15",KENT COUNTY COUNCIL,UTILITIES,Housing Revenue Account,Gas,A21003
Royal Borough of Kingston,22/04/2022,70023720,"3,438.21",KENT COUNTY COUNCIL,UTILITIES,Housing Revenue Account,Gas,A21003
Royal Borough of Kingston,22/04/2022,70023715,"3,442.01",KENT COUNTY COUNCIL,UTILITIES,Housing Revenue Account,Gas,A21003
Royal Borough of Kingston,22/04/2022,70023713,"3,473.69",KENT COUNTY COUNCIL,UTILITIES,Housing Revenue Account,Gas,A21003
Royal Borough of Kingston,22/04/2022,70023714,"3,477.50",KENT COUNTY COUNCIL,UTILITIES,Housing Revenue Account,Gas,A21003
Royal Borough of Kingston,14/04/2022,70022795,"3,800.30",KENT COUNTY COUNCIL,UTILITIES,Corporate & Communities,Electricity,A21000
Royal Borough of Kingston,22/04/2022,70023723,"4,086.70",KENT COUNTY COUNCIL,UTILITIES,Housing Revenue Account,Gas,A21003
Royal Borough of Kingston,17/05/2022,70024786,"4,140.67",KENT COUNTY COUNCIL,UTILITIES,Corporate & Communities,Electricity,A21000
Royal Borough of Kingston,21/04/2022,70023106,"4,148.72",KENT COUNTY COUNCIL,UTILITIES,Corporate & Communities,Electricity,A21000
Royal Borough of Kingston,22/04/2022,70023679,"4,261.53",KENT COUNTY COUNCIL,UTILITIES,Place,Electricity,A21000
Royal Borough of Kingston,16/05/2022,70024619,"4,497.96",KENT COUNTY COUNCIL,UTILITIES,Adult Social Care & Health,Gas,A21003
Royal Borough of Kingston,04/05/2022,70023693,"5,744.07",KENT COUNTY COUNCIL,UTILITIES,Place,Gas,A21003
Royal Borough of Kingston,19/05/2022,70024922,"6,104.44",KENT COUNTY COUNCIL,UTILITIES,Housing Revenue Account,Electricity,A21000
Royal Borough of Kingston,17/05/2022,70024883,"6,510.52",KENT COUNTY COUNCIL,UTILITIES,Corporate & Communities,Electricity,A21000
Royal Borough of Kingston,21/04/2022,70022759,"21,113.98",KENT COUNTY COUNCIL,UTILITIES,Place,Electricity,A21000
Royal Borough of Kingston,26/04/2022,70023677,"24,702.68",KENT COUNTY COUNCIL,UTILITIES,Corporate & Communities,Electricity - Street Lighting,A21002
Royal Borough of Kingston,26/04/2022,70023698,"68,366.38",KENT COUNTY COUNCIL,UTILITIES,Corporate & Communities,Electricity - Street Lighting,A21002
Royal Borough of Kingston,26/04/2022,70023697,"75,640.71",KENT COUNTY COUNCIL,UTILITIES,Corporate & Communities,Electricity - Street Lighting,A21002
Royal Borough of Kingston,20/05/2022,90126539,870,KEYCIRCLE LTD ,PLS LANDLORDS,Place,PSL Payments To Landlords,A22031
Royal Borough of Kingston,20/05/2022,90126540,870,KEYCIRCLE LTD ,PLS LANDLORDS,Place,PSL Payments To Landlords,A22031
Royal Borough of Kingston,20/05/2022,90126541,"1,094.00",KEYCIRCLE LTD ,PLS LANDLORDS,Place,PSL Payments To Landlords,A22031
Royal Borough of Kingston,05/05/2022,90120074,"3,616.81",KIDS UNITED PLAYGROUP,SOCIAL SERVICES DAY CARE,Schools,PVI Providers,A60014
Royal Borough of Kingston,05/05/2022,90120063,"3,042.36",KINGS MEADOW PRE-SCHOOL,ACADEMIC INSTNS - OTHER,Schools,2 Yr Old Place Funding,A60000
Royal Borough of Kingston,05/05/2022,90120075,"14,823.00",KINGS MEADOW PRE-SCHOOL,ACADEMIC INSTNS - OTHER,Schools,PVI Providers,A60014
Royal Borough of Kingston,29/04/2022,70023473,"1,650.00",KINGSGATE CHURCH KINGSTON,OPERATIONAL EQUIPMENT/MATERIAL,Adult Social Care & Health,Building Rents,A22005
Royal Borough of Kingston,12/05/2022,70024167,726,KINGSTON ADVOCACY GROUP,SOCIAL SERVICES - OTHER,Adult Social Care & Health,Payments to Voluntary Organisations,A54005
Royal Borough of Kingston,06/05/2022,70024648,"1,000.00",KINGSTON MENCAP,CHARITIES & VOLUNTARY ORGNS,Adult Social Care & Health,"Grants, Contributions & Donations",A47005
Royal Borough of Kingston,01/04/2022,70024662,735.87,KINGSTON QUAKER MEETING ,OFFICE SERVICES,Corporate & Communities,Publicity And Promotions,A45026
Royal Borough of Kingston,06/04/2022,70024502,"175,000.00",KINGSTON THEATRE TRUST ,ENTERTAINMENTS INDUSTRY,Corporate & Communities,"Grants, Contributions & Donations",A47005
Royal Borough of Kingston,01/05/2022,70023594,"1,472.90",KINGSTON TOWN CENTRE MANAGEMENT LTD,GRANTS & EX GRATIA PAYMENTS,Place,Electricity,A21000
Royal Borough of Kingston,04/05/2022,70024780,"1,000.00",KINGSTON UNIVERSITY STUDENTS UNION,PROFESSIONAL ASSOCIATIONS TU,Adult Social Care & Health,"Grants, Contributions & Donations",A47005
Royal Borough of Kingston,19/04/2022,70023555,"1,000.00",KINGSTON UPON THAMES ASSOC FOR THE BLIND ,GRANTS & EX GRATIA PAYMENTS,Adult Social Care & Health,"Grants, Contributions & Donations",A47005
Royal Borough of Kingston,01/05/2022,90130314,860.91,KINGSTON VOLUNTARY ACTION CIO,CHARITIES & VOLUNTARY ORGNS,Adult Social Care & Health,Personal Budget - Third Party,A61019
Royal Borough of Kingston,01/05/2022,90129892,922.5,KINGSTON VOLUNTARY ACTION CIO,CHARITIES & VOLUNTARY ORGNS,Adult Social Care & Health,Personal Budget - Third Party,A61019
Royal Borough of Kingston,08/04/2022,70021989,"103,000.00",KINGSTON VOLUNTARY ACTION CIO,CHARITIES & VOLUNTARY ORGNS,Adult Social Care & Health,Payments to Voluntary Organisations,A54005
Royal Borough of Kingston,08/04/2022,70021990,"235,000.00",KINGSTON VOLUNTARY ACTION CIO,CHARITIES & VOLUNTARY ORGNS,Adult Social Care & Health,Payments to Voluntary Organisations,A54005
Royal Borough of Kingston,24/03/2022,70022449,"2,106.00",KNOWLES ASSOCIATES TFM LTD,VEHICLE & PLANT HIRE / MNTCE,Housing Revenue Account,Housing - Caretakers van leasing,A32005
Royal Borough of Kingston,09/05/2022,70023926,"12,730.00",KNOWLES ASSOCIATES TFM LTD,VEHICLE & PLANT HIRE / MNTCE,Housing Revenue Account,Housing - Caretakers van leasing,A32005
Royal Borough of Kingston,29/04/2022,70023565,"1,000.00",KOREAN SENIOR CITIZENS UK,GRANTS & EX GRATIA PAYMENTS,Adult Social Care & Health,"Grants, Contributions & Donations",A47005
Royal Borough of Kingston,27/04/2022,70023180,"9,300.00",KOREAN SENIOR CITIZENS UK,GRANTS & EX GRATIA PAYMENTS,Adult Social Care & Health,Community Initiatives,A44288
Royal Borough of Kingston,03/05/2022,70023436,"1,000.00",KTA Sport and Leisure Ltd,CHILDREN'S SERVICE - OTHER,Adult Social Care & Health,"Grants, Contributions & Donations",A47005
Royal Borough of Kingston,29/04/2022,70023539,"1,650.00",LAMBERT SMITH HAMPTON GROUP LTD,CONSULTING ARCHITECTS ENGINEER,Housing Revenue Account,Consultancy Services - Other,A44065
Royal Borough of Kingston,29/04/2022,70023542,"2,351.25",LAMBERT SMITH HAMPTON GROUP LTD,CONSULTING ARCHITECTS ENGINEER,Housing Revenue Account,Consultancy Services - Other,A44065
Royal Borough of Kingston,29/04/2022,70023541,"2,428.80",LAMBERT SMITH HAMPTON GROUP LTD,CONSULTING ARCHITECTS ENGINEER,Housing Revenue Account,Consultancy Services - Other,A44065
Royal Borough of Kingston,29/04/2022,70023540,"9,885.42",LAMBERT SMITH HAMPTON GROUP LTD,CONSULTING ARCHITECTS ENGINEER,Housing Revenue Account,Consultancy Services - Other,A44065
Royal Borough of Kingston,07/03/2022,70022863,"8,734.00",Landmark Building Contractors Ltd,SUNDRY SUPPLIER - HOUSING,Capital Programme,Grants Given For Capital Purposes,C20004
Royal Borough of Kingston,01/05/2022,90129509,"2,018.63",LANGLEY COURT REST HOME,SOCIAL SERVICES RESIDENTIAL,Adult Social Care & Health,Independent Placements,A56006
Royal Borough of Kingston,01/05/2022,90129359,"3,342.86",LANGLEY COURT REST HOME,SOCIAL SERVICES RESIDENTIAL,Adult Social Care & Health,Independent Placements,A56006
Royal Borough of Kingston,01/05/2022,90129554,"3,450.96",LANGLEY COURT REST HOME,SOCIAL SERVICES RESIDENTIAL,Adult Social Care & Health,Independent Placements,A56006
Royal Borough of Kingston,01/05/2022,90129506,"3,681.03",LANGLEY COURT REST HOME,SOCIAL SERVICES RESIDENTIAL,Adult Social Care & Health,Independent Placements,A56006
Royal Borough of Kingston,01/05/2022,90129511,"3,681.03",LANGLEY COURT REST HOME,SOCIAL SERVICES RESIDENTIAL,Adult Social Care & Health,Independent Placements,A56006
